Body Name,Transaction Number,Account Code Description,Expenses Type,Service Code,Service Area Categorisation,Supplier Name,Date,Amount
Bath & North East Somerset Council,80631465,LM3,Residential Care,P11,Adult Social Care & Health,6 THE AVENUE -KEYNSHAM MENCAP,03/10/2016,1168
Bath & North East Somerset Council,80631465,LM3,Residential Care,P11,Adult Social Care & Health,6 THE AVENUE -KEYNSHAM MENCAP,03/10/2016,1180
Bath & North East Somerset Council,80631465,LM3,Residential Care,P11,Adult Social Care & Health,6 THE AVENUE -KEYNSHAM MENCAP,03/10/2016,1180
Bath & North East Somerset Council,80631465,LM3,Residential Care,P11,Adult Social Care & Health,6 THE AVENUE -KEYNSHAM MENCAP,03/10/2016,1180
Bath & North East Somerset Council,80631465,LM3,Residential Care,P11,Adult Social Care & Health,6 THE AVENUE -KEYNSHAM MENCAP,03/10/2016,1366
Bath & North East Somerset Council,80631465,LM3,Residential Care,P11,Adult Social Care & Health,6 THE AVENUE -KEYNSHAM MENCAP,03/10/2016,1984
Bath & North East Somerset Council,80631717,LL8,Individualised Budget,P11,Adult Social Care & Health,REDACTED,03/10/2016,2969
Bath & North East Somerset Council,80631516,LM3,Residential Care,P11,Adult Social Care & Health,ALEXANDRA HOMES (BRISTOL) LTD,03/10/2016,3674
Bath & North East Somerset Council,80631659,LL8,Individualised Budget,P11,Adult Social Care & Health,REDACTED,03/10/2016,1696.8
Bath & North East Somerset Council,80623332,LM3,Residential Care,P11,Adult Social Care & Health,ALMONDSBURY CARE LTD,03/10/2016,650
Bath & North East Somerset Council,80623332,LM3,Residential Care,P11,Adult Social Care & Health,ALMONDSBURY CARE LTD,03/10/2016,650
Bath & North East Somerset Council,80626599,LM3,Residential Care,P11,Adult Social Care & Health,ALMONDSBURY CARE LTD,03/10/2016,650
Bath & North East Somerset Council,80626599,LM3,Residential Care,P11,Adult Social Care & Health,ALMONDSBURY CARE LTD,03/10/2016,650
Bath & North East Somerset Council,80631550,LM3,Residential Care,P11,Adult Social Care & Health,ALMONDSBURY CARE LTD,03/10/2016,1300
Bath & North East Somerset Council,80631572,LM6,Nursing Care,P11,Adult Social Care & Health,AMBLESIDE NURSING HOME,03/10/2016,1590
Bath & North East Somerset Council,80631572,LM6,Nursing Care,P11,Adult Social Care & Health,AMBLESIDE NURSING HOME,03/10/2016,1618
Bath & North East Somerset Council,80631473,LM3,Residential Care,P11,Adult Social Care & Health,ANCHOR TRUST,03/10/2016,904
Bath & North East Somerset Council,80631473,LM3,Residential Care,P11,Adult Social Care & Health,ANCHOR TRUST,03/10/2016,904
Bath & North East Somerset Council,80631473,LM3,Residential Care,P11,Adult Social Care & Health,ANCHOR TRUST,03/10/2016,1052
Bath & North East Somerset Council,80631473,LM3,Residential Care,P11,Adult Social Care & Health,ANCHOR TRUST,03/10/2016,1124
Bath & North East Somerset Council,80631473,LM3,Residential Care,P11,Adult Social Care & Health,ANCHOR TRUST,03/10/2016,1305.9
Bath & North East Somerset Council,80631473,LM3,Residential Care,P11,Adult Social Care & Health,ANCHOR TRUST,03/10/2016,1388
Bath & North East Somerset Council,80631473,LM3,Residential Care,P11,Adult Social Care & Health,ANCHOR TRUST,03/10/2016,1388
Bath & North East Somerset Council,80631473,LM3,Residential Care,P11,Adult Social Care & Health,ANCHOR TRUST,03/10/2016,1430
Bath & North East Somerset Council,80631473,LM3,Residential Care,P11,Adult Social Care & Health,ANCHOR TRUST,03/10/2016,1516
Bath & North East Somerset Council,80631473,LM3,Residential Care,P11,Adult Social Care & Health,ANCHOR TRUST,03/10/2016,1516
Bath & North East Somerset Council,80631473,LM6,Nursing Care,P11,Adult Social Care & Health,ANCHOR TRUST,03/10/2016,1578.58
Bath & North East Somerset Council,80631473,LM3,Residential Care,P11,Adult Social Care & Health,ANCHOR TRUST,03/10/2016,1590
Bath & North East Somerset Council,80631473,LM3,Residential Care,P11,Adult Social Care & Health,ANCHOR TRUST,03/10/2016,1606
Bath & North East Somerset Council,80631473,LM3,Residential Care,P11,Adult Social Care & Health,ANCHOR TRUST,03/10/2016,1700
Bath & North East Somerset Council,80631833,LL8,Individualised Budget,P11,Adult Social Care & Health,REDACTED,03/10/2016,699.94
Bath & North East Somerset Council,80631372,LL8,Individualised Budget,P11,Adult Social Care & Health,REDACTED,03/10/2016,4930.7
Bath & North East Somerset Council,80631512,LM8,Home Care,P11,Adult Social Care & Health,ARCH CARE SERVICES,03/10/2016,36
Bath & North East Somerset Council,80631512,LM8,Home Care,P11,Adult Social Care & Health,ARCH CARE SERVICES,03/10/2016,144
Bath & North East Somerset Council,80631512,LM8,Home Care,P11,Adult Social Care & Health,ARCH CARE SERVICES,03/10/2016,162
Bath & North East Somerset Council,80631512,LM8,Home Care,P11,Adult Social Care & Health,ARCH CARE SERVICES,03/10/2016,180
Bath & North East Somerset Council,80631512,LM8,Home Care,P11,Adult Social Care & Health,ARCH CARE SERVICES,03/10/2016,180
Bath & North East Somerset Council,80631512,LM8,Home Care,P11,Adult Social Care & Health,ARCH CARE SERVICES,03/10/2016,180
Bath & North East Somerset Council,80631512,LM8,Home Care,P11,Adult Social Care & Health,ARCH CARE SERVICES,03/10/2016,270
Bath & North East Somerset Council,80631512,LM8,Home Care,P11,Adult Social Care & Health,ARCH CARE SERVICES,03/10/2016,360
Bath & North East Somerset Council,80631512,LM8,Home Care,P11,Adult Social Care & Health,ARCH CARE SERVICES,03/10/2016,505
Bath & North East Somerset Council,80631512,LM8,Home Care,P11,Adult Social Care & Health,ARCH CARE SERVICES,03/10/2016,540
Bath & North East Somerset Council,80631512,LM8,Home Care,P11,Adult Social Care & Health,ARCH CARE SERVICES,03/10/2016,700
Bath & North East Somerset Council,80631512,LM8,Home Care,P11,Adult Social Care & Health,ARCH CARE SERVICES,03/10/2016,800
Bath & North East Somerset Council,80631411,LM6,Nursing Care,P11,Adult Social Care & Health,ARCH CARE SERVICES,03/10/2016,854
Bath & North East Somerset Council,80631512,LM8,Home Care,P11,Adult Social Care & Health,ARCH CARE SERVICES,03/10/2016,860
Bath & North East Somerset Council,80631512,LM8,Home Care,P11,Adult Social Care & Health,ARCH CARE SERVICES,03/10/2016,860
Bath & North East Somerset Council,80631512,LM8,Home Care,P11,Adult Social Care & Health,ARCH CARE SERVICES,03/10/2016,860
Bath & North East Somerset Council,80631512,LM8,Home Care,P11,Adult Social Care & Health,ARCH CARE SERVICES,03/10/2016,860
Bath & North East Somerset Council,80631512,LM8,Home Care,P11,Adult Social Care & Health,ARCH CARE SERVICES,03/10/2016,1030
Bath & North East Somerset Council,80631577,LM3,Residential Care,P11,Adult Social Care & Health,ARTI CARE HOMES (SOUTHWEST) LTD,03/10/2016,904
Bath & North East Somerset Council,80631577,LM3,Residential Care,P11,Adult Social Care & Health,ARTI CARE HOMES (SOUTHWEST) LTD,03/10/2016,904
Bath & North East Somerset Council,80631577,LM3,Residential Care,P11,Adult Social Care & Health,ARTI CARE HOMES (SOUTHWEST) LTD,03/10/2016,904
Bath & North East Somerset Council,80631577,LM3,Residential Care,P11,Adult Social Care & Health,ARTI CARE HOMES (SOUTHWEST) LTD,03/10/2016,904
Bath & North East Somerset Council,80631577,LM3,Residential Care,P11,Adult Social Care & Health,ARTI CARE HOMES (SOUTHWEST) LTD,03/10/2016,904
Bath & North East Somerset Council,80631577,LM3,Residential Care,P11,Adult Social Care & Health,ARTI CARE HOMES (SOUTHWEST) LTD,03/10/2016,904
Bath & North East Somerset Council,80631577,LM3,Residential Care,P11,Adult Social Care & Health,ARTI CARE HOMES (SOUTHWEST) LTD,03/10/2016,904
Bath & North East Somerset Council,80631577,LM3,Residential Care,P11,Adult Social Care & Health,ARTI CARE HOMES (SOUTHWEST) LTD,03/10/2016,992
Bath & North East Somerset Council,80631577,LM3,Residential Care,P11,Adult Social Care & Health,ARTI CARE HOMES (SOUTHWEST) LTD,03/10/2016,1052
Bath & North East Somerset Council,80631577,LM3,Residential Care,P11,Adult Social Care & Health,ARTI CARE HOMES (SOUTHWEST) LTD,03/10/2016,1066
Bath & North East Somerset Council,80631511,LM3,Residential Care,P11,Adult Social Care & Health,ARTI SERVICES LTD T/A THE MANOR FARM HOUSE,03/10/2016,904
Bath & North East Somerset Council,80631511,LM3,Residential Care,P11,Adult Social Care & Health,ARTI SERVICES LTD T/A THE MANOR FARM HOUSE,03/10/2016,904
Bath & North East Somerset Council,80631511,LM3,Residential Care,P11,Adult Social Care & Health,ARTI SERVICES LTD T/A THE MANOR FARM HOUSE,03/10/2016,904
Bath & North East Somerset Council,80631511,LM3,Residential Care,P11,Adult Social Care & Health,ARTI SERVICES LTD T/A THE MANOR FARM HOUSE,03/10/2016,904
Bath & North East Somerset Council,80631511,LM3,Residential Care,P11,Adult Social Care & Health,ARTI SERVICES LTD T/A THE MANOR FARM HOUSE,03/10/2016,904
Bath & North East Somerset Council,80631511,LM3,Residential Care,P11,Adult Social Care & Health,ARTI SERVICES LTD T/A THE MANOR FARM HOUSE,03/10/2016,992
Bath & North East Somerset Council,80631511,LM3,Residential Care,P11,Adult Social Care & Health,ARTI SERVICES LTD T/A THE MANOR FARM HOUSE,03/10/2016,992
Bath & North East Somerset Council,80631511,LM3,Residential Care,P11,Adult Social Care & Health,ARTI SERVICES LTD T/A THE MANOR FARM HOUSE,03/10/2016,992
Bath & North East Somerset Council,80631511,LM3,Residential Care,P11,Adult Social Care & Health,ARTI SERVICES LTD T/A THE MANOR FARM HOUSE,03/10/2016,1138
Bath & North East Somerset Council,80631511,LM3,Residential Care,P11,Adult Social Care & Health,ARTI SERVICES LTD T/A THE MANOR FARM HOUSE,03/10/2016,1310
Bath & North East Somerset Council,80631474,LM3,Residential Care,P11,Adult Social Care & Health,ASPECTS & MILESTONES TRUST,03/10/2016,1722
Bath & North East Somerset Council,80631474,LM3,Residential Care,P11,Adult Social Care & Health,ASPECTS & MILESTONES TRUST,03/10/2016,1920
Bath & North East Somerset Council,80631474,LM3,Residential Care,P11,Adult Social Care & Health,ASPECTS & MILESTONES TRUST,03/10/2016,2042
Bath & North East Somerset Council,80631474,LM3,Residential Care,P11,Adult Social Care & Health,ASPECTS & MILESTONES TRUST,03/10/2016,4028
Bath & North East Somerset Council,80631474,LM3,Residential Care,P11,Adult Social Care & Health,ASPECTS & MILESTONES TRUST,03/10/2016,5120
Bath & North East Somerset Council,80631493,LM3,Residential Care,P11,Adult Social Care & Health,AUTISM SPECIALISED CARE HOMES LTD,03/10/2016,2622
Bath & North East Somerset Council,80631528,LM3,Residential Care,P11,Adult Social Care & Health,BAMFIELD LODGE LIMITED,03/10/2016,992
Bath & North East Somerset Council,80631371,LM6,Nursing Care,P11,Adult Social Care & Health,BARCHESTER HEALTH CARE,03/10/2016,312.5
Bath & North East Somerset Council,80631371,LM6,Nursing Care,P11,Adult Social Care & Health,BARCHESTER HEALTH CARE,03/10/2016,312.5
Bath & North East Somerset Council,80631371,LM6,Nursing Care,P11,Adult Social Care & Health,BARCHESTER HEALTH CARE,03/10/2016,312.5
Bath & North East Somerset Council,80631371,LM6,Nursing Care,P11,Adult Social Care & Health,BARCHESTER HEALTH CARE,03/10/2016,312.5
Bath & North East Somerset Council,80631371,LM6,Nursing Care,P11,Adult Social Care & Health,BARCHESTER HEALTH CARE,03/10/2016,312.5
Bath & North East Somerset Council,80631371,LM6,Nursing Care,P11,Adult Social Care & Health,BARCHESTER HEALTH CARE,03/10/2016,312.5
Bath & North East Somerset Council,80631371,LM6,Nursing Care,P11,Adult Social Care & Health,BARCHESTER HEALTH CARE,03/10/2016,312.5
Bath & North East Somerset Council,80631371,LM6,Nursing Care,P11,Adult Social Care & Health,BARCHESTER HEALTH CARE,03/10/2016,312.5
Bath & North East Somerset Council,80631371,LM6,Nursing Care,P11,Adult Social Care & Health,BARCHESTER HEALTH CARE,03/10/2016,312.5
Bath & North East Somerset Council,80631371,LM6,Nursing Care,P11,Adult Social Care & Health,BARCHESTER HEALTH CARE,03/10/2016,312.5
Bath & North East Somerset Council,80631371,LM6,Nursing Care,P11,Adult Social Care & Health,BARCHESTER HEALTH CARE,03/10/2016,312.5
Bath & North East Somerset Council,80631371,LM6,Nursing Care,P11,Adult Social Care & Health,BARCHESTER HEALTH CARE,03/10/2016,312.5
Bath & North East Somerset Council,80631371,LM6,Nursing Care,P11,Adult Social Care & Health,BARCHESTER HEALTH CARE,03/10/2016,312.5
Bath & North East Somerset Council,80631371,LM6,Nursing Care,P11,Adult Social Care & Health,BARCHESTER HEALTH CARE,03/10/2016,312.5
Bath & North East Somerset Council,80631371,LM6,Nursing Care,P11,Adult Social Care & Health,BARCHESTER HEALTH CARE,03/10/2016,312.5
Bath & North East Somerset Council,80631552,LM6,Nursing Care,P11,Adult Social Care & Health,BARCHESTER HEALTH CARE,03/10/2016,1477.6
Bath & North East Somerset Council,80631552,LM3,Residential Care,P11,Adult Social Care & Health,BARCHESTER HEALTH CARE,03/10/2016,1700
Bath & North East Somerset Council,80631552,LM6,Nursing Care,P11,Adult Social Care & Health,BARCHESTER HEALTH CARE,03/10/2016,1700
Bath & North East Somerset Council,80631552,LM6,Nursing Care,P11,Adult Social Care & Health,BARCHESTER HEALTH CARE,03/10/2016,1700
Bath & North East Somerset Council,80631552,LM6,Nursing Care,P11,Adult Social Care & Health,BARCHESTER HEALTH CARE,03/10/2016,1850
Bath & North East Somerset Council,80631552,LM6,Nursing Care,P11,Adult Social Care & Health,BARCHESTER HEALTH CARE,03/10/2016,1850
Bath & North East Somerset Council,80631552,LM6,Nursing Care,P11,Adult Social Care & Health,BARCHESTER HEALTH CARE,03/10/2016,1850
Bath & North East Somerset Council,80631552,LM6,Nursing Care,P11,Adult Social Care & Health,BARCHESTER HEALTH CARE,03/10/2016,1850
Bath & North East Somerset Council,80631552,LM6,Nursing Care,P11,Adult Social Care & Health,BARCHESTER HEALTH CARE,03/10/2016,1850
Bath & North East Somerset Council,80631422,LM6,Nursing Care,P11,Adult Social Care & Health,BARCHESTER HEALTH CARE,03/10/2016,1986
Bath & North East Somerset Council,80631422,LM6,Nursing Care,P11,Adult Social Care & Health,BARCHESTER HEALTH CARE,03/10/2016,2100
Bath & North East Somerset Council,80631422,LM6,Nursing Care,P11,Adult Social Care & Health,BARCHESTER HEALTH CARE,03/10/2016,2238
Bath & North East Somerset Council,80631422,LM6,Nursing Care,P11,Adult Social Care & Health,BARCHESTER HEALTH CARE,03/10/2016,2278
Bath & North East Somerset Council,80631552,LM6,Nursing Care,P11,Adult Social Care & Health,BARCHESTER HEALTH CARE,03/10/2016,2348
Bath & North East Somerset Council,80631422,LM6,Nursing Care,P11,Adult Social Care & Health,BARCHESTER HEALTH CARE,03/10/2016,2600
Bath & North East Somerset Council,80631552,LM6,Nursing Care,P11,Adult Social Care & Health,BARCHESTER HEALTH CARE,03/10/2016,2600
Bath & North East Somerset Council,80631457,LM3,Residential Care,P11,Adult Social Care & Health,BARCHESTER HEALTHCARE HOMES LTD,03/10/2016,1032
Bath & North East Somerset Council,80631457,LM6,Nursing Care,P11,Adult Social Care & Health,BARCHESTER HEALTHCARE HOMES LTD,03/10/2016,1152
Bath & North East Somerset Council,80631457,LM6,Nursing Care,P11,Adult Social Care & Health,BARCHESTER HEALTHCARE HOMES LTD,03/10/2016,1152
Bath & North East Somerset Council,80631457,LM6,Nursing Care,P11,Adult Social Care & Health,BARCHESTER HEALTHCARE HOMES LTD,03/10/2016,1326
Bath & North East Somerset Council,80631457,LM3,Residential Care,P11,Adult Social Care & Health,BARCHESTER HEALTHCARE HOMES LTD,03/10/2016,1328
Bath & North East Somerset Council,80631396,LM6,Nursing Care,P11,Adult Social Care & Health,BARCHESTER HEALTHCARE HOMES LTD,03/10/2016,1492
Bath & North East Somerset Council,80631396,LM6,Nursing Care,P11,Adult Social Care & Health,BARCHESTER HEALTHCARE HOMES LTD,03/10/2016,1500
Bath & North East Somerset Council,80631457,LM6,Nursing Care,P11,Adult Social Care & Health,BARCHESTER HEALTHCARE HOMES LTD,03/10/2016,1500
Bath & North East Somerset Council,80631457,LM6,Nursing Care,P11,Adult Social Care & Health,BARCHESTER HEALTHCARE HOMES LTD,03/10/2016,1516
Bath & North East Somerset Council,80631457,LM6,Nursing Care,P11,Adult Social Care & Health,BARCHESTER HEALTHCARE HOMES LTD,03/10/2016,1516
Bath & North East Somerset Council,80631457,LM6,Nursing Care,P11,Adult Social Care & Health,BARCHESTER HEALTHCARE HOMES LTD,03/10/2016,1516
Bath & North East Somerset Council,80631457,LM6,Nursing Care,P11,Adult Social Care & Health,BARCHESTER HEALTHCARE HOMES LTD,03/10/2016,1532
Bath & North East Somerset Council,80631457,LM6,Nursing Care,P11,Adult Social Care & Health,BARCHESTER HEALTHCARE HOMES LTD,03/10/2016,1718
Bath & North East Somerset Council,80631457,LM6,Nursing Care,P11,Adult Social Care & Health,BARCHESTER HEALTHCARE HOMES LTD,03/10/2016,1736
Bath & North East Somerset Council,80631457,LM6,Nursing Care,P11,Adult Social Care & Health,BARCHESTER HEALTHCARE HOMES LTD,03/10/2016,1736
Bath & North East Somerset Council,80631396,LM6,Nursing Care,P11,Adult Social Care & Health,BARCHESTER HEALTHCARE HOMES LTD,03/10/2016,1748
Bath & North East Somerset Council,80631457,LM6,Nursing Care,P11,Adult Social Care & Health,BARCHESTER HEALTHCARE HOMES LTD,03/10/2016,1768
Bath & North East Somerset Council,80631457,LM6,Nursing Care,P11,Adult Social Care & Health,BARCHESTER HEALTHCARE HOMES LTD,03/10/2016,1818
Bath & North East Somerset Council,80631457,LM6,Nursing Care,P11,Adult Social Care & Health,BARCHESTER HEALTHCARE HOMES LTD,03/10/2016,1838
Bath & North East Somerset Council,80631396,LM6,Nursing Care,P11,Adult Social Care & Health,BARCHESTER HEALTHCARE HOMES LTD,03/10/2016,1850
Bath & North East Somerset Council,80631396,LM6,Nursing Care,P11,Adult Social Care & Health,BARCHESTER HEALTHCARE HOMES LTD,03/10/2016,1850
Bath & North East Somerset Council,80631457,LM6,Nursing Care,P11,Adult Social Care & Health,BARCHESTER HEALTHCARE HOMES LTD,03/10/2016,1850
Bath & North East Somerset Council,80631457,LM6,Nursing Care,P11,Adult Social Care & Health,BARCHESTER HEALTHCARE HOMES LTD,03/10/2016,1850
Bath & North East Somerset Council,80631457,LM6,Nursing Care,P11,Adult Social Care & Health,BARCHESTER HEALTHCARE HOMES LTD,03/10/2016,1850
Bath & North East Somerset Council,80631457,LM6,Nursing Care,P11,Adult Social Care & Health,BARCHESTER HEALTHCARE HOMES LTD,03/10/2016,1850
Bath & North East Somerset Council,80631457,LM6,Nursing Care,P11,Adult Social Care & Health,BARCHESTER HEALTHCARE HOMES LTD,03/10/2016,1850
Bath & North East Somerset Council,80631457,LM6,Nursing Care,P11,Adult Social Care & Health,BARCHESTER HEALTHCARE HOMES LTD,03/10/2016,1850
Bath & North East Somerset Council,80631457,LM6,Nursing Care,P11,Adult Social Care & Health,BARCHESTER HEALTHCARE HOMES LTD,03/10/2016,1850
Bath & North East Somerset Council,80631457,LM6,Nursing Care,P11,Adult Social Care & Health,BARCHESTER HEALTHCARE HOMES LTD,03/10/2016,1852
Bath & North East Somerset Council,80631457,LM6,Nursing Care,P11,Adult Social Care & Health,BARCHESTER HEALTHCARE HOMES LTD,03/10/2016,1880
Bath & North East Somerset Council,80631457,LM6,Nursing Care,P11,Adult Social Care & Health,BARCHESTER HEALTHCARE HOMES LTD,03/10/2016,1900
Bath & North East Somerset Council,80631457,LM6,Nursing Care,P11,Adult Social Care & Health,BARCHESTER HEALTHCARE HOMES LTD,03/10/2016,1920
Bath & North East Somerset Council,80631457,LM6,Nursing Care,P11,Adult Social Care & Health,BARCHESTER HEALTHCARE HOMES LTD,03/10/2016,1920
Bath & North East Somerset Council,80631457,LM6,Nursing Care,P11,Adult Social Care & Health,BARCHESTER HEALTHCARE HOMES LTD,03/10/2016,2020
Bath & North East Somerset Council,80631457,LM6,Nursing Care,P11,Adult Social Care & Health,BARCHESTER HEALTHCARE HOMES LTD,03/10/2016,2100
Bath & North East Somerset Council,80631396,LM6,Nursing Care,P11,Adult Social Care & Health,BARCHESTER HEALTHCARE HOMES LTD,03/10/2016,2140
Bath & North East Somerset Council,80631527,LM6,Nursing Care,P11,Adult Social Care & Health,BARCHESTER HEALTHCARE HOMES LTD,03/10/2016,6450
Bath & North East Somerset Council,80631367,LM6,Nursing Care,P11,Adult Social Care & Health,BARKER CHEMICALS LTD T/A ST TERESA'S NH,03/10/2016,312.5
Bath & North East Somerset Council,80631367,LM6,Nursing Care,P11,Adult Social Care & Health,BARKER CHEMICALS LTD T/A ST TERESA'S NH,03/10/2016,312.5
Bath & North East Somerset Council,80631367,LM6,Nursing Care,P11,Adult Social Care & Health,BARKER CHEMICALS LTD T/A ST TERESA'S NH,03/10/2016,312.5
Bath & North East Somerset Council,80631367,LM6,Nursing Care,P11,Adult Social Care & Health,BARKER CHEMICALS LTD T/A ST TERESA'S NH,03/10/2016,312.5
Bath & North East Somerset Council,80631367,LM6,Nursing Care,P11,Adult Social Care & Health,BARKER CHEMICALS LTD T/A ST TERESA'S NH,03/10/2016,312.5
Bath & North East Somerset Council,80631367,LM6,Nursing Care,P11,Adult Social Care & Health,BARKER CHEMICALS LTD T/A ST TERESA'S NH,03/10/2016,312.5
Bath & North East Somerset Council,80631367,LM6,Nursing Care,P11,Adult Social Care & Health,BARKER CHEMICALS LTD T/A ST TERESA'S NH,03/10/2016,312.5
Bath & North East Somerset Council,80631367,LM6,Nursing Care,P11,Adult Social Care & Health,BARKER CHEMICALS LTD T/A ST TERESA'S NH,03/10/2016,312.5
Bath & North East Somerset Council,80631367,LM6,Nursing Care,P11,Adult Social Care & Health,BARKER CHEMICALS LTD T/A ST TERESA'S NH,03/10/2016,312.5
Bath & North East Somerset Council,80631367,LM6,Nursing Care,P11,Adult Social Care & Health,BARKER CHEMICALS LTD T/A ST TERESA'S NH,03/10/2016,312.5
Bath & North East Somerset Council,80631367,LM6,Nursing Care,P11,Adult Social Care & Health,BARKER CHEMICALS LTD T/A ST TERESA'S NH,03/10/2016,312.5
Bath & North East Somerset Council,80631367,LM6,Nursing Care,P11,Adult Social Care & Health,BARKER CHEMICALS LTD T/A ST TERESA'S NH,03/10/2016,312.5
Bath & North East Somerset Council,80631367,LM6,Nursing Care,P11,Adult Social Care & Health,BARKER CHEMICALS LTD T/A ST TERESA'S NH,03/10/2016,312.5
Bath & North East Somerset Council,80631367,LM6,Nursing Care,P11,Adult Social Care & Health,BARKER CHEMICALS LTD T/A ST TERESA'S NH,03/10/2016,312.5
Bath & North East Somerset Council,80631367,LM6,Nursing Care,P11,Adult Social Care & Health,BARKER CHEMICALS LTD T/A ST TERESA'S NH,03/10/2016,312.5
Bath & North East Somerset Council,80631367,LM6,Nursing Care,P11,Adult Social Care & Health,BARKER CHEMICALS LTD T/A ST TERESA'S NH,03/10/2016,312.5
Bath & North East Somerset Council,80631521,LM6,Nursing Care,P11,Adult Social Care & Health,BARKER CHEMICALS LTD T/A ST TERESA'S NH,03/10/2016,1152
Bath & North East Somerset Council,80631521,LM6,Nursing Care,P11,Adult Social Care & Health,BARKER CHEMICALS LTD T/A ST TERESA'S NH,03/10/2016,1152
Bath & North East Somerset Council,80631521,LM6,Nursing Care,P11,Adult Social Care & Health,BARKER CHEMICALS LTD T/A ST TERESA'S NH,03/10/2016,1196
Bath & North East Somerset Council,80631521,LM6,Nursing Care,P11,Adult Social Care & Health,BARKER CHEMICALS LTD T/A ST TERESA'S NH,03/10/2016,1226
Bath & North East Somerset Council,80631521,LM6,Nursing Care,P11,Adult Social Care & Health,BARKER CHEMICALS LTD T/A ST TERESA'S NH,03/10/2016,1226
Bath & North East Somerset Council,80631414,LM6,Nursing Care,P11,Adult Social Care & Health,BARKER CHEMICALS LTD T/A ST TERESA'S NH,03/10/2016,1300
Bath & North East Somerset Council,80631521,LM6,Nursing Care,P11,Adult Social Care & Health,BARKER CHEMICALS LTD T/A ST TERESA'S NH,03/10/2016,1322
Bath & North East Somerset Council,80631521,LM6,Nursing Care,P11,Adult Social Care & Health,BARKER CHEMICALS LTD T/A ST TERESA'S NH,03/10/2016,1328
Bath & North East Somerset Council,80631521,LM6,Nursing Care,P11,Adult Social Care & Health,BARKER CHEMICALS LTD T/A ST TERESA'S NH,03/10/2016,1328
Bath & North East Somerset Council,80631521,LM6,Nursing Care,P11,Adult Social Care & Health,BARKER CHEMICALS LTD T/A ST TERESA'S NH,03/10/2016,1328
Bath & North East Somerset Council,80631521,LM6,Nursing Care,P11,Adult Social Care & Health,BARKER CHEMICALS LTD T/A ST TERESA'S NH,03/10/2016,1378
Bath & North East Somerset Council,80631521,LM6,Nursing Care,P11,Adult Social Care & Health,BARKER CHEMICALS LTD T/A ST TERESA'S NH,03/10/2016,1400
Bath & North East Somerset Council,80631521,LM6,Nursing Care,P11,Adult Social Care & Health,BARKER CHEMICALS LTD T/A ST TERESA'S NH,03/10/2016,1406
Bath & North East Somerset Council,80631521,LM6,Nursing Care,P11,Adult Social Care & Health,BARKER CHEMICALS LTD T/A ST TERESA'S NH,03/10/2016,1414
Bath & North East Somerset Council,80631521,LM6,Nursing Care,P11,Adult Social Care & Health,BARKER CHEMICALS LTD T/A ST TERESA'S NH,03/10/2016,1414
Bath & North East Somerset Council,80631521,LM6,Nursing Care,P11,Adult Social Care & Health,BARKER CHEMICALS LTD T/A ST TERESA'S NH,03/10/2016,1414
Bath & North East Somerset Council,80631521,LM6,Nursing Care,P11,Adult Social Care & Health,BARKER CHEMICALS LTD T/A ST TERESA'S NH,03/10/2016,1430
Bath & North East Somerset Council,80631521,LM6,Nursing Care,P11,Adult Social Care & Health,BARKER CHEMICALS LTD T/A ST TERESA'S NH,03/10/2016,1430
Bath & North East Somerset Council,80631521,LM6,Nursing Care,P11,Adult Social Care & Health,BARKER CHEMICALS LTD T/A ST TERESA'S NH,03/10/2016,1430
Bath & North East Somerset Council,80631521,LM6,Nursing Care,P11,Adult Social Care & Health,BARKER CHEMICALS LTD T/A ST TERESA'S NH,03/10/2016,1430
Bath & North East Somerset Council,80631521,LM6,Nursing Care,P11,Adult Social Care & Health,BARKER CHEMICALS LTD T/A ST TERESA'S NH,03/10/2016,1430
Bath & North East Somerset Council,80631521,LM6,Nursing Care,P11,Adult Social Care & Health,BARKER CHEMICALS LTD T/A ST TERESA'S NH,03/10/2016,1474
Bath & North East Somerset Council,80631521,LM6,Nursing Care,P11,Adult Social Care & Health,BARKER CHEMICALS LTD T/A ST TERESA'S NH,03/10/2016,1480
Bath & North East Somerset Council,80631414,LM6,Nursing Care,P11,Adult Social Care & Health,BARKER CHEMICALS LTD T/A ST TERESA'S NH,03/10/2016,1500
Bath & North East Somerset Council,80631521,LM6,Nursing Care,P11,Adult Social Care & Health,BARKER CHEMICALS LTD T/A ST TERESA'S NH,03/10/2016,1542
Bath & North East Somerset Council,80631521,LM6,Nursing Care,P11,Adult Social Care & Health,BARKER CHEMICALS LTD T/A ST TERESA'S NH,03/10/2016,1592
Bath & North East Somerset Council,80631521,LM6,Nursing Care,P11,Adult Social Care & Health,BARKER CHEMICALS LTD T/A ST TERESA'S NH,03/10/2016,1600
Bath & North East Somerset Council,80631521,LM6,Nursing Care,P11,Adult Social Care & Health,BARKER CHEMICALS LTD T/A ST TERESA'S NH,03/10/2016,1600
Bath & North East Somerset Council,80631521,LM6,Nursing Care,P11,Adult Social Care & Health,BARKER CHEMICALS LTD T/A ST TERESA'S NH,03/10/2016,1616
Bath & North East Somerset Council,80631521,LM6,Nursing Care,P11,Adult Social Care & Health,BARKER CHEMICALS LTD T/A ST TERESA'S NH,03/10/2016,1616
Bath & North East Somerset Council,80631521,LM6,Nursing Care,P11,Adult Social Care & Health,BARKER CHEMICALS LTD T/A ST TERESA'S NH,03/10/2016,1616
Bath & North East Somerset Council,80631521,LM6,Nursing Care,P11,Adult Social Care & Health,BARKER CHEMICALS LTD T/A ST TERESA'S NH,03/10/2016,1626
Bath & North East Somerset Council,80631521,LM6,Nursing Care,P11,Adult Social Care & Health,BARKER CHEMICALS LTD T/A ST TERESA'S NH,03/10/2016,1634
Bath & North East Somerset Council,80631521,LM6,Nursing Care,P11,Adult Social Care & Health,BARKER CHEMICALS LTD T/A ST TERESA'S NH,03/10/2016,1638
Bath & North East Somerset Council,80631521,LM6,Nursing Care,P11,Adult Social Care & Health,BARKER CHEMICALS LTD T/A ST TERESA'S NH,03/10/2016,1650
Bath & North East Somerset Council,80631521,LM6,Nursing Care,P11,Adult Social Care & Health,BARKER CHEMICALS LTD T/A ST TERESA'S NH,03/10/2016,1650
Bath & North East Somerset Council,80631521,LM6,Nursing Care,P11,Adult Social Care & Health,BARKER CHEMICALS LTD T/A ST TERESA'S NH,03/10/2016,1700
Bath & North East Somerset Council,80631521,LM6,Nursing Care,P11,Adult Social Care & Health,BARKER CHEMICALS LTD T/A ST TERESA'S NH,03/10/2016,1700
Bath & North East Somerset Council,80631414,LM6,Nursing Care,P11,Adult Social Care & Health,BARKER CHEMICALS LTD T/A ST TERESA'S NH,03/10/2016,1760
Bath & North East Somerset Council,80631414,LM6,Nursing Care,P11,Adult Social Care & Health,BARKER CHEMICALS LTD T/A ST TERESA'S NH,03/10/2016,1850
Bath & North East Somerset Council,80631414,LM6,Nursing Care,P11,Adult Social Care & Health,BARKER CHEMICALS LTD T/A ST TERESA'S NH,03/10/2016,1882
Bath & North East Somerset Council,80631414,LM6,Nursing Care,P11,Adult Social Care & Health,BARKER CHEMICALS LTD T/A ST TERESA'S NH,03/10/2016,1980
Bath & North East Somerset Council,80631673,LL8,Individualised Budget,P11,Adult Social Care & Health,REDACTED,03/10/2016,984.46
Bath & North East Somerset Council,80631476,LM3,Residential Care,P11,Adult Social Care & Health,BATH MIND,03/10/2016,1518.4
Bath & North East Somerset Council,80631476,LM3,Residential Care,P11,Adult Social Care & Health,BATH MIND,03/10/2016,1518.4
Bath & North East Somerset Council,80631476,LM3,Residential Care,P11,Adult Social Care & Health,BATH MIND,03/10/2016,1518.4
Bath & North East Somerset Council,80631476,LM3,Residential Care,P11,Adult Social Care & Health,BATH MIND,03/10/2016,1518.4
Bath & North East Somerset Council,80631476,LM3,Residential Care,P11,Adult Social Care & Health,BATH MIND,03/10/2016,1518.4
Bath & North East Somerset Council,80631476,LM3,Residential Care,P11,Adult Social Care & Health,BATH MIND,03/10/2016,1518.46
Bath & North East Somerset Council,80631470,LM3,Residential Care,P11,Adult Social Care & Health,BCVS HOMES,03/10/2016,904
Bath & North East Somerset Council,80631470,LM3,Residential Care,P11,Adult Social Care & Health,BCVS HOMES,03/10/2016,904
Bath & North East Somerset Council,80631470,LM3,Residential Care,P11,Adult Social Care & Health,BCVS HOMES,03/10/2016,904
Bath & North East Somerset Council,80631470,LM3,Residential Care,P11,Adult Social Care & Health,BCVS HOMES,03/10/2016,1022
Bath & North East Somerset Council,80631470,LM3,Residential Care,P11,Adult Social Care & Health,BCVS HOMES,03/10/2016,1102
Bath & North East Somerset Council,80631470,LM3,Residential Care,P11,Adult Social Care & Health,BCVS HOMES,03/10/2016,1154
Bath & North East Somerset Council,80631470,LM3,Residential Care,P11,Adult Social Care & Health,BCVS HOMES,03/10/2016,1164
Bath & North East Somerset Council,80631470,LM3,Residential Care,P11,Adult Social Care & Health,BCVS HOMES,03/10/2016,1180
Bath & North East Somerset Council,80631470,LM3,Residential Care,P11,Adult Social Care & Health,BCVS HOMES,03/10/2016,1180
Bath & North East Somerset Council,80631470,LM3,Residential Care,P11,Adult Social Care & Health,BCVS HOMES,03/10/2016,1212
Bath & North East Somerset Council,80631470,LM3,Residential Care,P11,Adult Social Care & Health,BCVS HOMES,03/10/2016,1228
Bath & North East Somerset Council,80631470,LM3,Residential Care,P11,Adult Social Care & Health,BCVS HOMES,03/10/2016,1300
Bath & North East Somerset Council,80631494,LM3,Residential Care,P11,Adult Social Care & Health,BEDROCK LODGE,03/10/2016,1612
Bath & North East Somerset Council,80631517,LM3,Residential Care,P11,Adult Social Care & Health,BELMONT VILLA RESIDENTIAL NURSING HOME LTD,03/10/2016,1124
Bath & North East Somerset Council,80631517,LM6,Nursing Care,P11,Adult Social Care & Health,BELMONT VILLA RESIDENTIAL NURSING HOME LTD,03/10/2016,2042
Bath & North East Somerset Council,80631513,LM3,Residential Care,P11,Adult Social Care & Health,BOLE ALLER HOUSE LTD,03/10/2016,1488
Bath & North East Somerset Council,80631538,LM3,Residential Care,P11,Adult Social Care & Health,BOROUGH CARE LIMITED,03/10/2016,902
Bath & North East Somerset Council,80631561,LM3,Residential Care,P11,Adult Social Care & Health,BRADBURY HOUSE,03/10/2016,4728.12
Bath & North East Somerset Council,80631353,LM6,Nursing Care,P11,Adult Social Care & Health,BRIDGE CARE LTD,03/10/2016,312.5
Bath & North East Somerset Council,80631353,LM6,Nursing Care,P11,Adult Social Care & Health,BRIDGE CARE LTD,03/10/2016,312.5
Bath & North East Somerset Council,80631353,LM6,Nursing Care,P11,Adult Social Care & Health,BRIDGE CARE LTD,03/10/2016,312.5
Bath & North East Somerset Council,80631353,LM6,Nursing Care,P11,Adult Social Care & Health,BRIDGE CARE LTD,03/10/2016,312.5
Bath & North East Somerset Council,80631353,LM6,Nursing Care,P11,Adult Social Care & Health,BRIDGE CARE LTD,03/10/2016,312.5
Bath & North East Somerset Council,80631353,LM6,Nursing Care,P11,Adult Social Care & Health,BRIDGE CARE LTD,03/10/2016,312.5
Bath & North East Somerset Council,80631353,LM6,Nursing Care,P11,Adult Social Care & Health,BRIDGE CARE LTD,03/10/2016,312.5
Bath & North East Somerset Council,80631353,LM6,Nursing Care,P11,Adult Social Care & Health,BRIDGE CARE LTD,03/10/2016,312.5
Bath & North East Somerset Council,80631353,LM6,Nursing Care,P11,Adult Social Care & Health,BRIDGE CARE LTD,03/10/2016,312.5
Bath & North East Somerset Council,80631353,LM6,Nursing Care,P11,Adult Social Care & Health,BRIDGE CARE LTD,03/10/2016,312.5
Bath & North East Somerset Council,80631353,LM6,Nursing Care,P11,Adult Social Care & Health,BRIDGE CARE LTD,03/10/2016,312.5
Bath & North East Somerset Council,80631353,LM6,Nursing Care,P11,Adult Social Care & Health,BRIDGE CARE LTD,03/10/2016,312.5
Bath & North East Somerset Council,80631353,LM6,Nursing Care,P11,Adult Social Care & Health,BRIDGE CARE LTD,03/10/2016,312.5
Bath & North East Somerset Council,80631443,LM3,Residential Care,P11,Adult Social Care & Health,BRIDGE CARE LTD,03/10/2016,904
Bath & North East Somerset Council,80631443,LM3,Residential Care,P11,Adult Social Care & Health,BRIDGE CARE LTD,03/10/2016,904
Bath & North East Somerset Council,80631443,LM3,Residential Care,P11,Adult Social Care & Health,BRIDGE CARE LTD,03/10/2016,904
Bath & North East Somerset Council,80631443,LM3,Residential Care,P11,Adult Social Care & Health,BRIDGE CARE LTD,03/10/2016,904
Bath & North East Somerset Council,80631443,LM6,Nursing Care,P11,Adult Social Care & Health,BRIDGE CARE LTD,03/10/2016,1152
Bath & North East Somerset Council,80631443,LM6,Nursing Care,P11,Adult Social Care & Health,BRIDGE CARE LTD,03/10/2016,1152
Bath & North East Somerset Council,80631443,LM6,Nursing Care,P11,Adult Social Care & Health,BRIDGE CARE LTD,03/10/2016,1152
Bath & North East Somerset Council,80631443,LM6,Nursing Care,P11,Adult Social Care & Health,BRIDGE CARE LTD,03/10/2016,1152
Bath & North East Somerset Council,80631443,LM3,Residential Care,P11,Adult Social Care & Health,BRIDGE CARE LTD,03/10/2016,1212
Bath & North East Somerset Council,80631443,LM6,Nursing Care,P11,Adult Social Care & Health,BRIDGE CARE LTD,03/10/2016,1314
Bath & North East Somerset Council,80631443,LM6,Nursing Care,P11,Adult Social Care & Health,BRIDGE CARE LTD,03/10/2016,1634
Bath & North East Somerset Council,80631389,LM6,Nursing Care,P11,Adult Social Care & Health,BRIDGE CARE LTD,03/10/2016,1750
Bath & North East Somerset Council,80631389,LM6,Nursing Care,P11,Adult Social Care & Health,BRIDGE CARE LTD,03/10/2016,1750
Bath & North East Somerset Council,80631444,LM3,Residential Care,P11,Adult Social Care & Health,BRIGHTBOW LODGE,03/10/2016,1280
Bath & North East Somerset Council,80631444,LM3,Residential Care,P11,Adult Social Care & Health,BRIGHTBOW LODGE,03/10/2016,1292
Bath & North East Somerset Council,80631444,LM6,Nursing Care,P11,Adult Social Care & Health,BRIGHTBOW LODGE,03/10/2016,1374
Bath & North East Somerset Council,80631444,LM6,Nursing Care,P11,Adult Social Care & Health,BRIGHTBOW LODGE,03/10/2016,1374
Bath & North East Somerset Council,80631444,LM3,Residential Care,P11,Adult Social Care & Health,BRIGHTBOW LODGE,03/10/2016,1482
Bath & North East Somerset Council,80631403,LM6,Nursing Care,P11,Adult Social Care & Health,BROOKDALE HEALTHCARE LTD,03/10/2016,6468
Bath & North East Somerset Council,80631530,LM3,Residential Care,P11,Adult Social Care & Health,BROUGHTON LODGE CARE HOME,03/10/2016,904
Bath & North East Somerset Council,80631566,LM3,Residential Care,P11,Adult Social Care & Health,BRUNEL CARE HOME,03/10/2016,1800
Bath & North East Somerset Council,80631566,LM6,Nursing Care,P11,Adult Social Care & Health,BRUNEL CARE HOME,03/10/2016,1800
Bath & North East Somerset Council,80631566,LM6,Nursing Care,P11,Adult Social Care & Health,BRUNEL CARE HOME,03/10/2016,1828
Bath & North East Somerset Council,80631566,LM6,Nursing Care,P11,Adult Social Care & Health,BRUNEL CARE HOME,03/10/2016,1828
Bath & North East Somerset Council,80631566,LM6,Nursing Care,P11,Adult Social Care & Health,BRUNEL CARE HOME,03/10/2016,1838
Bath & North East Somerset Council,80631487,LM6,Nursing Care,P11,Adult Social Care & Health,BUPA CARE SERVICES,03/10/2016,1152
Bath & North East Somerset Council,80631497,LM6,Nursing Care,P11,Adult Social Care & Health,BUPA CARE SERVICES BACS RECEIPTS,03/10/2016,1196
Bath & North East Somerset Council,80631357,LM6,Nursing Care,P11,Adult Social Care & Health,BYBROOK HOUSE,03/10/2016,312.5
Bath & North East Somerset Council,80631357,LM6,Nursing Care,P11,Adult Social Care & Health,BYBROOK HOUSE,03/10/2016,312.5
Bath & North East Somerset Council,80631357,LM6,Nursing Care,P11,Adult Social Care & Health,BYBROOK HOUSE,03/10/2016,312.5
Bath & North East Somerset Council,80631357,LM6,Nursing Care,P11,Adult Social Care & Health,BYBROOK HOUSE,03/10/2016,312.5
Bath & North East Somerset Council,80631357,LM6,Nursing Care,P11,Adult Social Care & Health,BYBROOK HOUSE,03/10/2016,312.5
Bath & North East Somerset Council,80631357,LM6,Nursing Care,P11,Adult Social Care & Health,BYBROOK HOUSE,03/10/2016,312.5
Bath & North East Somerset Council,80631357,LM6,Nursing Care,P11,Adult Social Care & Health,BYBROOK HOUSE,03/10/2016,312.5
Bath & North East Somerset Council,80631393,LM6,Nursing Care,P11,Adult Social Care & Health,BYBROOK HOUSE,03/10/2016,1971.88
Bath & North East Somerset Council,80631428,LM6,Nursing Care,P11,Adult Social Care & Health,CAMBIAN HEALTHCARE LTD,03/10/2016,4640.1
Bath & North East Somerset Council,80631428,LM6,Nursing Care,P11,Adult Social Care & Health,CAMBIAN HEALTHCARE LTD,03/10/2016,4739
Bath & North East Somerset Council,80631428,LM6,Nursing Care,P11,Adult Social Care & Health,CAMBIAN HEALTHCARE LTD,03/10/2016,5300.04
Bath & North East Somerset Council,80631428,LM6,Nursing Care,P11,Adult Social Care & Health,CAMBIAN HEALTHCARE LTD,03/10/2016,6300
Bath & North East Somerset Council,80631428,LM6,Nursing Care,P11,Adult Social Care & Health,CAMBIAN HEALTHCARE LTD,03/10/2016,6674.8
Bath & North East Somerset Council,80631532,LM3,Residential Care,P11,Adult Social Care & Health,CAMPHILL DEVON COMMUNITY LTD,03/10/2016,1718
Bath & North East Somerset Council,80631368,LM6,Nursing Care,P11,Adult Social Care & Health,CARE FIRST CARE HOMES LTD,03/10/2016,312.5
Bath & North East Somerset Council,80631368,LM6,Nursing Care,P11,Adult Social Care & Health,CARE FIRST CARE HOMES LTD,03/10/2016,312.5
Bath & North East Somerset Council,80631368,LM6,Nursing Care,P11,Adult Social Care & Health,CARE FIRST CARE HOMES LTD,03/10/2016,312.5
Bath & North East Somerset Council,80631368,LM6,Nursing Care,P11,Adult Social Care & Health,CARE FIRST CARE HOMES LTD,03/10/2016,312.5
Bath & North East Somerset Council,80631368,LM6,Nursing Care,P11,Adult Social Care & Health,CARE FIRST CARE HOMES LTD,03/10/2016,312.5
Bath & North East Somerset Council,80631368,LM6,Nursing Care,P11,Adult Social Care & Health,CARE FIRST CARE HOMES LTD,03/10/2016,312.5
Bath & North East Somerset Council,80631368,LM6,Nursing Care,P11,Adult Social Care & Health,CARE FIRST CARE HOMES LTD,03/10/2016,312.5
Bath & North East Somerset Council,80631368,LM6,Nursing Care,P11,Adult Social Care & Health,CARE FIRST CARE HOMES LTD,03/10/2016,312.5
Bath & North East Somerset Council,80631531,LM6,Nursing Care,P11,Adult Social Care & Health,CARE FIRST CARE HOMES LTD,03/10/2016,1152
Bath & North East Somerset Council,80631531,LM6,Nursing Care,P11,Adult Social Care & Health,CARE FIRST CARE HOMES LTD,03/10/2016,1152
Bath & North East Somerset Council,80631480,LM6,Nursing Care,P11,Adult Social Care & Health,CARE FIRST CARE HOMES LTD,03/10/2016,1206
Bath & North East Somerset Council,80631531,LM3,Residential Care,P11,Adult Social Care & Health,CARE FIRST CARE HOMES LTD,03/10/2016,1328
Bath & North East Somerset Council,80631531,LM3,Residential Care,P11,Adult Social Care & Health,CARE FIRST CARE HOMES LTD,03/10/2016,1422
Bath & North East Somerset Council,80631531,LM6,Nursing Care,P11,Adult Social Care & Health,CARE FIRST CARE HOMES LTD,03/10/2016,1892
Bath & North East Somerset Council,80631531,LM6,Nursing Care,P11,Adult Social Care & Health,CARE FIRST CARE HOMES LTD,03/10/2016,1940
Bath & North East Somerset Council,80631416,LM6,Nursing Care,P11,Adult Social Care & Health,CARE FIRST CARE HOMES LTD,03/10/2016,2357.2
Bath & North East Somerset Council,80631427,LM6,Nursing Care,P11,Adult Social Care & Health,CARE UK COMMUNITY PARTNERSHIP LTD,03/10/2016,1839.72
Bath & North East Somerset Council,80631567,LM3,Residential Care,P11,Adult Social Care & Health,CARE UK COMMUNITY PARTNERSHIPS LTD,03/10/2016,992
Bath & North East Somerset Council,80631640,LL8,Individualised Budget,P11,Adult Social Care & Health,REDACTED,03/10/2016,1701.62
Bath & North East Somerset Council,80631369,LM6,Nursing Care,P11,Adult Social Care & Health,CEDAR CARE HOMES LTD,03/10/2016,312.5
Bath & North East Somerset Council,80631369,LM6,Nursing Care,P11,Adult Social Care & Health,CEDAR CARE HOMES LTD,03/10/2016,312.5
Bath & North East Somerset Council,80631369,LM6,Nursing Care,P11,Adult Social Care & Health,CEDAR CARE HOMES LTD,03/10/2016,312.5
Bath & North East Somerset Council,80631369,LM6,Nursing Care,P11,Adult Social Care & Health,CEDAR CARE HOMES LTD,03/10/2016,312.5
Bath & North East Somerset Council,80631369,LM6,Nursing Care,P11,Adult Social Care & Health,CEDAR CARE HOMES LTD,03/10/2016,312.5
Bath & North East Somerset Council,80631369,LM6,Nursing Care,P11,Adult Social Care & Health,CEDAR CARE HOMES LTD,03/10/2016,312.5
Bath & North East Somerset Council,80631369,LM6,Nursing Care,P11,Adult Social Care & Health,CEDAR CARE HOMES LTD,03/10/2016,312.5
Bath & North East Somerset Council,80631369,LM6,Nursing Care,P11,Adult Social Care & Health,CEDAR CARE HOMES LTD,03/10/2016,312.5
Bath & North East Somerset Council,80631369,LM6,Nursing Care,P11,Adult Social Care & Health,CEDAR CARE HOMES LTD,03/10/2016,312.5
Bath & North East Somerset Council,80631369,LM6,Nursing Care,P11,Adult Social Care & Health,CEDAR CARE HOMES LTD,03/10/2016,312.5
Bath & North East Somerset Council,80631369,LM6,Nursing Care,P11,Adult Social Care & Health,CEDAR CARE HOMES LTD,03/10/2016,312.5
Bath & North East Somerset Council,80631369,LM6,Nursing Care,P11,Adult Social Care & Health,CEDAR CARE HOMES LTD,03/10/2016,312.5
Bath & North East Somerset Council,80631369,LM6,Nursing Care,P11,Adult Social Care & Health,CEDAR CARE HOMES LTD,03/10/2016,312.5
Bath & North East Somerset Council,80631369,LM6,Nursing Care,P11,Adult Social Care & Health,CEDAR CARE HOMES LTD,03/10/2016,312.5
Bath & North East Somerset Council,80631369,LM6,Nursing Care,P11,Adult Social Care & Health,CEDAR CARE HOMES LTD,03/10/2016,312.5
Bath & North East Somerset Council,80631369,LM6,Nursing Care,P11,Adult Social Care & Health,CEDAR CARE HOMES LTD,03/10/2016,312.5
Bath & North East Somerset Council,80631369,LM6,Nursing Care,P11,Adult Social Care & Health,CEDAR CARE HOMES LTD,03/10/2016,312.5
Bath & North East Somerset Council,80631369,LM6,Nursing Care,P11,Adult Social Care & Health,CEDAR CARE HOMES LTD,03/10/2016,312.5
Bath & North East Somerset Council,80631369,LM6,Nursing Care,P11,Adult Social Care & Health,CEDAR CARE HOMES LTD,03/10/2016,312.5
Bath & North East Somerset Council,80631369,LM6,Nursing Care,P11,Adult Social Care & Health,CEDAR CARE HOMES LTD,03/10/2016,312.5
Bath & North East Somerset Council,80631369,LM6,Nursing Care,P11,Adult Social Care & Health,CEDAR CARE HOMES LTD,03/10/2016,312.5
Bath & North East Somerset Council,80631369,LM6,Nursing Care,P11,Adult Social Care & Health,CEDAR CARE HOMES LTD,03/10/2016,312.5
Bath & North East Somerset Council,80631369,LM6,Nursing Care,P11,Adult Social Care & Health,CEDAR CARE HOMES LTD,03/10/2016,312.5
Bath & North East Somerset Council,80631369,LM6,Nursing Care,P11,Adult Social Care & Health,CEDAR CARE HOMES LTD,03/10/2016,312.5
Bath & North East Somerset Council,80631369,LM6,Nursing Care,P11,Adult Social Care & Health,CEDAR CARE HOMES LTD,03/10/2016,312.5
Bath & North East Somerset Council,80631369,LM6,Nursing Care,P11,Adult Social Care & Health,CEDAR CARE HOMES LTD,03/10/2016,312.5
Bath & North East Somerset Council,80631369,LM6,Nursing Care,P11,Adult Social Care & Health,CEDAR CARE HOMES LTD,03/10/2016,312.5
Bath & North East Somerset Council,80631498,LM3,Residential Care,P11,Adult Social Care & Health,CEDAR CARE HOMES LTD,03/10/2016,972
Bath & North East Somerset Council,80631498,LM3,Residential Care,P11,Adult Social Care & Health,CEDAR CARE HOMES LTD,03/10/2016,992
Bath & North East Somerset Council,80631498,LM3,Residential Care,P11,Adult Social Care & Health,CEDAR CARE HOMES LTD,03/10/2016,1022
Bath & North East Somerset Council,80631498,LM3,Residential Care,P11,Adult Social Care & Health,CEDAR CARE HOMES LTD,03/10/2016,1042
Bath & North East Somerset Council,80631498,LM3,Residential Care,P11,Adult Social Care & Health,CEDAR CARE HOMES LTD,03/10/2016,1042
Bath & North East Somerset Council,80631498,LM3,Residential Care,P11,Adult Social Care & Health,CEDAR CARE HOMES LTD,03/10/2016,1042
Bath & North East Somerset Council,80631498,LM3,Residential Care,P11,Adult Social Care & Health,CEDAR CARE HOMES LTD,03/10/2016,1100
Bath & North East Somerset Council,80631498,LM3,Residential Care,P11,Adult Social Care & Health,CEDAR CARE HOMES LTD,03/10/2016,1124
Bath & North East Somerset Council,80631505,LM3,Residential Care,P11,Adult Social Care & Health,CEDAR CARE HOMES LTD,03/10/2016,1162
Bath & North East Somerset Council,80631505,LM6,Nursing Care,P11,Adult Social Care & Health,CEDAR CARE HOMES LTD,03/10/2016,1196
Bath & North East Somerset Council,80631505,LM6,Nursing Care,P11,Adult Social Care & Health,CEDAR CARE HOMES LTD,03/10/2016,1226
Bath & North East Somerset Council,80631406,LM6,Nursing Care,P11,Adult Social Care & Health,CEDAR CARE HOMES LTD,03/10/2016,1300
Bath & North East Somerset Council,80631505,LM6,Nursing Care,P11,Adult Social Care & Health,CEDAR CARE HOMES LTD,03/10/2016,1328
Bath & North East Somerset Council,80631533,LM6,Nursing Care,P11,Adult Social Care & Health,CEDAR CARE HOMES LTD,03/10/2016,1430
Bath & North East Somerset Council,80631505,LM6,Nursing Care,P11,Adult Social Care & Health,CEDAR CARE HOMES LTD,03/10/2016,1532
Bath & North East Somerset Council,80631533,LM6,Nursing Care,P11,Adult Social Care & Health,CEDAR CARE HOMES LTD,03/10/2016,1532
Bath & North East Somerset Council,80631417,LM6,Nursing Care,P11,Adult Social Care & Health,CEDAR CARE HOMES LTD,03/10/2016,1600
Bath & North East Somerset Council,80631417,LM6,Nursing Care,P11,Adult Social Care & Health,CEDAR CARE HOMES LTD,03/10/2016,1600
Bath & North East Somerset Council,80631533,LM6,Nursing Care,P11,Adult Social Care & Health,CEDAR CARE HOMES LTD,03/10/2016,1616
Bath & North East Somerset Council,80631533,LM6,Nursing Care,P11,Adult Social Care & Health,CEDAR CARE HOMES LTD,03/10/2016,1616
Bath & North East Somerset Council,80631406,LM6,Nursing Care,P11,Adult Social Care & Health,CEDAR CARE HOMES LTD,03/10/2016,1620
Bath & North East Somerset Council,80631406,LM6,Nursing Care,P11,Adult Social Care & Health,CEDAR CARE HOMES LTD,03/10/2016,1620
Bath & North East Somerset Council,80631533,LM6,Nursing Care,P11,Adult Social Care & Health,CEDAR CARE HOMES LTD,03/10/2016,1634
Bath & North East Somerset Council,80631505,LM6,Nursing Care,P11,Adult Social Care & Health,CEDAR CARE HOMES LTD,03/10/2016,1638
Bath & North East Somerset Council,80631505,LM6,Nursing Care,P11,Adult Social Care & Health,CEDAR CARE HOMES LTD,03/10/2016,1654
Bath & North East Somerset Council,80631505,LM6,Nursing Care,P11,Adult Social Care & Health,CEDAR CARE HOMES LTD,03/10/2016,1654
Bath & North East Somerset Council,80631505,LM6,Nursing Care,P11,Adult Social Care & Health,CEDAR CARE HOMES LTD,03/10/2016,1654
Bath & North East Somerset Council,80631505,LM6,Nursing Care,P11,Adult Social Care & Health,CEDAR CARE HOMES LTD,03/10/2016,1700
Bath & North East Somerset Council,80631505,LM6,Nursing Care,P11,Adult Social Care & Health,CEDAR CARE HOMES LTD,03/10/2016,1700
Bath & North East Somerset Council,80631417,LM6,Nursing Care,P11,Adult Social Care & Health,CEDAR CARE HOMES LTD,03/10/2016,1700
Bath & North East Somerset Council,80631533,LM6,Nursing Care,P11,Adult Social Care & Health,CEDAR CARE HOMES LTD,03/10/2016,1705.34
Bath & North East Somerset Council,80631505,LM6,Nursing Care,P11,Adult Social Care & Health,CEDAR CARE HOMES LTD,03/10/2016,1718
Bath & North East Somerset Council,80631505,LM6,Nursing Care,P11,Adult Social Care & Health,CEDAR CARE HOMES LTD,03/10/2016,1718
Bath & North East Somerset Council,80631505,LM6,Nursing Care,P11,Adult Social Care & Health,CEDAR CARE HOMES LTD,03/10/2016,1718
Bath & North East Somerset Council,80631505,LM6,Nursing Care,P11,Adult Social Care & Health,CEDAR CARE HOMES LTD,03/10/2016,1718
Bath & North East Somerset Council,80631533,LM6,Nursing Care,P11,Adult Social Care & Health,CEDAR CARE HOMES LTD,03/10/2016,1718
Bath & North East Somerset Council,80631533,LM6,Nursing Care,P11,Adult Social Care & Health,CEDAR CARE HOMES LTD,03/10/2016,1718
Bath & North East Somerset Council,80631533,LM6,Nursing Care,P11,Adult Social Care & Health,CEDAR CARE HOMES LTD,03/10/2016,1718
Bath & North East Somerset Council,80631533,LM6,Nursing Care,P11,Adult Social Care & Health,CEDAR CARE HOMES LTD,03/10/2016,1850
Bath & North East Somerset Council,80631505,LM6,Nursing Care,P11,Adult Social Care & Health,CEDAR CARE HOMES LTD,03/10/2016,1878
Bath & North East Somerset Council,80631406,LM6,Nursing Care,P11,Adult Social Care & Health,CEDAR CARE HOMES LTD,03/10/2016,1920
Bath & North East Somerset Council,80631356,LM6,Nursing Care,P11,Adult Social Care & Health,CEDAR PARK NURSING HOME,03/10/2016,312.5
Bath & North East Somerset Council,80631356,LM6,Nursing Care,P11,Adult Social Care & Health,CEDAR PARK NURSING HOME,03/10/2016,312.5
Bath & North East Somerset Council,80631356,LM6,Nursing Care,P11,Adult Social Care & Health,CEDAR PARK NURSING HOME,03/10/2016,312.5
Bath & North East Somerset Council,80631356,LM6,Nursing Care,P11,Adult Social Care & Health,CEDAR PARK NURSING HOME,03/10/2016,312.5
Bath & North East Somerset Council,80631356,LM6,Nursing Care,P11,Adult Social Care & Health,CEDAR PARK NURSING HOME,03/10/2016,312.5
Bath & North East Somerset Council,80631356,LM6,Nursing Care,P11,Adult Social Care & Health,CEDAR PARK NURSING HOME,03/10/2016,312.5
Bath & North East Somerset Council,80631356,LM6,Nursing Care,P11,Adult Social Care & Health,CEDAR PARK NURSING HOME,03/10/2016,312.5
Bath & North East Somerset Council,80631356,LM6,Nursing Care,P11,Adult Social Care & Health,CEDAR PARK NURSING HOME,03/10/2016,312.5
Bath & North East Somerset Council,80631356,LM6,Nursing Care,P11,Adult Social Care & Health,CEDAR PARK NURSING HOME,03/10/2016,312.5
Bath & North East Somerset Council,80631448,LM3,Residential Care,P11,Adult Social Care & Health,CEDAR PARK NURSING HOME,03/10/2016,992
Bath & North East Somerset Council,80631448,LM6,Nursing Care,P11,Adult Social Care & Health,CEDAR PARK NURSING HOME,03/10/2016,1152
Bath & North East Somerset Council,80631448,LM6,Nursing Care,P11,Adult Social Care & Health,CEDAR PARK NURSING HOME,03/10/2016,1152
Bath & North East Somerset Council,80631448,LM6,Nursing Care,P11,Adult Social Care & Health,CEDAR PARK NURSING HOME,03/10/2016,1152
Bath & North East Somerset Council,80631448,LM6,Nursing Care,P11,Adult Social Care & Health,CEDAR PARK NURSING HOME,03/10/2016,1152
Bath & North East Somerset Council,80631448,LM6,Nursing Care,P11,Adult Social Care & Health,CEDAR PARK NURSING HOME,03/10/2016,1152
Bath & North East Somerset Council,80631448,LM6,Nursing Care,P11,Adult Social Care & Health,CEDAR PARK NURSING HOME,03/10/2016,1152
Bath & North East Somerset Council,80631448,LM6,Nursing Care,P11,Adult Social Care & Health,CEDAR PARK NURSING HOME,03/10/2016,1152
Bath & North East Somerset Council,80631448,LM6,Nursing Care,P11,Adult Social Care & Health,CEDAR PARK NURSING HOME,03/10/2016,1152
Bath & North East Somerset Council,80631448,LM6,Nursing Care,P11,Adult Social Care & Health,CEDAR PARK NURSING HOME,03/10/2016,1152
Bath & North East Somerset Council,80631448,LM6,Nursing Care,P11,Adult Social Care & Health,CEDAR PARK NURSING HOME,03/10/2016,1152
Bath & North East Somerset Council,80631448,LM6,Nursing Care,P11,Adult Social Care & Health,CEDAR PARK NURSING HOME,03/10/2016,1152
Bath & North East Somerset Council,80631448,LM6,Nursing Care,P11,Adult Social Care & Health,CEDAR PARK NURSING HOME,03/10/2016,1152
Bath & North East Somerset Council,80631448,LM6,Nursing Care,P11,Adult Social Care & Health,CEDAR PARK NURSING HOME,03/10/2016,1212
Bath & North East Somerset Council,80631448,LM6,Nursing Care,P11,Adult Social Care & Health,CEDAR PARK NURSING HOME,03/10/2016,1212
Bath & North East Somerset Council,80631448,LM6,Nursing Care,P11,Adult Social Care & Health,CEDAR PARK NURSING HOME,03/10/2016,1230
Bath & North East Somerset Council,80631448,LM6,Nursing Care,P11,Adult Social Care & Health,CEDAR PARK NURSING HOME,03/10/2016,1328
Bath & North East Somerset Council,80631448,LM6,Nursing Care,P11,Adult Social Care & Health,CEDAR PARK NURSING HOME,03/10/2016,1328
Bath & North East Somerset Council,80631448,LM6,Nursing Care,P11,Adult Social Care & Health,CEDAR PARK NURSING HOME,03/10/2016,1328
Bath & North East Somerset Council,80631448,LM6,Nursing Care,P11,Adult Social Care & Health,CEDAR PARK NURSING HOME,03/10/2016,1378
Bath & North East Somerset Council,80631448,LM6,Nursing Care,P11,Adult Social Care & Health,CEDAR PARK NURSING HOME,03/10/2016,1414
Bath & North East Somerset Council,80631448,LM6,Nursing Care,P11,Adult Social Care & Health,CEDAR PARK NURSING HOME,03/10/2016,1430
Bath & North East Somerset Council,80631392,LM6,Nursing Care,P11,Adult Social Care & Health,CEDAR PARK NURSING HOME,03/10/2016,1540
Bath & North East Somerset Council,80631392,LM6,Nursing Care,P11,Adult Social Care & Health,CEDAR PARK NURSING HOME,03/10/2016,1550
Bath & North East Somerset Council,80631448,LM6,Nursing Care,P11,Adult Social Care & Health,CEDAR PARK NURSING HOME,03/10/2016,1566
Bath & North East Somerset Council,80631448,LM6,Nursing Care,P11,Adult Social Care & Health,CEDAR PARK NURSING HOME,03/10/2016,1566
Bath & North East Somerset Council,80631448,LM6,Nursing Care,P11,Adult Social Care & Health,CEDAR PARK NURSING HOME,03/10/2016,1566
Bath & North East Somerset Council,80631448,LM6,Nursing Care,P11,Adult Social Care & Health,CEDAR PARK NURSING HOME,03/10/2016,1600
Bath & North East Somerset Council,80631448,LM6,Nursing Care,P11,Adult Social Care & Health,CEDAR PARK NURSING HOME,03/10/2016,1600
Bath & North East Somerset Council,80631448,LM6,Nursing Care,P11,Adult Social Care & Health,CEDAR PARK NURSING HOME,03/10/2016,1616
Bath & North East Somerset Council,80631448,LM6,Nursing Care,P11,Adult Social Care & Health,CEDAR PARK NURSING HOME,03/10/2016,1668
Bath & North East Somerset Council,80631448,LM6,Nursing Care,P11,Adult Social Care & Health,CEDAR PARK NURSING HOME,03/10/2016,1690
Bath & North East Somerset Council,80631448,LM6,Nursing Care,P11,Adult Social Care & Health,CEDAR PARK NURSING HOME,03/10/2016,1742
Bath & North East Somerset Council,80631448,LM6,Nursing Care,P11,Adult Social Care & Health,CEDAR PARK NURSING HOME,03/10/2016,2100
Bath & North East Somerset Council,80631537,LM6,Nursing Care,P11,Adult Social Care & Health,CEDARS CARE (WINSCOMBE HALL) LTD,03/10/2016,1218
Bath & North East Somerset Council,80631542,LM3,Residential Care,P11,Adult Social Care & Health,CEPEN LODGE CARE HOME,03/10/2016,1328
Bath & North East Somerset Council,80631584,LM3,Residential Care,P11,Adult Social Care & Health,CHASE LODGE CARE HOME,03/10/2016,1446
Bath & North East Somerset Council,80631370,LM6,Nursing Care,P11,Adult Social Care & Health,CHERRY GARDEN PROPERTIES LTD,03/10/2016,312.5
Bath & North East Somerset Council,80631370,LM6,Nursing Care,P11,Adult Social Care & Health,CHERRY GARDEN PROPERTIES LTD,03/10/2016,312.5
Bath & North East Somerset Council,80631370,LM6,Nursing Care,P11,Adult Social Care & Health,CHERRY GARDEN PROPERTIES LTD,03/10/2016,312.5
Bath & North East Somerset Council,80631370,LM6,Nursing Care,P11,Adult Social Care & Health,CHERRY GARDEN PROPERTIES LTD,03/10/2016,312.5
Bath & North East Somerset Council,80631370,LM6,Nursing Care,P11,Adult Social Care & Health,CHERRY GARDEN PROPERTIES LTD,03/10/2016,312.5
Bath & North East Somerset Council,80631370,LM6,Nursing Care,P11,Adult Social Care & Health,CHERRY GARDEN PROPERTIES LTD,03/10/2016,312.5
Bath & North East Somerset Council,80631370,LM6,Nursing Care,P11,Adult Social Care & Health,CHERRY GARDEN PROPERTIES LTD,03/10/2016,312.5
Bath & North East Somerset Council,80631370,LM6,Nursing Care,P11,Adult Social Care & Health,CHERRY GARDEN PROPERTIES LTD,03/10/2016,312.5
Bath & North East Somerset Council,80631370,LM6,Nursing Care,P11,Adult Social Care & Health,CHERRY GARDEN PROPERTIES LTD,03/10/2016,312.5
Bath & North East Somerset Council,80631370,LM6,Nursing Care,P11,Adult Social Care & Health,CHERRY GARDEN PROPERTIES LTD,03/10/2016,312.5
Bath & North East Somerset Council,80631370,LM6,Nursing Care,P11,Adult Social Care & Health,CHERRY GARDEN PROPERTIES LTD,03/10/2016,312.5
Bath & North East Somerset Council,80631370,LM6,Nursing Care,P11,Adult Social Care & Health,CHERRY GARDEN PROPERTIES LTD,03/10/2016,312.5
Bath & North East Somerset Council,80631370,LM6,Nursing Care,P11,Adult Social Care & Health,CHERRY GARDEN PROPERTIES LTD,03/10/2016,312.5
Bath & North East Somerset Council,10823492,HA2,Servicing,P13,Economic Development,HEIGHTSAFE SYSTEMS LTD,03/10/2016,395
Bath & North East Somerset Council,10823492,HA2,Servicing,P13,Economic Development,HEIGHTSAFE SYSTEMS LTD,03/10/2016,395
Bath & North East Somerset Council,80631370,LM6,Nursing Care,P11,Adult Social Care & Health,CHERRY GARDEN PROPERTIES LTD,03/10/2016,1071.43
Bath & North East Somerset Council,80631551,LM6,Nursing Care,P11,Adult Social Care & Health,CHERRY GARDEN PROPERTIES LTD,03/10/2016,1152
Bath & North East Somerset Council,80631551,LM6,Nursing Care,P11,Adult Social Care & Health,CHERRY GARDEN PROPERTIES LTD,03/10/2016,1152
Bath & North East Somerset Council,80631551,LM6,Nursing Care,P11,Adult Social Care & Health,CHERRY GARDEN PROPERTIES LTD,03/10/2016,1152
Bath & North East Somerset Council,80631551,LM6,Nursing Care,P11,Adult Social Care & Health,CHERRY GARDEN PROPERTIES LTD,03/10/2016,1152
Bath & North East Somerset Council,80631551,LM6,Nursing Care,P11,Adult Social Care & Health,CHERRY GARDEN PROPERTIES LTD,03/10/2016,1152
Bath & North East Somerset Council,80631551,LM6,Nursing Care,P11,Adult Social Care & Health,CHERRY GARDEN PROPERTIES LTD,03/10/2016,1152
Bath & North East Somerset Council,80631551,LM6,Nursing Care,P11,Adult Social Care & Health,CHERRY GARDEN PROPERTIES LTD,03/10/2016,1152
Bath & North East Somerset Council,80631551,LM6,Nursing Care,P11,Adult Social Care & Health,CHERRY GARDEN PROPERTIES LTD,03/10/2016,1152
Bath & North East Somerset Council,10823512,LF1,Printing/Design,P10,Finance & Efficiency,TOPLINK ENVELOPES LTD,03/10/2016,418.8
Bath & North East Somerset Council,80631551,LM3,Residential Care,P11,Adult Social Care & Health,CHERRY GARDEN PROPERTIES LTD,03/10/2016,1550
Bath & North East Somerset Council,80631551,LM3,Residential Care,P11,Adult Social Care & Health,CHERRY GARDEN PROPERTIES LTD,03/10/2016,1550
Bath & North East Somerset Council,80631551,LM6,Nursing Care,P11,Adult Social Care & Health,CHERRY GARDEN PROPERTIES LTD,03/10/2016,1718
Bath & North East Somerset Council,80631421,LM6,Nursing Care,P11,Adult Social Care & Health,CHERRY GARDEN PROPERTIES LTD,03/10/2016,1770
Bath & North East Somerset Council,80631451,LM3,Residential Care,P11,Adult Social Care & Health,CHESCOMBE TRUST,03/10/2016,2701.94
Bath & North East Somerset Council,80631562,LM6,Nursing Care,P11,Adult Social Care & Health,CHOLWELL CARE (NAILSEA) LTD,03/10/2016,1634
Bath & North East Somerset Council,80631352,LM6,Nursing Care,P11,Adult Social Care & Health,CHOLWELL HOUSE NURSING HOME,03/10/2016,22.32
Bath & North East Somerset Council,80631488,LM9,Day Care,P11,Adult Social Care & Health,S.W.A.L.L.O.W. LTD,03/10/2016,469.38
Bath & North East Somerset Council,80631352,LM6,Nursing Care,P11,Adult Social Care & Health,CHOLWELL HOUSE NURSING HOME,03/10/2016,312.5
Bath & North East Somerset Council,80631352,LM6,Nursing Care,P11,Adult Social Care & Health,CHOLWELL HOUSE NURSING HOME,03/10/2016,312.5
Bath & North East Somerset Council,80631352,LM6,Nursing Care,P11,Adult Social Care & Health,CHOLWELL HOUSE NURSING HOME,03/10/2016,312.5
Bath & North East Somerset Council,80631352,LM6,Nursing Care,P11,Adult Social Care & Health,CHOLWELL HOUSE NURSING HOME,03/10/2016,312.5
Bath & North East Somerset Council,80631352,LM6,Nursing Care,P11,Adult Social Care & Health,CHOLWELL HOUSE NURSING HOME,03/10/2016,312.5
Bath & North East Somerset Council,80631352,LM6,Nursing Care,P11,Adult Social Care & Health,CHOLWELL HOUSE NURSING HOME,03/10/2016,312.5
Bath & North East Somerset Council,80631352,LM6,Nursing Care,P11,Adult Social Care & Health,CHOLWELL HOUSE NURSING HOME,03/10/2016,312.5
Bath & North East Somerset Council,80631352,LM6,Nursing Care,P11,Adult Social Care & Health,CHOLWELL HOUSE NURSING HOME,03/10/2016,312.5
Bath & North East Somerset Council,80631352,LM6,Nursing Care,P11,Adult Social Care & Health,CHOLWELL HOUSE NURSING HOME,03/10/2016,312.5
Bath & North East Somerset Council,80631352,LM6,Nursing Care,P11,Adult Social Care & Health,CHOLWELL HOUSE NURSING HOME,03/10/2016,312.5
Bath & North East Somerset Council,80631352,LM6,Nursing Care,P11,Adult Social Care & Health,CHOLWELL HOUSE NURSING HOME,03/10/2016,312.5
Bath & North East Somerset Council,80631352,LM6,Nursing Care,P11,Adult Social Care & Health,CHOLWELL HOUSE NURSING HOME,03/10/2016,312.5
Bath & North East Somerset Council,80631352,LM6,Nursing Care,P11,Adult Social Care & Health,CHOLWELL HOUSE NURSING HOME,03/10/2016,312.5
Bath & North East Somerset Council,80631352,LM6,Nursing Care,P11,Adult Social Care & Health,CHOLWELL HOUSE NURSING HOME,03/10/2016,312.5
Bath & North East Somerset Council,80631352,LM6,Nursing Care,P11,Adult Social Care & Health,CHOLWELL HOUSE NURSING HOME,03/10/2016,312.5
Bath & North East Somerset Council,80631352,LM6,Nursing Care,P11,Adult Social Care & Health,CHOLWELL HOUSE NURSING HOME,03/10/2016,312.5
Bath & North East Somerset Council,80631352,LM6,Nursing Care,P11,Adult Social Care & Health,CHOLWELL HOUSE NURSING HOME,03/10/2016,312.5
Bath & North East Somerset Council,80631441,LM6,Nursing Care,P11,Adult Social Care & Health,CHOLWELL HOUSE NURSING HOME,03/10/2016,1364
Bath & North East Somerset Council,80631387,LM6,Nursing Care,P11,Adult Social Care & Health,CHOLWELL HOUSE NURSING HOME,03/10/2016,1700
Bath & North East Somerset Council,80631441,LM6,Nursing Care,P11,Adult Social Care & Health,CHOLWELL HOUSE NURSING HOME,03/10/2016,1700
Bath & North East Somerset Council,80631441,LM6,Nursing Care,P11,Adult Social Care & Health,CHOLWELL HOUSE NURSING HOME,03/10/2016,1700
Bath & North East Somerset Council,10823539,LH3,Publicity,P13,Economic Development,FISH MEDIA GROUP LTD,03/10/2016,495
Bath & North East Somerset Council,80631441,LM6,Nursing Care,P11,Adult Social Care & Health,CHOLWELL HOUSE NURSING HOME,03/10/2016,1718
Bath & North East Somerset Council,80631387,LM6,Nursing Care,P11,Adult Social Care & Health,CHOLWELL HOUSE NURSING HOME,03/10/2016,4052
Bath & North East Somerset Council,80631450,LM3,Residential Care,P11,Adult Social Care & Health,CLAREMONT RESIDENTIAL HOME,03/10/2016,1100
Bath & North East Somerset Council,80631674,LL8,Individualised Budget,P11,Adult Social Care & Health,REDACTED,03/10/2016,595.9
Bath & North East Somerset Council,80631466,LM3,Residential Care,P11,Adult Social Care & Health,COCKLEBURY FARMHOUSE,03/10/2016,2012
Bath & North East Somerset Council,10823469,LL1,Services to/for Clients,P14,Community Services,COIF CHARITIES DEPOSIT FUND (FUND CODE C),03/10/2016,11843
Bath & North East Somerset Council,10823509,HA1,Responsive Maintenance,P13,Economic Development,ASHTON AIR CONDITIONING SERVICES LIMITED,03/10/2016,510
Bath & North East Somerset Council,80631410,LM6,Nursing Care,P11,Adult Social Care & Health,COMMUNITY OF ST ANTONY & ST ELIAS & REV,03/10/2016,3330
Bath & North East Somerset Council,80631510,LL3,Supported Living,P11,Adult Social Care & Health,COMMUNITY OF ST ANTONY & ST ELIAS & REV,03/10/2016,3560
Bath & North East Somerset Council,80631540,LM3,Residential Care,P11,Adult Social Care & Health,COMMUNITY THERAPEUTIC SERVICES LTD,03/10/2016,8760
Bath & North East Somerset Council,80631529,LM3,Residential Care,P11,Adult Social Care & Health,CONSENSUS SUPPORT SERVICES LTD,03/10/2016,3914
Bath & North East Somerset Council,80631529,LM3,Residential Care,P11,Adult Social Care & Health,CONSENSUS SUPPORT SERVICES LTD,03/10/2016,3994
Bath & North East Somerset Council,80631529,LM3,Residential Care,P11,Adult Social Care & Health,CONSENSUS SUPPORT SERVICES LTD,03/10/2016,4074
Bath & North East Somerset Council,80631529,LM3,Residential Care,P11,Adult Social Care & Health,CONSENSUS SUPPORT SERVICES LTD,03/10/2016,4074
Bath & North East Somerset Council,80631529,LM3,Residential Care,P11,Adult Social Care & Health,CONSENSUS SUPPORT SERVICES LTD,03/10/2016,8002
Bath & North East Somerset Council,10823456,LH2,Advertising,P09,Homes & Planning,LOCAL WORLD LTD,03/10/2016,525
Bath & North East Somerset Council,80631637,LL8,Individualised Budget,P11,Adult Social Care & Health,REDACTED,03/10/2016,734.48
Bath & North East Somerset Council,80631468,LM3,Residential Care,P11,Adult Social Care & Health,CORNERSTONES UK LTD,03/10/2016,1504
Bath & North East Somerset Council,80631501,LM3,Residential Care,P11,Adult Social Care & Health,CRAEGMOOR FACILITIES - ALEXANDRA HOUSE,03/10/2016,3402
Bath & North East Somerset Council,80631525,LM3,Residential Care,P11,Adult Social Care & Health,CRAEGMOOR FACILITIES - CHERRYWOOD HOU,03/10/2016,1600
Bath & North East Somerset Council,80631440,LM3,Residential Care,P11,Adult Social Care & Health,CRAEGMOOR FACILITIES - ELM TREE HOUSE,03/10/2016,2004
Bath & North East Somerset Council,10823551,LA5,Materials,P14,Community Services,TELESHORE UK LTD,03/10/2016,533
Bath & North East Somerset Council,80631440,LM3,Residential Care,P11,Adult Social Care & Health,CRAEGMOOR FACILITIES - ELM TREE HOUSE,03/10/2016,2288
Bath & North East Somerset Council,80631440,LM3,Residential Care,P11,Adult Social Care & Health,CRAEGMOOR FACILITIES - ELM TREE HOUSE,03/10/2016,2678.18
Bath & North East Somerset Council,80631467,LM3,Residential Care,P11,Adult Social Care & Health,CRAEGMOOR FACILITIES - OLD VICARAGE,03/10/2016,2484
Bath & North East Somerset Council,80631579,LM3,Residential Care,P11,Adult Social Care & Health,CRAEGMOOR FACILITIES CO LTD,03/10/2016,3170
Bath & North East Somerset Council,80631355,LM6,Nursing Care,P11,Adult Social Care & Health,CRANHILL NURSING HOME LTD,03/10/2016,312.5
Bath & North East Somerset Council,80631355,LM6,Nursing Care,P11,Adult Social Care & Health,CRANHILL NURSING HOME LTD,03/10/2016,312.5
Bath & North East Somerset Council,80631355,LM6,Nursing Care,P11,Adult Social Care & Health,CRANHILL NURSING HOME LTD,03/10/2016,312.5
Bath & North East Somerset Council,80631355,LM6,Nursing Care,P11,Adult Social Care & Health,CRANHILL NURSING HOME LTD,03/10/2016,312.5
Bath & North East Somerset Council,80631355,LM6,Nursing Care,P11,Adult Social Care & Health,CRANHILL NURSING HOME LTD,03/10/2016,312.5
Bath & North East Somerset Council,80631355,LM6,Nursing Care,P11,Adult Social Care & Health,CRANHILL NURSING HOME LTD,03/10/2016,312.5
Bath & North East Somerset Council,80631355,LM6,Nursing Care,P11,Adult Social Care & Health,CRANHILL NURSING HOME LTD,03/10/2016,312.5
Bath & North East Somerset Council,80631355,LM6,Nursing Care,P11,Adult Social Care & Health,CRANHILL NURSING HOME LTD,03/10/2016,312.5
Bath & North East Somerset Council,80631355,LM6,Nursing Care,P11,Adult Social Care & Health,CRANHILL NURSING HOME LTD,03/10/2016,312.5
Bath & North East Somerset Council,80631355,LM6,Nursing Care,P11,Adult Social Care & Health,CRANHILL NURSING HOME LTD,03/10/2016,312.5
Bath & North East Somerset Council,80631355,LM6,Nursing Care,P11,Adult Social Care & Health,CRANHILL NURSING HOME LTD,03/10/2016,312.5
Bath & North East Somerset Council,80631355,LM6,Nursing Care,P11,Adult Social Care & Health,CRANHILL NURSING HOME LTD,03/10/2016,312.5
Bath & North East Somerset Council,80631355,LM6,Nursing Care,P11,Adult Social Care & Health,CRANHILL NURSING HOME LTD,03/10/2016,312.5
Bath & North East Somerset Council,80631355,LM6,Nursing Care,P11,Adult Social Care & Health,CRANHILL NURSING HOME LTD,03/10/2016,312.5
Bath & North East Somerset Council,80631447,LM6,Nursing Care,P11,Adult Social Care & Health,CRANHILL NURSING HOME LTD,03/10/2016,1532
Bath & North East Somerset Council,80631447,LM6,Nursing Care,P11,Adult Social Care & Health,CRANHILL NURSING HOME LTD,03/10/2016,1718
Bath & North East Somerset Council,80631447,LM6,Nursing Care,P11,Adult Social Care & Health,CRANHILL NURSING HOME LTD,03/10/2016,1718
Bath & North East Somerset Council,80631391,LM6,Nursing Care,P11,Adult Social Care & Health,CRANHILL NURSING HOME LTD,03/10/2016,1750
Bath & North East Somerset Council,80631391,LM6,Nursing Care,P11,Adult Social Care & Health,CRANHILL NURSING HOME LTD,03/10/2016,1750
Bath & North East Somerset Council,80631546,LM3,Residential Care,P11,Adult Social Care & Health,CREAM HOLDING (TAUNTON) LTD,03/10/2016,5066
Bath & North East Somerset Council,80631488,LM9,Day Care,P11,Adult Social Care & Health,S.W.A.L.L.O.W. LTD,03/10/2016,557.7
Bath & North East Somerset Council,80631574,LM3,Residential Care,P11,Adult Social Care & Health,CREAM III LTD,03/10/2016,3432
Bath & North East Somerset Council,80631574,LM3,Residential Care,P11,Adult Social Care & Health,CREAM III LTD,03/10/2016,4930
Bath & North East Somerset Council,80631358,LM6,Nursing Care,P11,Adult Social Care & Health,CULVERHAY NURSING HOME,03/10/2016,312.5
Bath & North East Somerset Council,80631358,LM6,Nursing Care,P11,Adult Social Care & Health,CULVERHAY NURSING HOME,03/10/2016,312.5
Bath & North East Somerset Council,80631358,LM6,Nursing Care,P11,Adult Social Care & Health,CULVERHAY NURSING HOME,03/10/2016,312.5
Bath & North East Somerset Council,80631358,LM6,Nursing Care,P11,Adult Social Care & Health,CULVERHAY NURSING HOME,03/10/2016,312.5
Bath & North East Somerset Council,80631358,LM6,Nursing Care,P11,Adult Social Care & Health,CULVERHAY NURSING HOME,03/10/2016,312.5
Bath & North East Somerset Council,80631358,LM6,Nursing Care,P11,Adult Social Care & Health,CULVERHAY NURSING HOME,03/10/2016,312.5
Bath & North East Somerset Council,80631358,LM6,Nursing Care,P11,Adult Social Care & Health,CULVERHAY NURSING HOME,03/10/2016,312.5
Bath & North East Somerset Council,80631358,LM6,Nursing Care,P11,Adult Social Care & Health,CULVERHAY NURSING HOME,03/10/2016,312.5
Bath & North East Somerset Council,80631358,LM6,Nursing Care,P11,Adult Social Care & Health,CULVERHAY NURSING HOME,03/10/2016,312.5
Bath & North East Somerset Council,80631358,LM6,Nursing Care,P11,Adult Social Care & Health,CULVERHAY NURSING HOME,03/10/2016,312.5
Bath & North East Somerset Council,80631358,LM6,Nursing Care,P11,Adult Social Care & Health,CULVERHAY NURSING HOME,03/10/2016,312.5
Bath & North East Somerset Council,80631358,LM6,Nursing Care,P11,Adult Social Care & Health,CULVERHAY NURSING HOME,03/10/2016,312.5
Bath & North East Somerset Council,80631453,LM6,Nursing Care,P11,Adult Social Care & Health,CULVERHAY NURSING HOME,03/10/2016,1636.2
Bath & North East Somerset Council,80631394,LM6,Nursing Care,P11,Adult Social Care & Health,CULVERHAY NURSING HOME,03/10/2016,1870
Bath & North East Somerset Council,80631394,LM6,Nursing Care,P11,Adult Social Care & Health,CULVERHAY NURSING HOME,03/10/2016,1870
Bath & North East Somerset Council,80631394,LM6,Nursing Care,P11,Adult Social Care & Health,CULVERHAY NURSING HOME,03/10/2016,1870
Bath & North East Somerset Council,80631394,LM6,Nursing Care,P11,Adult Social Care & Health,CULVERHAY NURSING HOME,03/10/2016,1870
Bath & North East Somerset Council,80631394,LM6,Nursing Care,P11,Adult Social Care & Health,CULVERHAY NURSING HOME,03/10/2016,1870
Bath & North East Somerset Council,80631394,LM6,Nursing Care,P11,Adult Social Care & Health,CULVERHAY NURSING HOME,03/10/2016,1870
Bath & North East Somerset Council,80631394,LM6,Nursing Care,P11,Adult Social Care & Health,CULVERHAY NURSING HOME,03/10/2016,1870
Bath & North East Somerset Council,80631394,LM6,Nursing Care,P11,Adult Social Care & Health,CULVERHAY NURSING HOME,03/10/2016,1870
Bath & North East Somerset Council,80631453,LM6,Nursing Care,P11,Adult Social Care & Health,CULVERHAY NURSING HOME,03/10/2016,1870
Bath & North East Somerset Council,80631453,LM6,Nursing Care,P11,Adult Social Care & Health,CULVERHAY NURSING HOME,03/10/2016,1870
Bath & North East Somerset Council,80631453,LM6,Nursing Care,P11,Adult Social Care & Health,CULVERHAY NURSING HOME,03/10/2016,1870
Bath & North East Somerset Council,80631453,LM6,Nursing Care,P11,Adult Social Care & Health,CULVERHAY NURSING HOME,03/10/2016,1870
Bath & North East Somerset Council,80631453,LM6,Nursing Care,P11,Adult Social Care & Health,CULVERHAY NURSING HOME,03/10/2016,1870
Bath & North East Somerset Council,80631453,LM6,Nursing Care,P11,Adult Social Care & Health,CULVERHAY NURSING HOME,03/10/2016,1870
Bath & North East Somerset Council,80631453,LM6,Nursing Care,P11,Adult Social Care & Health,CULVERHAY NURSING HOME,03/10/2016,1870
Bath & North East Somerset Council,80631453,LM6,Nursing Care,P11,Adult Social Care & Health,CULVERHAY NURSING HOME,03/10/2016,1870
Bath & North East Somerset Council,80631453,LM6,Nursing Care,P11,Adult Social Care & Health,CULVERHAY NURSING HOME,03/10/2016,1870
Bath & North East Somerset Council,80631453,LM6,Nursing Care,P11,Adult Social Care & Health,CULVERHAY NURSING HOME,03/10/2016,1870
Bath & North East Somerset Council,80631453,LM6,Nursing Care,P11,Adult Social Care & Health,CULVERHAY NURSING HOME,03/10/2016,1870
Bath & North East Somerset Council,80631453,LM6,Nursing Care,P11,Adult Social Care & Health,CULVERHAY NURSING HOME,03/10/2016,1870
Bath & North East Somerset Council,80631453,LM6,Nursing Care,P11,Adult Social Care & Health,CULVERHAY NURSING HOME,03/10/2016,1870
Bath & North East Somerset Council,80631453,LM6,Nursing Care,P11,Adult Social Care & Health,CULVERHAY NURSING HOME,03/10/2016,1870
Bath & North East Somerset Council,80631453,LM6,Nursing Care,P11,Adult Social Care & Health,CULVERHAY NURSING HOME,03/10/2016,1870
Bath & North East Somerset Council,80631453,LM6,Nursing Care,P11,Adult Social Care & Health,CULVERHAY NURSING HOME,03/10/2016,1870
Bath & North East Somerset Council,80631453,LM6,Nursing Care,P11,Adult Social Care & Health,CULVERHAY NURSING HOME,03/10/2016,1870
Bath & North East Somerset Council,80631453,LM6,Nursing Care,P11,Adult Social Care & Health,CULVERHAY NURSING HOME,03/10/2016,1870
Bath & North East Somerset Council,80631453,LM6,Nursing Care,P11,Adult Social Care & Health,CULVERHAY NURSING HOME,03/10/2016,1870
Bath & North East Somerset Council,80631453,LM6,Nursing Care,P11,Adult Social Care & Health,CULVERHAY NURSING HOME,03/10/2016,1870
Bath & North East Somerset Council,80631453,LM6,Nursing Care,P11,Adult Social Care & Health,CULVERHAY NURSING HOME,03/10/2016,1870
Bath & North East Somerset Council,80631453,LM6,Nursing Care,P11,Adult Social Care & Health,CULVERHAY NURSING HOME,03/10/2016,1870
Bath & North East Somerset Council,80631453,LM6,Nursing Care,P11,Adult Social Care & Health,CULVERHAY NURSING HOME,03/10/2016,1870
Bath & North East Somerset Council,80631453,LM6,Nursing Care,P11,Adult Social Care & Health,CULVERHAY NURSING HOME,03/10/2016,1870
Bath & North East Somerset Council,80631453,LM6,Nursing Care,P11,Adult Social Care & Health,CULVERHAY NURSING HOME,03/10/2016,1870
Bath & North East Somerset Council,80631453,LM6,Nursing Care,P11,Adult Social Care & Health,CULVERHAY NURSING HOME,03/10/2016,1870
Bath & North East Somerset Council,80631453,LM6,Nursing Care,P11,Adult Social Care & Health,CULVERHAY NURSING HOME,03/10/2016,1870
Bath & North East Somerset Council,80631565,LM3,Residential Care,P11,Adult Social Care & Health,D & C AUTISTIC COMM TRUST,03/10/2016,5384
Bath & North East Somerset Council,80631789,LL8,Individualised Budget,P11,Adult Social Care & Health,REDACTED,03/10/2016,3004.64
Bath & North East Somerset Council,80631702,LL8,Individualised Budget,P11,Adult Social Care & Health,REDACTED - CARE ACCOUNT,03/10/2016,2868.02
Bath & North East Somerset Council,80631861,LL8,Individualised Budget,P11,Adult Social Care & Health,DEVELOPING HEALTH AND INDEPENDENCE,03/10/2016,52
Bath & North East Somerset Council,80631861,LL8,Individualised Budget,P11,Adult Social Care & Health,DEVELOPING HEALTH AND INDEPENDENCE,03/10/2016,73.04
Bath & North East Somerset Council,80631861,LL8,Individualised Budget,P11,Adult Social Care & Health,DEVELOPING HEALTH AND INDEPENDENCE,03/10/2016,88
Bath & North East Somerset Council,10823318,LJ1,Consultants Fees,P14,Community Services,CROFT SURVEYORS,03/10/2016,665
Bath & North East Somerset Council,80631861,LL8,Individualised Budget,P11,Adult Social Care & Health,DEVELOPING HEALTH AND INDEPENDENCE,03/10/2016,90.9
Bath & North East Somerset Council,80631861,LL8,Individualised Budget,P11,Adult Social Care & Health,DEVELOPING HEALTH AND INDEPENDENCE,03/10/2016,93.16
Bath & North East Somerset Council,80631861,LL8,Individualised Budget,P11,Adult Social Care & Health,DEVELOPING HEALTH AND INDEPENDENCE,03/10/2016,95
Bath & North East Somerset Council,80631861,LL8,Individualised Budget,P11,Adult Social Care & Health,DEVELOPING HEALTH AND INDEPENDENCE,03/10/2016,106
Bath & North East Somerset Council,80631861,LL8,Individualised Budget,P11,Adult Social Care & Health,DEVELOPING HEALTH AND INDEPENDENCE,03/10/2016,107.34
Bath & North East Somerset Council,80631861,LL8,Individualised Budget,P11,Adult Social Care & Health,DEVELOPING HEALTH AND INDEPENDENCE,03/10/2016,107.86
Bath & North East Somerset Council,10823502,HA1,Responsive Maintenance,P13,Economic Development,ASHTON AIR CONDITIONING SERVICES LIMITED,03/10/2016,680
Bath & North East Somerset Council,80631861,LL8,Individualised Budget,P11,Adult Social Care & Health,DEVELOPING HEALTH AND INDEPENDENCE,03/10/2016,111.22
Bath & North East Somerset Council,80631861,LL8,Individualised Budget,P11,Adult Social Care & Health,DEVELOPING HEALTH AND INDEPENDENCE,03/10/2016,111.4
Bath & North East Somerset Council,80631861,LL8,Individualised Budget,P11,Adult Social Care & Health,DEVELOPING HEALTH AND INDEPENDENCE,03/10/2016,115.54
Bath & North East Somerset Council,80631861,LL8,Individualised Budget,P11,Adult Social Care & Health,DEVELOPING HEALTH AND INDEPENDENCE,03/10/2016,117.88
Bath & North East Somerset Council,80631861,LL8,Individualised Budget,P11,Adult Social Care & Health,DEVELOPING HEALTH AND INDEPENDENCE,03/10/2016,118
Bath & North East Somerset Council,80631861,LL8,Individualised Budget,P11,Adult Social Care & Health,DEVELOPING HEALTH AND INDEPENDENCE,03/10/2016,122.42
Bath & North East Somerset Council,80631861,LL8,Individualised Budget,P11,Adult Social Care & Health,DEVELOPING HEALTH AND INDEPENDENCE,03/10/2016,126.04
Bath & North East Somerset Council,80631861,LL8,Individualised Budget,P11,Adult Social Care & Health,DEVELOPING HEALTH AND INDEPENDENCE,03/10/2016,126.06
Bath & North East Somerset Council,80631861,LL8,Individualised Budget,P11,Adult Social Care & Health,DEVELOPING HEALTH AND INDEPENDENCE,03/10/2016,128.52
Bath & North East Somerset Council,80631861,LL8,Individualised Budget,P11,Adult Social Care & Health,DEVELOPING HEALTH AND INDEPENDENCE,03/10/2016,129.2
Bath & North East Somerset Council,80631861,LL8,Individualised Budget,P11,Adult Social Care & Health,DEVELOPING HEALTH AND INDEPENDENCE,03/10/2016,133.92
Bath & North East Somerset Council,80631861,LL8,Individualised Budget,P11,Adult Social Care & Health,DEVELOPING HEALTH AND INDEPENDENCE,03/10/2016,135.26
Bath & North East Somerset Council,80631861,LL8,Individualised Budget,P11,Adult Social Care & Health,DEVELOPING HEALTH AND INDEPENDENCE,03/10/2016,140.58
Bath & North East Somerset Council,80631861,LL8,Individualised Budget,P11,Adult Social Care & Health,DEVELOPING HEALTH AND INDEPENDENCE,03/10/2016,143.26
Bath & North East Somerset Council,80631861,LL8,Individualised Budget,P11,Adult Social Care & Health,DEVELOPING HEALTH AND INDEPENDENCE,03/10/2016,147.72
Bath & North East Somerset Council,80631861,LL8,Individualised Budget,P11,Adult Social Care & Health,DEVELOPING HEALTH AND INDEPENDENCE,03/10/2016,147.76
Bath & North East Somerset Council,80631861,LL8,Individualised Budget,P11,Adult Social Care & Health,DEVELOPING HEALTH AND INDEPENDENCE,03/10/2016,159.86
Bath & North East Somerset Council,10821221,HP6,Water Charges,P10,Finance & Efficiency,BWBSL,03/10/2016,711.78
Bath & North East Somerset Council,80631861,LL8,Individualised Budget,P11,Adult Social Care & Health,DEVELOPING HEALTH AND INDEPENDENCE,03/10/2016,161.6
Bath & North East Somerset Council,80631861,LL8,Individualised Budget,P11,Adult Social Care & Health,DEVELOPING HEALTH AND INDEPENDENCE,03/10/2016,161.62
Bath & North East Somerset Council,80631861,LL8,Individualised Budget,P11,Adult Social Care & Health,DEVELOPING HEALTH AND INDEPENDENCE,03/10/2016,168.06
Bath & North East Somerset Council,80631861,LL8,Individualised Budget,P11,Adult Social Care & Health,DEVELOPING HEALTH AND INDEPENDENCE,03/10/2016,169.16
Bath & North East Somerset Council,80631861,LL8,Individualised Budget,P11,Adult Social Care & Health,DEVELOPING HEALTH AND INDEPENDENCE,03/10/2016,178
Bath & North East Somerset Council,10823530,HA2,Servicing,P13,Economic Development,HORDERS,03/10/2016,720
Bath & North East Somerset Council,80631861,LL8,Individualised Budget,P11,Adult Social Care & Health,DEVELOPING HEALTH AND INDEPENDENCE,03/10/2016,178.48
Bath & North East Somerset Council,80631861,LL8,Individualised Budget,P11,Adult Social Care & Health,DEVELOPING HEALTH AND INDEPENDENCE,03/10/2016,183.82
Bath & North East Somerset Council,80631861,LL8,Individualised Budget,P11,Adult Social Care & Health,DEVELOPING HEALTH AND INDEPENDENCE,03/10/2016,188.32
Bath & North East Somerset Council,80631861,LL8,Individualised Budget,P11,Adult Social Care & Health,DEVELOPING HEALTH AND INDEPENDENCE,03/10/2016,188.5
Bath & North East Somerset Council,80631861,LL8,Individualised Budget,P11,Adult Social Care & Health,DEVELOPING HEALTH AND INDEPENDENCE,03/10/2016,190.28
Bath & North East Somerset Council,80631861,LL8,Individualised Budget,P11,Adult Social Care & Health,DEVELOPING HEALTH AND INDEPENDENCE,03/10/2016,193.38
Bath & North East Somerset Council,80631861,LL8,Individualised Budget,P11,Adult Social Care & Health,DEVELOPING HEALTH AND INDEPENDENCE,03/10/2016,199.66
Bath & North East Somerset Council,80631861,LL8,Individualised Budget,P11,Adult Social Care & Health,DEVELOPING HEALTH AND INDEPENDENCE,03/10/2016,200.28
Bath & North East Somerset Council,80631861,LL8,Individualised Budget,P11,Adult Social Care & Health,DEVELOPING HEALTH AND INDEPENDENCE,03/10/2016,202
Bath & North East Somerset Council,80631861,LL8,Individualised Budget,P11,Adult Social Care & Health,DEVELOPING HEALTH AND INDEPENDENCE,03/10/2016,208
Bath & North East Somerset Council,80631861,LL8,Individualised Budget,P11,Adult Social Care & Health,DEVELOPING HEALTH AND INDEPENDENCE,03/10/2016,208
Bath & North East Somerset Council,80631861,LL8,Individualised Budget,P11,Adult Social Care & Health,DEVELOPING HEALTH AND INDEPENDENCE,03/10/2016,214.56
Bath & North East Somerset Council,80631861,LL8,Individualised Budget,P11,Adult Social Care & Health,DEVELOPING HEALTH AND INDEPENDENCE,03/10/2016,216
Bath & North East Somerset Council,80631861,LL8,Individualised Budget,P11,Adult Social Care & Health,DEVELOPING HEALTH AND INDEPENDENCE,03/10/2016,220
Bath & North East Somerset Council,80631861,LL8,Individualised Budget,P11,Adult Social Care & Health,DEVELOPING HEALTH AND INDEPENDENCE,03/10/2016,224
Bath & North East Somerset Council,80631861,LL8,Individualised Budget,P11,Adult Social Care & Health,DEVELOPING HEALTH AND INDEPENDENCE,03/10/2016,226
Bath & North East Somerset Council,80631861,LL8,Individualised Budget,P11,Adult Social Care & Health,DEVELOPING HEALTH AND INDEPENDENCE,03/10/2016,226
Bath & North East Somerset Council,10823541,LA1,Equipment Purchase,P14,Community Services,EGBERT H TAYLOR & CO LTD,03/10/2016,747
Bath & North East Somerset Council,80631861,LL8,Individualised Budget,P11,Adult Social Care & Health,DEVELOPING HEALTH AND INDEPENDENCE,03/10/2016,226
Bath & North East Somerset Council,80631861,LL8,Individualised Budget,P11,Adult Social Care & Health,DEVELOPING HEALTH AND INDEPENDENCE,03/10/2016,232
Bath & North East Somerset Council,80631861,LL8,Individualised Budget,P11,Adult Social Care & Health,DEVELOPING HEALTH AND INDEPENDENCE,03/10/2016,232
Bath & North East Somerset Council,80631488,LM9,Day Care,P11,Adult Social Care & Health,S.W.A.L.L.O.W. LTD,03/10/2016,754.86
Bath & North East Somerset Council,80631861,LL8,Individualised Budget,P11,Adult Social Care & Health,DEVELOPING HEALTH AND INDEPENDENCE,03/10/2016,232
Bath & North East Somerset Council,80631861,LL8,Individualised Budget,P11,Adult Social Care & Health,DEVELOPING HEALTH AND INDEPENDENCE,03/10/2016,236
Bath & North East Somerset Council,80631861,LL8,Individualised Budget,P11,Adult Social Care & Health,DEVELOPING HEALTH AND INDEPENDENCE,03/10/2016,246
Bath & North East Somerset Council,80631861,LL8,Individualised Budget,P11,Adult Social Care & Health,DEVELOPING HEALTH AND INDEPENDENCE,03/10/2016,246
Bath & North East Somerset Council,80631861,LL8,Individualised Budget,P11,Adult Social Care & Health,DEVELOPING HEALTH AND INDEPENDENCE,03/10/2016,258
Bath & North East Somerset Council,80631861,LL8,Individualised Budget,P11,Adult Social Care & Health,DEVELOPING HEALTH AND INDEPENDENCE,03/10/2016,260
Bath & North East Somerset Council,80631861,LL8,Individualised Budget,P11,Adult Social Care & Health,DEVELOPING HEALTH AND INDEPENDENCE,03/10/2016,266
Bath & North East Somerset Council,80631861,LL8,Individualised Budget,P11,Adult Social Care & Health,DEVELOPING HEALTH AND INDEPENDENCE,03/10/2016,268
Bath & North East Somerset Council,80631861,LL8,Individualised Budget,P11,Adult Social Care & Health,DEVELOPING HEALTH AND INDEPENDENCE,03/10/2016,273
Bath & North East Somerset Council,80631861,LL8,Individualised Budget,P11,Adult Social Care & Health,DEVELOPING HEALTH AND INDEPENDENCE,03/10/2016,276
Bath & North East Somerset Council,80631861,LL8,Individualised Budget,P11,Adult Social Care & Health,DEVELOPING HEALTH AND INDEPENDENCE,03/10/2016,284
Bath & North East Somerset Council,10823545,LP5,Software Support,P10,Finance & Efficiency,METRIC GROUP LIMITED,03/10/2016,783
Bath & North East Somerset Council,80631861,LL8,Individualised Budget,P11,Adult Social Care & Health,DEVELOPING HEALTH AND INDEPENDENCE,03/10/2016,284
Bath & North East Somerset Council,80631861,LL8,Individualised Budget,P11,Adult Social Care & Health,DEVELOPING HEALTH AND INDEPENDENCE,03/10/2016,290
Bath & North East Somerset Council,80631861,LL8,Individualised Budget,P11,Adult Social Care & Health,DEVELOPING HEALTH AND INDEPENDENCE,03/10/2016,292
Bath & North East Somerset Council,80631861,LL8,Individualised Budget,P11,Adult Social Care & Health,DEVELOPING HEALTH AND INDEPENDENCE,03/10/2016,298
Bath & North East Somerset Council,80631861,LL8,Individualised Budget,P11,Adult Social Care & Health,DEVELOPING HEALTH AND INDEPENDENCE,03/10/2016,312
Bath & North East Somerset Council,80631861,LL8,Individualised Budget,P11,Adult Social Care & Health,DEVELOPING HEALTH AND INDEPENDENCE,03/10/2016,321.04
Bath & North East Somerset Council,10823492,HA2,Servicing,P10,Finance & Efficiency,HEIGHTSAFE SYSTEMS LTD,03/10/2016,790
Bath & North East Somerset Council,80631861,LL8,Individualised Budget,P11,Adult Social Care & Health,DEVELOPING HEALTH AND INDEPENDENCE,03/10/2016,322
Bath & North East Somerset Council,80631861,LL8,Individualised Budget,P11,Adult Social Care & Health,DEVELOPING HEALTH AND INDEPENDENCE,03/10/2016,330
Bath & North East Somerset Council,80631861,LL8,Individualised Budget,P11,Adult Social Care & Health,DEVELOPING HEALTH AND INDEPENDENCE,03/10/2016,330
Bath & North East Somerset Council,80631861,LL8,Individualised Budget,P11,Adult Social Care & Health,DEVELOPING HEALTH AND INDEPENDENCE,03/10/2016,338
Bath & North East Somerset Council,80631861,LL8,Individualised Budget,P11,Adult Social Care & Health,DEVELOPING HEALTH AND INDEPENDENCE,03/10/2016,344
Bath & North East Somerset Council,80631861,LL8,Individualised Budget,P11,Adult Social Care & Health,DEVELOPING HEALTH AND INDEPENDENCE,03/10/2016,350
Bath & North East Somerset Council,80631861,LL8,Individualised Budget,P11,Adult Social Care & Health,DEVELOPING HEALTH AND INDEPENDENCE,03/10/2016,356
Bath & North East Somerset Council,80631861,LL8,Individualised Budget,P11,Adult Social Care & Health,DEVELOPING HEALTH AND INDEPENDENCE,03/10/2016,364
Bath & North East Somerset Council,80631861,LL8,Individualised Budget,P11,Adult Social Care & Health,DEVELOPING HEALTH AND INDEPENDENCE,03/10/2016,366
Bath & North East Somerset Council,10823501,LF1,Printing/Design,P10,Finance & Efficiency,TOPLINK ENVELOPES LTD,03/10/2016,800
Bath & North East Somerset Council,80631861,LL8,Individualised Budget,P11,Adult Social Care & Health,DEVELOPING HEALTH AND INDEPENDENCE,03/10/2016,366
Bath & North East Somerset Council,80631861,LL8,Individualised Budget,P11,Adult Social Care & Health,DEVELOPING HEALTH AND INDEPENDENCE,03/10/2016,367.24
Bath & North East Somerset Council,80631861,LL8,Individualised Budget,P11,Adult Social Care & Health,DEVELOPING HEALTH AND INDEPENDENCE,03/10/2016,370
Bath & North East Somerset Council,80631861,LL8,Individualised Budget,P11,Adult Social Care & Health,DEVELOPING HEALTH AND INDEPENDENCE,03/10/2016,374
Bath & North East Somerset Council,80631861,LL8,Individualised Budget,P11,Adult Social Care & Health,DEVELOPING HEALTH AND INDEPENDENCE,03/10/2016,374
Bath & North East Somerset Council,80631861,LL8,Individualised Budget,P11,Adult Social Care & Health,DEVELOPING HEALTH AND INDEPENDENCE,03/10/2016,400
Bath & North East Somerset Council,80631861,LL8,Individualised Budget,P11,Adult Social Care & Health,DEVELOPING HEALTH AND INDEPENDENCE,03/10/2016,402
Bath & North East Somerset Council,80631861,LL8,Individualised Budget,P11,Adult Social Care & Health,DEVELOPING HEALTH AND INDEPENDENCE,03/10/2016,424
Bath & North East Somerset Council,80631861,LL8,Individualised Budget,P11,Adult Social Care & Health,DEVELOPING HEALTH AND INDEPENDENCE,03/10/2016,426
Bath & North East Somerset Council,80631861,LL8,Individualised Budget,P11,Adult Social Care & Health,DEVELOPING HEALTH AND INDEPENDENCE,03/10/2016,433.62
Bath & North East Somerset Council,80631861,LL8,Individualised Budget,P11,Adult Social Care & Health,DEVELOPING HEALTH AND INDEPENDENCE,03/10/2016,454
Bath & North East Somerset Council,80631861,LL8,Individualised Budget,P11,Adult Social Care & Health,DEVELOPING HEALTH AND INDEPENDENCE,03/10/2016,472
Bath & North East Somerset Council,80631861,LL8,Individualised Budget,P11,Adult Social Care & Health,DEVELOPING HEALTH AND INDEPENDENCE,03/10/2016,474
Bath & North East Somerset Council,80631861,LL8,Individualised Budget,P11,Adult Social Care & Health,DEVELOPING HEALTH AND INDEPENDENCE,03/10/2016,478
Bath & North East Somerset Council,80631861,LL8,Individualised Budget,P11,Adult Social Care & Health,DEVELOPING HEALTH AND INDEPENDENCE,03/10/2016,486
Bath & North East Somerset Council,80631861,LL8,Individualised Budget,P11,Adult Social Care & Health,DEVELOPING HEALTH AND INDEPENDENCE,03/10/2016,504
Bath & North East Somerset Council,80631861,LL8,Individualised Budget,P11,Adult Social Care & Health,DEVELOPING HEALTH AND INDEPENDENCE,03/10/2016,526
Bath & North East Somerset Council,80631861,LL8,Individualised Budget,P11,Adult Social Care & Health,DEVELOPING HEALTH AND INDEPENDENCE,03/10/2016,531.7
Bath & North East Somerset Council,80631861,LL8,Individualised Budget,P11,Adult Social Care & Health,DEVELOPING HEALTH AND INDEPENDENCE,03/10/2016,536
Bath & North East Somerset Council,80631861,LL8,Individualised Budget,P11,Adult Social Care & Health,DEVELOPING HEALTH AND INDEPENDENCE,03/10/2016,562
Bath & North East Somerset Council,80631861,LL8,Individualised Budget,P11,Adult Social Care & Health,DEVELOPING HEALTH AND INDEPENDENCE,03/10/2016,571.38
Bath & North East Somerset Council,80631861,LL8,Individualised Budget,P11,Adult Social Care & Health,DEVELOPING HEALTH AND INDEPENDENCE,03/10/2016,572.1
Bath & North East Somerset Council,80631861,LL8,Individualised Budget,P11,Adult Social Care & Health,DEVELOPING HEALTH AND INDEPENDENCE,03/10/2016,574
Bath & North East Somerset Council,80631488,LM9,Day Care,P11,Adult Social Care & Health,S.W.A.L.L.O.W. LTD,03/10/2016,836.84
Bath & North East Somerset Council,80631861,LL8,Individualised Budget,P11,Adult Social Care & Health,DEVELOPING HEALTH AND INDEPENDENCE,03/10/2016,656
Bath & North East Somerset Council,80631861,LL8,Individualised Budget,P11,Adult Social Care & Health,DEVELOPING HEALTH AND INDEPENDENCE,03/10/2016,684
Bath & North East Somerset Council,80631861,LL8,Individualised Budget,P11,Adult Social Care & Health,DEVELOPING HEALTH AND INDEPENDENCE,03/10/2016,688
Bath & North East Somerset Council,80631861,LL8,Individualised Budget,P11,Adult Social Care & Health,DEVELOPING HEALTH AND INDEPENDENCE,03/10/2016,734
Bath & North East Somerset Council,80631861,LL8,Individualised Budget,P11,Adult Social Care & Health,DEVELOPING HEALTH AND INDEPENDENCE,03/10/2016,744
Bath & North East Somerset Council,80631861,LL8,Individualised Budget,P11,Adult Social Care & Health,DEVELOPING HEALTH AND INDEPENDENCE,03/10/2016,744
Bath & North East Somerset Council,80631861,LL8,Individualised Budget,P11,Adult Social Care & Health,DEVELOPING HEALTH AND INDEPENDENCE,03/10/2016,750
Bath & North East Somerset Council,80631861,LL8,Individualised Budget,P11,Adult Social Care & Health,DEVELOPING HEALTH AND INDEPENDENCE,03/10/2016,790
Bath & North East Somerset Council,80631861,LL8,Individualised Budget,P11,Adult Social Care & Health,DEVELOPING HEALTH AND INDEPENDENCE,03/10/2016,798
Bath & North East Somerset Council,80631861,LL8,Individualised Budget,P11,Adult Social Care & Health,DEVELOPING HEALTH AND INDEPENDENCE,03/10/2016,826
Bath & North East Somerset Council,80631861,LL8,Individualised Budget,P11,Adult Social Care & Health,DEVELOPING HEALTH AND INDEPENDENCE,03/10/2016,892
Bath & North East Somerset Council,80631861,LL8,Individualised Budget,P11,Adult Social Care & Health,DEVELOPING HEALTH AND INDEPENDENCE,03/10/2016,898
Bath & North East Somerset Council,80631861,LL8,Individualised Budget,P11,Adult Social Care & Health,DEVELOPING HEALTH AND INDEPENDENCE,03/10/2016,936
Bath & North East Somerset Council,80631861,LL8,Individualised Budget,P11,Adult Social Care & Health,DEVELOPING HEALTH AND INDEPENDENCE,03/10/2016,952
Bath & North East Somerset Council,80631861,LL8,Individualised Budget,P11,Adult Social Care & Health,DEVELOPING HEALTH AND INDEPENDENCE,03/10/2016,970
Bath & North East Somerset Council,80631861,LL8,Individualised Budget,P11,Adult Social Care & Health,DEVELOPING HEALTH AND INDEPENDENCE,03/10/2016,992
Bath & North East Somerset Council,80631379,LL8,Individualised Budget,P11,Adult Social Care & Health,DEVELOPING HEALTH AND INDEPENDENCE,03/10/2016,1003.08
Bath & North East Somerset Council,80631861,LL8,Individualised Budget,P11,Adult Social Care & Health,DEVELOPING HEALTH AND INDEPENDENCE,03/10/2016,1010
Bath & North East Somerset Council,80631861,LL8,Individualised Budget,P11,Adult Social Care & Health,DEVELOPING HEALTH AND INDEPENDENCE,03/10/2016,1128.76
Bath & North East Somerset Council,10823544,HA1,Responsive Maintenance,P13,Economic Development,FRAMS ASSOCIATES (PM),03/10/2016,860
Bath & North East Somerset Council,80631861,LL8,Individualised Budget,P11,Adult Social Care & Health,DEVELOPING HEALTH AND INDEPENDENCE,03/10/2016,1144
Bath & North East Somerset Council,80631861,LL8,Individualised Budget,P11,Adult Social Care & Health,DEVELOPING HEALTH AND INDEPENDENCE,03/10/2016,1215.55
Bath & North East Somerset Council,80631861,LL8,Individualised Budget,P11,Adult Social Care & Health,DEVELOPING HEALTH AND INDEPENDENCE,03/10/2016,1226.8
Bath & North East Somerset Council,80631861,LL8,Individualised Budget,P11,Adult Social Care & Health,DEVELOPING HEALTH AND INDEPENDENCE,03/10/2016,1234
Bath & North East Somerset Council,80631379,LL8,Individualised Budget,P11,Adult Social Care & Health,DEVELOPING HEALTH AND INDEPENDENCE,03/10/2016,1300
Bath & North East Somerset Council,80631861,LL8,Individualised Budget,P11,Adult Social Care & Health,DEVELOPING HEALTH AND INDEPENDENCE,03/10/2016,1360
Bath & North East Somerset Council,80631861,LL8,Individualised Budget,P11,Adult Social Care & Health,DEVELOPING HEALTH AND INDEPENDENCE,03/10/2016,1426
Bath & North East Somerset Council,80631861,LL8,Individualised Budget,P11,Adult Social Care & Health,DEVELOPING HEALTH AND INDEPENDENCE,03/10/2016,1484
Bath & North East Somerset Council,80631861,LL8,Individualised Budget,P11,Adult Social Care & Health,DEVELOPING HEALTH AND INDEPENDENCE,03/10/2016,1548
Bath & North East Somerset Council,80631861,LL8,Individualised Budget,P11,Adult Social Care & Health,DEVELOPING HEALTH AND INDEPENDENCE,03/10/2016,1561.59
Bath & North East Somerset Council,80631861,LL8,Individualised Budget,P11,Adult Social Care & Health,DEVELOPING HEALTH AND INDEPENDENCE,03/10/2016,1909.4
Bath & North East Somerset Council,80631861,LL8,Individualised Budget,P11,Adult Social Care & Health,DEVELOPING HEALTH AND INDEPENDENCE,03/10/2016,2036
Bath & North East Somerset Council,80631861,LL8,Individualised Budget,P11,Adult Social Care & Health,DEVELOPING HEALTH AND INDEPENDENCE,03/10/2016,2104
Bath & North East Somerset Council,80631379,LL8,Individualised Budget,P11,Adult Social Care & Health,DEVELOPING HEALTH AND INDEPENDENCE,03/10/2016,2211.1
Bath & North East Somerset Council,80631861,LL8,Individualised Budget,P11,Adult Social Care & Health,DEVELOPING HEALTH AND INDEPENDENCE,03/10/2016,2224
Bath & North East Somerset Council,80631861,LL8,Individualised Budget,P11,Adult Social Care & Health,DEVELOPING HEALTH AND INDEPENDENCE,03/10/2016,2368.72
Bath & North East Somerset Council,80631379,LL8,Individualised Budget,P11,Adult Social Care & Health,DEVELOPING HEALTH AND INDEPENDENCE,03/10/2016,3134
Bath & North East Somerset Council,80631379,LL8,Individualised Budget,P11,Adult Social Care & Health,DEVELOPING HEALTH AND INDEPENDENCE,03/10/2016,3936.14
Bath & North East Somerset Council,80631379,LL8,Individualised Budget,P11,Adult Social Care & Health,DEVELOPING HEALTH AND INDEPENDENCE,03/10/2016,7076.6
Bath & North East Somerset Council,80631509,LM3,Residential Care,P11,Adult Social Care & Health,DEVON SHELTERED HOMES TRUST - REDACTED,03/10/2016,1202
Bath & North East Somerset Council,80631481,LM8,Home Care,P11,Adult Social Care & Health,DIMENSIONS (UK) LTD,03/10/2016,179.24
Bath & North East Somerset Council,80631481,LM8,Home Care,P11,Adult Social Care & Health,DIMENSIONS (UK) LTD,03/10/2016,379.6
Bath & North East Somerset Council,80631481,LM8,Home Care,P11,Adult Social Care & Health,DIMENSIONS (UK) LTD,03/10/2016,381.08
Bath & North East Somerset Council,80631481,LM9,Day Care,P11,Adult Social Care & Health,DIMENSIONS (UK) LTD,03/10/2016,428.32
Bath & North East Somerset Council,80631481,LM9,Day Care,P11,Adult Social Care & Health,DIMENSIONS (UK) LTD,03/10/2016,449.02
Bath & North East Somerset Council,80631481,LM8,Home Care,P11,Adult Social Care & Health,DIMENSIONS (UK) LTD,03/10/2016,546.26
Bath & North East Somerset Council,80631481,LM8,Home Care,P11,Adult Social Care & Health,DIMENSIONS (UK) LTD,03/10/2016,602.86
Bath & North East Somerset Council,80631481,LM8,Home Care,P11,Adult Social Care & Health,DIMENSIONS (UK) LTD,03/10/2016,606.78
Bath & North East Somerset Council,80631481,LM9,Day Care,P11,Adult Social Care & Health,DIMENSIONS (UK) LTD,03/10/2016,706.8
Bath & North East Somerset Council,80631481,LM8,Home Care,P11,Adult Social Care & Health,DIMENSIONS (UK) LTD,03/10/2016,740.56
Bath & North East Somerset Council,80631481,LM3,Residential Care,P11,Adult Social Care & Health,DIMENSIONS (UK) LTD,03/10/2016,794
Bath & North East Somerset Council,80631481,LM3,Residential Care,P11,Adult Social Care & Health,DIMENSIONS (UK) LTD,03/10/2016,794
Bath & North East Somerset Council,80631481,LM3,Residential Care,P11,Adult Social Care & Health,DIMENSIONS (UK) LTD,03/10/2016,794
Bath & North East Somerset Council,80631481,LM8,Home Care,P11,Adult Social Care & Health,DIMENSIONS (UK) LTD,03/10/2016,813.18
Bath & North East Somerset Council,80631481,LM8,Home Care,P11,Adult Social Care & Health,DIMENSIONS (UK) LTD,03/10/2016,850.72
Bath & North East Somerset Council,80631481,LM8,Home Care,P11,Adult Social Care & Health,DIMENSIONS (UK) LTD,03/10/2016,991.62
Bath & North East Somerset Council,80631481,LM8,Home Care,P11,Adult Social Care & Health,DIMENSIONS (UK) LTD,03/10/2016,1008.8
Bath & North East Somerset Council,80631481,LM8,Home Care,P11,Adult Social Care & Health,DIMENSIONS (UK) LTD,03/10/2016,1101.2
Bath & North East Somerset Council,80631481,LM8,Home Care,P11,Adult Social Care & Health,DIMENSIONS (UK) LTD,03/10/2016,1172.46
Bath & North East Somerset Council,80631481,LM8,Home Care,P11,Adult Social Care & Health,DIMENSIONS (UK) LTD,03/10/2016,1223.84
Bath & North East Somerset Council,80631481,LM8,Home Care,P11,Adult Social Care & Health,DIMENSIONS (UK) LTD,03/10/2016,1279.52
Bath & North East Somerset Council,80631481,LM8,Home Care,P11,Adult Social Care & Health,DIMENSIONS (UK) LTD,03/10/2016,1610.4
Bath & North East Somerset Council,80631481,LM8,Home Care,P11,Adult Social Care & Health,DIMENSIONS (UK) LTD,03/10/2016,1670.46
Bath & North East Somerset Council,80631481,LM8,Home Care,P11,Adult Social Care & Health,DIMENSIONS (UK) LTD,03/10/2016,1686.04
Bath & North East Somerset Council,80631481,LM9,Day Care,P11,Adult Social Care & Health,DIMENSIONS (UK) LTD,03/10/2016,1786.5
Bath & North East Somerset Council,80631481,LM8,Home Care,P11,Adult Social Care & Health,DIMENSIONS (UK) LTD,03/10/2016,1836.44
Bath & North East Somerset Council,80631481,LM3,Residential Care,P11,Adult Social Care & Health,DIMENSIONS (UK) LTD,03/10/2016,1854.66
Bath & North East Somerset Council,80631481,LM8,Home Care,P11,Adult Social Care & Health,DIMENSIONS (UK) LTD,03/10/2016,1960.36
Bath & North East Somerset Council,80631481,LM8,Home Care,P11,Adult Social Care & Health,DIMENSIONS (UK) LTD,03/10/2016,2137.24
Bath & North East Somerset Council,80631481,LM8,Home Care,P11,Adult Social Care & Health,DIMENSIONS (UK) LTD,03/10/2016,2182.98
Bath & North East Somerset Council,80631481,LM8,Home Care,P11,Adult Social Care & Health,DIMENSIONS (UK) LTD,03/10/2016,2287.64
Bath & North East Somerset Council,80631481,LM3,Residential Care,P11,Adult Social Care & Health,DIMENSIONS (UK) LTD,03/10/2016,2312
Bath & North East Somerset Council,80631481,LM8,Home Care,P11,Adult Social Care & Health,DIMENSIONS (UK) LTD,03/10/2016,2390.34
Bath & North East Somerset Council,80631481,LM3,Residential Care,P11,Adult Social Care & Health,DIMENSIONS (UK) LTD,03/10/2016,2430
Bath & North East Somerset Council,80631481,LM3,Residential Care,P11,Adult Social Care & Health,DIMENSIONS (UK) LTD,03/10/2016,2454
Bath & North East Somerset Council,80631481,LM3,Residential Care,P11,Adult Social Care & Health,DIMENSIONS (UK) LTD,03/10/2016,2454
Bath & North East Somerset Council,80631481,LM8,Home Care,P11,Adult Social Care & Health,DIMENSIONS (UK) LTD,03/10/2016,2476.22
Bath & North East Somerset Council,80631481,LM8,Home Care,P11,Adult Social Care & Health,DIMENSIONS (UK) LTD,03/10/2016,2558.36
Bath & North East Somerset Council,80631481,LM3,Residential Care,P11,Adult Social Care & Health,DIMENSIONS (UK) LTD,03/10/2016,2580
Bath & North East Somerset Council,80631481,LM3,Residential Care,P11,Adult Social Care & Health,DIMENSIONS (UK) LTD,03/10/2016,2580
Bath & North East Somerset Council,80631481,LM3,Residential Care,P11,Adult Social Care & Health,DIMENSIONS (UK) LTD,03/10/2016,2580
Bath & North East Somerset Council,80631481,LM9,Day Care,P11,Adult Social Care & Health,DIMENSIONS (UK) LTD,03/10/2016,2757.76
Bath & North East Somerset Council,80631481,LM3,Residential Care,P11,Adult Social Care & Health,DIMENSIONS (UK) LTD,03/10/2016,3248
Bath & North East Somerset Council,80631481,LM3,Residential Care,P11,Adult Social Care & Health,DIMENSIONS (UK) LTD,03/10/2016,3302
Bath & North East Somerset Council,80631481,LM3,Residential Care,P11,Adult Social Care & Health,DIMENSIONS (UK) LTD,03/10/2016,3674
Bath & North East Somerset Council,80631481,LM9,Day Care,P11,Adult Social Care & Health,DIMENSIONS (UK) LTD,03/10/2016,3743.56
Bath & North East Somerset Council,80631481,LM9,Day Care,P11,Adult Social Care & Health,DIMENSIONS (UK) LTD,03/10/2016,4059.44
Bath & North East Somerset Council,80631481,LM9,Day Care,P11,Adult Social Care & Health,DIMENSIONS (UK) LTD,03/10/2016,4560.56
Bath & North East Somerset Council,80631488,LM9,Day Care,P11,Adult Social Care & Health,S.W.A.L.L.O.W. LTD,03/10/2016,943.32
Bath & North East Somerset Council,80631481,LM9,Day Care,P11,Adult Social Care & Health,DIMENSIONS (UK) LTD,03/10/2016,6256.96
Bath & North East Somerset Council,80631385,LM6,Nursing Care,P11,Adult Social Care & Health,DOROTHY HOUSE FOUNDATION,03/10/2016,1700
Bath & North East Somerset Council,80631795,LL8,Individualised Budget,P11,Adult Social Care & Health,REDACTED,03/10/2016,505.86
Bath & North East Somerset Council,80631499,LM3,Residential Care,P11,Adult Social Care & Health,DRAFTCREATE LTD,03/10/2016,3288
Bath & North East Somerset Council,80631545,LM6,Nursing Care,P11,Adult Social Care & Health,EASTLEIGH CARE HOMES LTD,03/10/2016,1940
Bath & North East Somerset Council,80631462,LM6,Nursing Care,P11,Adult Social Care & Health,EDGEMONT VIEW NURSING HOME,03/10/2016,1238
Bath & North East Somerset Council,80631449,LM3,Residential Care,P11,Adult Social Care & Health,REDACTED,03/10/2016,2246
Bath & North East Somerset Council,80631733,LL8,Individualised Budget,P11,Adult Social Care & Health,REDACTED,03/10/2016,1984.98
Bath & North East Somerset Council,80631363,LM6,Nursing Care,P11,Adult Social Care & Health,EMBRACE LIMITED - REDACTED,03/10/2016,312.5
Bath & North East Somerset Council,80631363,LM6,Nursing Care,P11,Adult Social Care & Health,EMBRACE LIMITED - REDACTED,03/10/2016,312.5
Bath & North East Somerset Council,80631363,LM6,Nursing Care,P11,Adult Social Care & Health,EMBRACE LIMITED - REDACTED,03/10/2016,312.5
Bath & North East Somerset Council,80631363,LM6,Nursing Care,P11,Adult Social Care & Health,EMBRACE LIMITED - REDACTED,03/10/2016,312.5
Bath & North East Somerset Council,80631363,LM6,Nursing Care,P11,Adult Social Care & Health,EMBRACE LIMITED - REDACTED,03/10/2016,312.5
Bath & North East Somerset Council,80631363,LM6,Nursing Care,P11,Adult Social Care & Health,EMBRACE LIMITED - REDACTED,03/10/2016,312.5
Bath & North East Somerset Council,80631363,LM6,Nursing Care,P11,Adult Social Care & Health,EMBRACE LIMITED - REDACTED,03/10/2016,312.5
Bath & North East Somerset Council,80631363,LM6,Nursing Care,P11,Adult Social Care & Health,EMBRACE LIMITED - REDACTED,03/10/2016,312.5
Bath & North East Somerset Council,80631363,LM6,Nursing Care,P11,Adult Social Care & Health,EMBRACE LIMITED - REDACTED,03/10/2016,312.5
Bath & North East Somerset Council,80631489,LM3,Residential Care,P11,Adult Social Care & Health,EMBRACE LIMITED - REDACTED,03/10/2016,904
Bath & North East Somerset Council,80631489,LM6,Nursing Care,P11,Adult Social Care & Health,EMBRACE LIMITED - REDACTED,03/10/2016,1152
Bath & North East Somerset Council,80631489,LM6,Nursing Care,P11,Adult Social Care & Health,EMBRACE LIMITED - REDACTED,03/10/2016,1152
Bath & North East Somerset Council,80631489,LM6,Nursing Care,P11,Adult Social Care & Health,EMBRACE LIMITED - REDACTED,03/10/2016,1152
Bath & North East Somerset Council,80631489,LM6,Nursing Care,P11,Adult Social Care & Health,EMBRACE LIMITED - REDACTED,03/10/2016,1248
Bath & North East Somerset Council,80631401,LM6,Nursing Care,P11,Adult Social Care & Health,EMBRACE LIMITED - REDACTED,03/10/2016,1300
Bath & North East Somerset Council,80631489,LM6,Nursing Care,P11,Adult Social Care & Health,EMBRACE LIMITED - REDACTED,03/10/2016,1314
Bath & North East Somerset Council,80631489,LM6,Nursing Care,P11,Adult Social Care & Health,EMBRACE LIMITED - REDACTED,03/10/2016,1326
Bath & North East Somerset Council,80631489,LM6,Nursing Care,P11,Adult Social Care & Health,EMBRACE LIMITED - REDACTED,03/10/2016,1340
Bath & North East Somerset Council,80631489,LM6,Nursing Care,P11,Adult Social Care & Health,EMBRACE LIMITED - REDACTED,03/10/2016,1340
Bath & North East Somerset Council,80631489,LM6,Nursing Care,P11,Adult Social Care & Health,EMBRACE LIMITED - REDACTED,03/10/2016,1354
Bath & North East Somerset Council,80631489,LM6,Nursing Care,P11,Adult Social Care & Health,EMBRACE LIMITED - REDACTED,03/10/2016,1356
Bath & North East Somerset Council,80631489,LM6,Nursing Care,P11,Adult Social Care & Health,EMBRACE LIMITED - REDACTED,03/10/2016,1374
Bath & North East Somerset Council,80631489,LM6,Nursing Care,P11,Adult Social Care & Health,EMBRACE LIMITED - REDACTED,03/10/2016,1400
Bath & North East Somerset Council,80631489,LM6,Nursing Care,P11,Adult Social Care & Health,EMBRACE LIMITED - REDACTED,03/10/2016,1516
Bath & North East Somerset Council,80631489,LM6,Nursing Care,P11,Adult Social Care & Health,EMBRACE LIMITED - REDACTED,03/10/2016,2020
Bath & North East Somerset Council,80631489,LM6,Nursing Care,P11,Adult Social Care & Health,EMBRACE LIMITED - REDACTED,03/10/2016,3000
Bath & North East Somerset Council,80631489,LM6,Nursing Care,P11,Adult Social Care & Health,EMBRACE LIMITED - REDACTED,03/10/2016,3030
Bath & North East Somerset Council,80631407,LM6,Nursing Care,P11,Adult Social Care & Health,EXTRAFRIEND LTD,03/10/2016,1525.5
Bath & North East Somerset Council,80631514,LM3,Residential Care,P11,Adult Social Care & Health,FARLEIGH SCHOOLS LIMITED,03/10/2016,3568
Bath & North East Somerset Council,80631514,LM3,Residential Care,P11,Adult Social Care & Health,FARLEIGH SCHOOLS LIMITED,03/10/2016,3721.26
Bath & North East Somerset Council,80631514,LM3,Residential Care,P11,Adult Social Care & Health,FARLEIGH SCHOOLS LIMITED,03/10/2016,4136
Bath & North East Somerset Council,80631514,LM3,Residential Care,P11,Adult Social Care & Health,FARLEIGH SCHOOLS LIMITED,03/10/2016,4228
Bath & North East Somerset Council,80631514,LM3,Residential Care,P11,Adult Social Care & Health,FARLEIGH SCHOOLS LIMITED,03/10/2016,5244
Bath & North East Somerset Council,80631520,LM6,Nursing Care,P11,Adult Social Care & Health,FIR LAWN NURSING HOME LTD,03/10/2016,1718
Bath & North East Somerset Council,80631585,LM3,Residential Care,P11,Adult Social Care & Health,FLOLLIE INVESTMENTS LTD,03/10/2016,1400
Bath & North East Somerset Council,80631544,LM6,Nursing Care,P11,Adult Social Care & Health,FOUR SEASONS EVEDALE LTD WHITCHURCH,03/10/2016,1152
Bath & North East Somerset Council,80631544,LM6,Nursing Care,P11,Adult Social Care & Health,FOUR SEASONS EVEDALE LTD WHITCHURCH,03/10/2016,1152
Bath & North East Somerset Council,80631544,LM6,Nursing Care,P11,Adult Social Care & Health,FOUR SEASONS EVEDALE LTD WHITCHURCH,03/10/2016,1152
Bath & North East Somerset Council,80631544,LM6,Nursing Care,P11,Adult Social Care & Health,FOUR SEASONS EVEDALE LTD WHITCHURCH,03/10/2016,1152
Bath & North East Somerset Council,80631544,LM6,Nursing Care,P11,Adult Social Care & Health,FOUR SEASONS EVEDALE LTD WHITCHURCH,03/10/2016,1152
Bath & North East Somerset Council,80631544,LM6,Nursing Care,P11,Adult Social Care & Health,FOUR SEASONS EVEDALE LTD WHITCHURCH,03/10/2016,1152
Bath & North East Somerset Council,80631544,LM6,Nursing Care,P11,Adult Social Care & Health,FOUR SEASONS EVEDALE LTD WHITCHURCH,03/10/2016,1152
Bath & North East Somerset Council,80631420,LM6,Nursing Care,P11,Adult Social Care & Health,FOUR SEASONS EVEDALE LTD WHITCHURCH,03/10/2016,1600
Bath & North East Somerset Council,80631544,LM6,Nursing Care,P11,Adult Social Care & Health,FOUR SEASONS EVEDALE LTD WHITCHURCH,03/10/2016,1700
Bath & North East Somerset Council,80631420,LM6,Nursing Care,P11,Adult Social Care & Health,FOUR SEASONS EVEDALE LTD WHITCHURCH,03/10/2016,1800
Bath & North East Somerset Council,80631524,LM3,Residential Care,P11,Adult Social Care & Health,FSHC NEWCO 2 LTD: REDACTED,03/10/2016,904
Bath & North East Somerset Council,80631524,LM3,Residential Care,P11,Adult Social Care & Health,FSHC NEWCO 2 LTD: REDACTED,03/10/2016,904
Bath & North East Somerset Council,80631524,LM3,Residential Care,P11,Adult Social Care & Health,FSHC NEWCO 2 LTD: REDACTED,03/10/2016,904
Bath & North East Somerset Council,80631524,LM3,Residential Care,P11,Adult Social Care & Health,FSHC NEWCO 2 LTD: REDACTED,03/10/2016,904
Bath & North East Somerset Council,80631524,LM3,Residential Care,P11,Adult Social Care & Health,FSHC NEWCO 2 LTD: REDACTED,03/10/2016,904
Bath & North East Somerset Council,80631524,LM3,Residential Care,P11,Adult Social Care & Health,FSHC NEWCO 2 LTD: REDACTED,03/10/2016,904
Bath & North East Somerset Council,80631524,LM3,Residential Care,P11,Adult Social Care & Health,FSHC NEWCO 2 LTD: REDACTED,03/10/2016,904
Bath & North East Somerset Council,80631524,LM3,Residential Care,P11,Adult Social Care & Health,FSHC NEWCO 2 LTD: REDACTED,03/10/2016,992
Bath & North East Somerset Council,80631524,LM3,Residential Care,P11,Adult Social Care & Health,FSHC NEWCO 2 LTD: REDACTED,03/10/2016,1400
Bath & North East Somerset Council,80631524,LM3,Residential Care,P11,Adult Social Care & Health,FSHC NEWCO 2 LTD: REDACTED,03/10/2016,1414
Bath & North East Somerset Council,80631524,LM3,Residential Care,P11,Adult Social Care & Health,FSHC NEWCO 2 LTD: REDACTED,03/10/2016,1414
Bath & North East Somerset Council,80631524,LM3,Residential Care,P11,Adult Social Care & Health,FSHC NEWCO 2 LTD: REDACTED,03/10/2016,1600
Bath & North East Somerset Council,80631524,LM3,Residential Care,P11,Adult Social Care & Health,FSHC NEWCO 2 LTD: REDACTED,03/10/2016,1700
Bath & North East Somerset Council,80631412,LM6,Nursing Care,P11,Adult Social Care & Health,GLENSIDE MANOR HEALTHCARE SERVICES LTD,03/10/2016,3022.52
Bath & North East Somerset Council,80631412,LM6,Nursing Care,P11,Adult Social Care & Health,GLENSIDE MANOR HEALTHCARE SERVICES LTD,03/10/2016,5518
Bath & North East Somerset Council,80631515,LM3,Residential Care,P11,Adult Social Care & Health,GLENSIDE MANOR HEALTHCARE SERVICES LTD,03/10/2016,8114
Bath & North East Somerset Council,80631559,LM6,Nursing Care,P11,Adult Social Care & Health,GRACEWELL HEALTHCARE LTD,03/10/2016,1940
Bath & North East Somerset Council,80631455,LM6,Nursing Care,P11,Adult Social Care & Health,GRAND CROSS LTD RE KINGSWOOD COURT,03/10/2016,1350
Bath & North East Somerset Council,80631455,LM6,Nursing Care,P11,Adult Social Care & Health,GRAND CROSS LTD RE KINGSWOOD COURT,03/10/2016,1350
Bath & North East Somerset Council,80631586,LM3,Residential Care,P11,Adult Social Care & Health,GRAPEVINE CARE LTD,03/10/2016,6647.6
Bath & North East Somerset Council,80631578,LM6,Nursing Care,P11,Adult Social Care & Health,GROVE CARE LTD,03/10/2016,1990
Bath & North East Somerset Council,80631578,LM6,Nursing Care,P11,Adult Social Care & Health,GROVE CARE LTD,03/10/2016,2200
Bath & North East Somerset Council,80631488,LM9,Day Care,P11,Adult Social Care & Health,S.W.A.L.L.O.W. LTD,03/10/2016,1119.18
Bath & North East Somerset Council,80631522,LM3,Residential Care,P11,Adult Social Care & Health,GROVE CARE LTD T/A ORIEL LODGE,03/10/2016,1100
Bath & North East Somerset Council,80631522,LM3,Residential Care,P11,Adult Social Care & Health,GROVE CARE LTD T/A ORIEL LODGE,03/10/2016,1226
Bath & North East Somerset Council,80631522,LM3,Residential Care,P11,Adult Social Care & Health,GROVE CARE LTD T/A ORIEL LODGE,03/10/2016,1226
Bath & North East Somerset Council,80631522,LM3,Residential Care,P11,Adult Social Care & Health,GROVE CARE LTD T/A ORIEL LODGE,03/10/2016,1500
Bath & North East Somerset Council,80631634,LL8,Individualised Budget,P11,Adult Social Care & Health,REDACTED,03/10/2016,558.2
Bath & North East Somerset Council,80631807,LL8,Individualised Budget,P11,Adult Social Care & Health,REDACTED,03/10/2016,861.4
Bath & North East Somerset Council,80631426,LM6,Nursing Care,P11,Adult Social Care & Health,HEATHERWOOD COURT LTD,03/10/2016,6132.7
Bath & North East Somerset Council,80631556,LM3,Residential Care,P11,Adult Social Care & Health,HF TRUST LTD,03/10/2016,3088
Bath & North East Somerset Council,80631490,LM3,Residential Care,P11,Adult Social Care & Health,HOME FARM TRUST,03/10/2016,1936
Bath & North East Somerset Council,80631507,LM3,Residential Care,P11,Adult Social Care & Health,HOME FARM TRUST LTD,03/10/2016,1706
Bath & North East Somerset Council,80631482,LM3,Residential Care,P11,Adult Social Care & Health,HOMES TOGETHER LTD,03/10/2016,3466
Bath & North East Somerset Council,80631706,LL8,Individualised Budget,P11,Adult Social Care & Health,REDACTED,03/10/2016,1496.84
Bath & North East Somerset Council,80631409,LM6,Nursing Care,P11,Adult Social Care & Health,INTEGRATED MENTAL HEALTH CARE SERVICES LTD,03/10/2016,1947.6
Bath & North East Somerset Council,80631835,LL8,Individualised Budget,P11,Adult Social Care & Health,REDACTED,03/10/2016,713.06
Bath & North East Somerset Council,80631816,LL8,Individualised Budget,P11,Adult Social Care & Health,REDACTED,03/10/2016,1273.48
Bath & North East Somerset Council,80631382,LL8,Individualised Budget,P12,Children's Services,REDACTED,03/10/2016,529.22
Bath & North East Somerset Council,80631598,LL8,Individualised Budget,P11,Adult Social Care & Health,REDACTED,03/10/2016,1676.62
Bath & North East Somerset Council,80631564,LM3,Residential Care,P11,Adult Social Care & Health,KAHANAH CARE LTD,03/10/2016,1226
Bath & North East Somerset Council,80631425,LM6,Nursing Care,P11,Adult Social Care & Health,REDACTED,03/10/2016,1160
Bath & North East Somerset Council,80631631,LL8,Individualised Budget,P11,Adult Social Care & Health,REDACTED,03/10/2016,848.4
Bath & North East Somerset Council,80631535,LM3,Residential Care,P11,Adult Social Care & Health,REDACTED,03/10/2016,992
Bath & North East Somerset Council,80631543,LM3,Residential Care,P11,Adult Social Care & Health,KINGFISHER HEALTHCARE LIMITED,03/10/2016,1192
Bath & North East Somerset Council,80631594,LL8,Individualised Budget,P11,Adult Social Care & Health,REDACTED - DIRECT PAYMENT A/C,03/10/2016,887.18
Bath & North East Somerset Council,80631360,LM6,Nursing Care,P11,Adult Social Care & Health,LARKHALL SPRINGS NURSING HOME,03/10/2016,312.5
Bath & North East Somerset Council,80631360,LM6,Nursing Care,P11,Adult Social Care & Health,LARKHALL SPRINGS NURSING HOME,03/10/2016,312.5
Bath & North East Somerset Council,80631360,LM6,Nursing Care,P11,Adult Social Care & Health,LARKHALL SPRINGS NURSING HOME,03/10/2016,312.5
Bath & North East Somerset Council,80631360,LM6,Nursing Care,P11,Adult Social Care & Health,LARKHALL SPRINGS NURSING HOME,03/10/2016,312.5
Bath & North East Somerset Council,80631360,LM6,Nursing Care,P11,Adult Social Care & Health,LARKHALL SPRINGS NURSING HOME,03/10/2016,312.5
Bath & North East Somerset Council,80631360,LM6,Nursing Care,P11,Adult Social Care & Health,LARKHALL SPRINGS NURSING HOME,03/10/2016,312.5
Bath & North East Somerset Council,80631360,LM6,Nursing Care,P11,Adult Social Care & Health,LARKHALL SPRINGS NURSING HOME,03/10/2016,312.5
Bath & North East Somerset Council,80631360,LM6,Nursing Care,P11,Adult Social Care & Health,LARKHALL SPRINGS NURSING HOME,03/10/2016,312.5
Bath & North East Somerset Council,80631360,LM6,Nursing Care,P11,Adult Social Care & Health,LARKHALL SPRINGS NURSING HOME,03/10/2016,312.5
Bath & North East Somerset Council,80631360,LM6,Nursing Care,P11,Adult Social Care & Health,LARKHALL SPRINGS NURSING HOME,03/10/2016,312.5
Bath & North East Somerset Council,80631360,LM6,Nursing Care,P11,Adult Social Care & Health,LARKHALL SPRINGS NURSING HOME,03/10/2016,312.5
Bath & North East Somerset Council,80631360,LM6,Nursing Care,P11,Adult Social Care & Health,LARKHALL SPRINGS NURSING HOME,03/10/2016,312.5
Bath & North East Somerset Council,80631360,LM6,Nursing Care,P11,Adult Social Care & Health,LARKHALL SPRINGS NURSING HOME,03/10/2016,312.5
Bath & North East Somerset Council,80631360,LM6,Nursing Care,P11,Adult Social Care & Health,LARKHALL SPRINGS NURSING HOME,03/10/2016,312.5
Bath & North East Somerset Council,80631488,LM9,Day Care,P11,Adult Social Care & Health,S.W.A.L.L.O.W. LTD,03/10/2016,1170.48
Bath & North East Somerset Council,80631460,LM6,Nursing Care,P11,Adult Social Care & Health,LARKHALL SPRINGS NURSING HOME,03/10/2016,1196
Bath & North East Somerset Council,80631460,LM6,Nursing Care,P11,Adult Social Care & Health,LARKHALL SPRINGS NURSING HOME,03/10/2016,1224
Bath & North East Somerset Council,80631460,LM6,Nursing Care,P11,Adult Social Care & Health,LARKHALL SPRINGS NURSING HOME,03/10/2016,1226
Bath & North East Somerset Council,80631460,LM6,Nursing Care,P11,Adult Social Care & Health,LARKHALL SPRINGS NURSING HOME,03/10/2016,1328
Bath & North East Somerset Council,80631460,LM6,Nursing Care,P11,Adult Social Care & Health,LARKHALL SPRINGS NURSING HOME,03/10/2016,1430
Bath & North East Somerset Council,80631460,LM6,Nursing Care,P11,Adult Social Care & Health,LARKHALL SPRINGS NURSING HOME,03/10/2016,1430
Bath & North East Somerset Council,80631460,LM6,Nursing Care,P11,Adult Social Care & Health,LARKHALL SPRINGS NURSING HOME,03/10/2016,1472
Bath & North East Somerset Council,80631397,LM6,Nursing Care,P11,Adult Social Care & Health,LARKHALL SPRINGS NURSING HOME,03/10/2016,1500
Bath & North East Somerset Council,80631460,LM6,Nursing Care,P11,Adult Social Care & Health,LARKHALL SPRINGS NURSING HOME,03/10/2016,1500
Bath & North East Somerset Council,80631460,LM6,Nursing Care,P11,Adult Social Care & Health,LARKHALL SPRINGS NURSING HOME,03/10/2016,1528
Bath & North East Somerset Council,80631460,LM6,Nursing Care,P11,Adult Social Care & Health,LARKHALL SPRINGS NURSING HOME,03/10/2016,1528
Bath & North East Somerset Council,80631460,LM6,Nursing Care,P11,Adult Social Care & Health,LARKHALL SPRINGS NURSING HOME,03/10/2016,1532
Bath & North East Somerset Council,80631397,LM6,Nursing Care,P11,Adult Social Care & Health,LARKHALL SPRINGS NURSING HOME,03/10/2016,1550
Bath & North East Somerset Council,80631460,LM6,Nursing Care,P11,Adult Social Care & Health,LARKHALL SPRINGS NURSING HOME,03/10/2016,1552
Bath & North East Somerset Council,80631460,LM6,Nursing Care,P11,Adult Social Care & Health,LARKHALL SPRINGS NURSING HOME,03/10/2016,1574
Bath & North East Somerset Council,80631460,LM6,Nursing Care,P11,Adult Social Care & Health,LARKHALL SPRINGS NURSING HOME,03/10/2016,1714
Bath & North East Somerset Council,10823488,3F7,PCB External Fees,P10,Finance & Efficiency,MDA CONSULTING LTD,03/10/2016,1200
Bath & North East Somerset Council,80631460,LM6,Nursing Care,P11,Adult Social Care & Health,LARKHALL SPRINGS NURSING HOME,03/10/2016,1718
Bath & North East Somerset Council,80631460,LM6,Nursing Care,P11,Adult Social Care & Health,LARKHALL SPRINGS NURSING HOME,03/10/2016,1768
Bath & North East Somerset Council,80631460,LM6,Nursing Care,P11,Adult Social Care & Health,LARKHALL SPRINGS NURSING HOME,03/10/2016,1800
Bath & North East Somerset Council,80631555,LM6,Nursing Care,P11,Adult Social Care & Health,LAUDCARE LTD,03/10/2016,1188
Bath & North East Somerset Council,80631553,LM6,Nursing Care,P11,Adult Social Care & Health,LAUDCARE LTD,03/10/2016,1560
Bath & North East Somerset Council,80631563,LM9,Day Care,P11,Adult Social Care & Health,LEARNING & LIVING KEYNSHAM LTD,03/10/2016,1818
Bath & North East Somerset Council,80631563,LM9,Day Care,P11,Adult Social Care & Health,LEARNING & LIVING KEYNSHAM LTD,03/10/2016,1818
Bath & North East Somerset Council,80631365,LM6,Nursing Care,P11,Adult Social Care & Health,LEONARD CHESHIRE FOUNDATION,03/10/2016,312.5
Bath & North East Somerset Council,80631365,LM6,Nursing Care,P11,Adult Social Care & Health,LEONARD CHESHIRE FOUNDATION,03/10/2016,312.5
Bath & North East Somerset Council,80631365,LM6,Nursing Care,P11,Adult Social Care & Health,LEONARD CHESHIRE FOUNDATION,03/10/2016,312.5
Bath & North East Somerset Council,80631365,LM6,Nursing Care,P11,Adult Social Care & Health,LEONARD CHESHIRE FOUNDATION,03/10/2016,312.5
Bath & North East Somerset Council,80631504,LM3,Residential Care,P11,Adult Social Care & Health,LEONARD CHESHIRE FOUNDATION,03/10/2016,2108
Bath & North East Somerset Council,80631504,LM3,Residential Care,P11,Adult Social Care & Health,LEONARD CHESHIRE FOUNDATION,03/10/2016,2214
Bath & North East Somerset Council,80631504,LM6,Nursing Care,P11,Adult Social Care & Health,LEONARD CHESHIRE FOUNDATION,03/10/2016,2214
Bath & North East Somerset Council,80631504,LM3,Residential Care,P11,Adult Social Care & Health,LEONARD CHESHIRE FOUNDATION,03/10/2016,2246
Bath & North East Somerset Council,80631504,LM3,Residential Care,P11,Adult Social Care & Health,LEONARD CHESHIRE FOUNDATION,03/10/2016,2324
Bath & North East Somerset Council,80631504,LM3,Residential Care,P11,Adult Social Care & Health,LEONARD CHESHIRE FOUNDATION,03/10/2016,2348
Bath & North East Somerset Council,80631504,LM6,Nursing Care,P11,Adult Social Care & Health,LEONARD CHESHIRE FOUNDATION,03/10/2016,2400
Bath & North East Somerset Council,80631504,LM6,Nursing Care,P11,Adult Social Care & Health,LEONARD CHESHIRE FOUNDATION,03/10/2016,2422
Bath & North East Somerset Council,80631504,LM3,Residential Care,P11,Adult Social Care & Health,LEONARD CHESHIRE FOUNDATION,03/10/2016,2436
Bath & North East Somerset Council,80631504,LM6,Nursing Care,P11,Adult Social Care & Health,LEONARD CHESHIRE FOUNDATION,03/10/2016,2472
Bath & North East Somerset Council,80631504,LM3,Residential Care,P11,Adult Social Care & Health,LEONARD CHESHIRE FOUNDATION,03/10/2016,2488
Bath & North East Somerset Council,80631504,LM3,Residential Care,P11,Adult Social Care & Health,LEONARD CHESHIRE FOUNDATION,03/10/2016,2504
Bath & North East Somerset Council,80631405,LM6,Nursing Care,P11,Adult Social Care & Health,LEONARD CHESHIRE FOUNDATION,03/10/2016,2543.12
Bath & North East Somerset Council,80631504,LM3,Residential Care,P11,Adult Social Care & Health,LEONARD CHESHIRE FOUNDATION,03/10/2016,2574.32
Bath & North East Somerset Council,80631504,LM6,Nursing Care,P11,Adult Social Care & Health,LEONARD CHESHIRE FOUNDATION,03/10/2016,2598
Bath & North East Somerset Council,80631405,LM6,Nursing Care,P11,Adult Social Care & Health,LEONARD CHESHIRE FOUNDATION,03/10/2016,2642.1
Bath & North East Somerset Council,80631405,LM6,Nursing Care,P11,Adult Social Care & Health,LEONARD CHESHIRE FOUNDATION,03/10/2016,2808.52
Bath & North East Somerset Council,80631504,LM6,Nursing Care,P11,Adult Social Care & Health,LEONARD CHESHIRE FOUNDATION,03/10/2016,2814.38
Bath & North East Somerset Council,80631504,LM6,Nursing Care,P11,Adult Social Care & Health,LEONARD CHESHIRE FOUNDATION,03/10/2016,2912
Bath & North East Somerset Council,80631405,LM6,Nursing Care,P11,Adult Social Care & Health,LEONARD CHESHIRE FOUNDATION,03/10/2016,2959.88
Bath & North East Somerset Council,80631405,LM6,Nursing Care,P11,Adult Social Care & Health,LEONARD CHESHIRE FOUNDATION,03/10/2016,2980.5
Bath & North East Somerset Council,80631504,LM6,Nursing Care,P11,Adult Social Care & Health,LEONARD CHESHIRE FOUNDATION,03/10/2016,2980.96
Bath & North East Somerset Council,80631504,LM6,Nursing Care,P11,Adult Social Care & Health,LEONARD CHESHIRE FOUNDATION,03/10/2016,3086.24
Bath & North East Somerset Council,80631587,LM6,Nursing Care,P11,Adult Social Care & Health,LITTLE SISTERS OF POOR RE BRISTOL FEES,03/10/2016,1684
Bath & North East Somerset Council,80631575,LM6,Nursing Care,P11,Adult Social Care & Health,LONGLEY HEALTHCARE LTD,03/10/2016,5528.71
Bath & North East Somerset Council,80631619,LL8,Individualised Budget,P11,Adult Social Care & Health,REDACTED,03/10/2016,1464.1
Bath & North East Somerset Council,80631492,LM8,Home Care,P11,Adult Social Care & Health,MANOR COMMUNITY CARE HOME,03/10/2016,635.2
Bath & North East Somerset Council,80631492,LM8,Home Care,P11,Adult Social Care & Health,MANOR COMMUNITY CARE HOME,03/10/2016,1333.92
Bath & North East Somerset Council,80631492,LM3,Residential Care,P11,Adult Social Care & Health,MANOR COMMUNITY CARE HOME,03/10/2016,1630
Bath & North East Somerset Council,80631492,LM3,Residential Care,P11,Adult Social Care & Health,MANOR COMMUNITY CARE HOME,03/10/2016,2086
Bath & North East Somerset Council,80631492,LM3,Residential Care,P11,Adult Social Care & Health,MANOR COMMUNITY CARE HOME,03/10/2016,2608
Bath & North East Somerset Council,80631442,LM3,Residential Care,P11,Adult Social Care & Health,MANOR HOUSE,03/10/2016,1116
Bath & North East Somerset Council,80631442,LM3,Residential Care,P11,Adult Social Care & Health,MANOR HOUSE,03/10/2016,1350
Bath & North East Somerset Council,80631442,LM3,Residential Care,P11,Adult Social Care & Health,MANOR HOUSE,03/10/2016,1482
Bath & North East Somerset Council,80631442,LM3,Residential Care,P11,Adult Social Care & Health,MANOR HOUSE,03/10/2016,2668
Bath & North East Somerset Council,80631589,LM6,Nursing Care,P11,Adult Social Care & Health,MARSDEN HEALTHCARE LTD,03/10/2016,2430
Bath & North East Somerset Council,80631557,LM3,Residential Care,P11,Adult Social Care & Health,MARTHA TRUST HEREFORD LTD CORPORATE SP,03/10/2016,5812
Bath & North East Somerset Council,80631477,LM3,Residential Care,P11,Adult Social Care & Health,METHODIST HOMES FOR THE AGED,03/10/2016,904
Bath & North East Somerset Council,80631477,LM3,Residential Care,P11,Adult Social Care & Health,METHODIST HOMES FOR THE AGED,03/10/2016,1124
Bath & North East Somerset Council,80631477,LM3,Residential Care,P11,Adult Social Care & Health,METHODIST HOMES FOR THE AGED,03/10/2016,1212
Bath & North East Somerset Council,80631477,LM3,Residential Care,P11,Adult Social Care & Health,METHODIST HOMES FOR THE AGED,03/10/2016,1340
Bath & North East Somerset Council,80631477,LM3,Residential Care,P11,Adult Social Care & Health,METHODIST HOMES FOR THE AGED,03/10/2016,1400
Bath & North East Somerset Council,80631399,LM6,Nursing Care,P11,Adult Social Care & Health,METHODIST HOMES FOR THE AGED,03/10/2016,1422
Bath & North East Somerset Council,80631477,LM6,Nursing Care,P11,Adult Social Care & Health,METHODIST HOMES FOR THE AGED,03/10/2016,1604
Bath & North East Somerset Council,80631726,LL8,Individualised Budget,P11,Adult Social Care & Health,REDACTED,03/10/2016,618
Bath & North East Somerset Council,80631793,LL8,Individualised Budget,P11,Adult Social Care & Health,REDACTED,03/10/2016,1197.46
Bath & North East Somerset Council,80631541,LM3,Residential Care,P11,Adult Social Care & Health,MILESTONES TRUST,03/10/2016,1932
Bath & North East Somerset Council,80631547,LM3,Residential Care,P11,Adult Social Care & Health,MILESTONES TRUST,03/10/2016,2014
Bath & North East Somerset Council,80631541,LM3,Residential Care,P11,Adult Social Care & Health,MILESTONES TRUST,03/10/2016,2464
Bath & North East Somerset Council,80631570,LM6,Nursing Care,P11,Adult Social Care & Health,MIRANDA HOUSE,03/10/2016,1492
Bath & North East Somerset Council,80631570,LM6,Nursing Care,P11,Adult Social Care & Health,MIRANDA HOUSE,03/10/2016,1492
Bath & North East Somerset Council,80631641,LL8,Individualised Budget,P11,Adult Social Care & Health,REDACTED,03/10/2016,1521.06
Bath & North East Somerset Council,80631837,LL8,Individualised Budget,P11,Adult Social Care & Health,REDACTED,03/10/2016,533.24
Bath & North East Somerset Council,10823480,HA3,Planned Maintenance,P09,Homes & Planning,KLENZAN LTD,03/10/2016,1339
Bath & North East Somerset Council,80631824,LL8,Individualised Budget,P11,Adult Social Care & Health,REDACTED,03/10/2016,2651.4
Bath & North East Somerset Council,80631773,LL8,Individualised Budget,P11,Adult Social Care & Health,REDACTED,03/10/2016,624.3
Bath & North East Somerset Council,80631734,LL8,Individualised Budget,P11,Adult Social Care & Health,REDACTED,03/10/2016,554.12
Bath & North East Somerset Council,80631714,LL8,Individualised Budget,P11,Adult Social Care & Health,REDACTED,03/10/2016,549.94
Bath & North East Somerset Council,80631830,LL8,Individualised Budget,P11,Adult Social Care & Health,REDACTED,03/10/2016,514.7
Bath & North East Somerset Council,80631376,LL8,Individualised Budget,P11,Adult Social Care & Health,REDACTED,03/10/2016,5069.68
Bath & North East Somerset Council,80631756,LL8,Individualised Budget,P11,Adult Social Care & Health,REDACTED,03/10/2016,994.48
Bath & North East Somerset Council,80631423,LM6,Nursing Care,P11,Adult Social Care & Health,MORRIS CARE LTD,03/10/2016,3288.4
Bath & North East Somerset Council,80631439,LM3,Residential Care,P11,Adult Social Care & Health,MOSTYN LODGE,03/10/2016,904
Bath & North East Somerset Council,80631439,LM3,Residential Care,P11,Adult Social Care & Health,MOSTYN LODGE,03/10/2016,904
Bath & North East Somerset Council,80631439,LM3,Residential Care,P11,Adult Social Care & Health,MOSTYN LODGE,03/10/2016,904
Bath & North East Somerset Council,80631439,LM3,Residential Care,P11,Adult Social Care & Health,MOSTYN LODGE,03/10/2016,904
Bath & North East Somerset Council,80631439,LM3,Residential Care,P11,Adult Social Care & Health,MOSTYN LODGE,03/10/2016,904
Bath & North East Somerset Council,80631439,LM3,Residential Care,P11,Adult Social Care & Health,MOSTYN LODGE,03/10/2016,904
Bath & North East Somerset Council,80631439,LM3,Residential Care,P11,Adult Social Care & Health,MOSTYN LODGE,03/10/2016,904
Bath & North East Somerset Council,80631439,LM3,Residential Care,P11,Adult Social Care & Health,MOSTYN LODGE,03/10/2016,904
Bath & North East Somerset Council,80631716,LL8,Individualised Budget,P11,Adult Social Care & Health,REDACTED,03/10/2016,706.54
Bath & North East Somerset Council,80631657,LL8,Individualised Budget,P11,Adult Social Care & Health,REDACTED,03/10/2016,1985.4
Bath & North East Somerset Council,80631827,LL8,Individualised Budget,P11,Adult Social Care & Health,REDACTED,03/10/2016,744.04
Bath & North East Somerset Council,80631629,LL8,Individualised Budget,P11,Adult Social Care & Health,REDACTED,03/10/2016,751.44
Bath & North East Somerset Council,80631757,LL8,Individualised Budget,P11,Adult Social Care & Health,REDACTED,03/10/2016,1866.16
Bath & North East Somerset Council,80631695,LL8,Individualised Budget,P11,Adult Social Care & Health,REDACTED,03/10/2016,1943.62
Bath & North East Somerset Council,80631834,LL8,Individualised Budget,P11,Adult Social Care & Health,REDACTED,03/10/2016,1036.12
Bath & North East Somerset Council,80631622,LL8,Individualised Budget,P11,Adult Social Care & Health,REDACTED,03/10/2016,1872.8
Bath & North East Somerset Council,80631484,LM3,Residential Care,P11,Adult Social Care & Health,REDACTED,03/10/2016,2258
Bath & North East Somerset Council,80631484,LM3,Residential Care,P11,Adult Social Care & Health,REDACTED,03/10/2016,2314
Bath & North East Somerset Council,80631484,LM3,Residential Care,P11,Adult Social Care & Health,REDACTED,03/10/2016,2418
Bath & North East Somerset Council,80631484,LM3,Residential Care,P11,Adult Social Care & Health,REDACTED,03/10/2016,2638
Bath & North East Somerset Council,80631484,LM3,Residential Care,P11,Adult Social Care & Health,REDACTED,03/10/2016,3010
Bath & North East Somerset Council,80631484,LM3,Residential Care,P11,Adult Social Care & Health,REDACTED,03/10/2016,3840
Bath & North East Somerset Council,80631484,LM3,Residential Care,P11,Adult Social Care & Health,REDACTED,03/10/2016,3906
Bath & North East Somerset Council,80631400,LM3,Residential Care,P11,Adult Social Care & Health,REDACTED,03/10/2016,4211
Bath & North East Somerset Council,80631484,LM3,Residential Care,P11,Adult Social Care & Health,REDACTED,03/10/2016,4836
Bath & North East Somerset Council,80631484,LM3,Residential Care,P11,Adult Social Care & Health,REDACTED,03/10/2016,5378
Bath & North East Somerset Council,80631484,LM3,Residential Care,P11,Adult Social Care & Health,REDACTED,03/10/2016,5458
Bath & North East Somerset Council,80631484,LM3,Residential Care,P11,Adult Social Care & Health,REDACTED,03/10/2016,5702
Bath & North East Somerset Council,80631484,LM3,Residential Care,P11,Adult Social Care & Health,REDACTED,03/10/2016,5978
Bath & North East Somerset Council,80631653,LL8,Individualised Budget,P11,Adult Social Care & Health,REDACTED,03/10/2016,1313
Bath & North East Somerset Council,80631380,LL8,Individualised Budget,P11,Adult Social Care & Health,REDACTED,03/10/2016,2743.98
Bath & North East Somerset Council,80631784,LL8,Individualised Budget,P11,Adult Social Care & Health,REDACTED,03/10/2016,529.48
Bath & North East Somerset Council,80631727,LL8,Individualised Budget,P11,Adult Social Care & Health,REDACTED,03/10/2016,865.44
Bath & North East Somerset Council,80631663,LL8,Individualised Budget,P11,Adult Social Care & Health,REDACTED,03/10/2016,1313
Bath & North East Somerset Council,80631754,LL8,Individualised Budget,P11,Adult Social Care & Health,REDACTED,03/10/2016,690.06
Bath & North East Somerset Council,80631740,LL8,Individualised Budget,P11,Adult Social Care & Health,REDACTED,03/10/2016,627.52
Bath & North East Somerset Council,10823451,LK1,Fees,P12,Children's Services,TAMSCOT LTD,03/10/2016,1500
Bath & North East Somerset Council,80631753,LL8,Individualised Budget,P11,Adult Social Care & Health,REDACTED,03/10/2016,1636.76
Bath & North East Somerset Council,80631612,LL8,Individualised Budget,P11,Adult Social Care & Health,REDACTED,03/10/2016,2053.26
Bath & North East Somerset Council,80631686,LL8,Individualised Budget,P11,Adult Social Care & Health,REDACTED,03/10/2016,1356
Bath & North East Somerset Council,80631776,LL8,Individualised Budget,P11,Adult Social Care & Health,REDACTED,03/10/2016,585.16
Bath & North East Somerset Council,80631738,LL8,Individualised Budget,P11,Adult Social Care & Health,REDACTED,03/10/2016,3274.74
Bath & North East Somerset Council,80631712,LL8,Individualised Budget,P11,Adult Social Care & Health,REDACTED,03/10/2016,2939.62
Bath & North East Somerset Council,80631762,LL8,Individualised Budget,P11,Adult Social Care & Health,REDACTED,03/10/2016,789.9
Bath & North East Somerset Council,80631602,LL8,Individualised Budget,P11,Adult Social Care & Health,REDACTED,03/10/2016,2139.94
Bath & North East Somerset Council,80631642,LL8,Individualised Budget,P11,Adult Social Care & Health,REDACTED,03/10/2016,578.66
Bath & North East Somerset Council,80631744,LL8,Individualised Budget,P11,Adult Social Care & Health,REDACTED,03/10/2016,633.52
Bath & North East Somerset Council,80631377,LL8,Individualised Budget,P11,Adult Social Care & Health,REDACTED,03/10/2016,994.1
Bath & North East Somerset Council,80631705,LL8,Individualised Budget,P11,Adult Social Care & Health,REDACTED - ILSA ACCOUNT,03/10/2016,1607.34
Bath & North East Somerset Council,80631838,LL8,Individualised Budget,P11,Adult Social Care & Health,REDACTED,03/10/2016,617.04
Bath & North East Somerset Council,80631718,LL8,Individualised Budget,P11,Adult Social Care & Health,REDACTED,03/10/2016,1751.82
Bath & North East Somerset Council,80631847,LL4,Direct Payments,P12,Children's Services,REDACTED,03/10/2016,529.4
Bath & North East Somerset Council,80631845,LL8,Individualised Budget,P11,Adult Social Care & Health,REDACTED,03/10/2016,1009.02
Bath & North East Somerset Council,80631682,LL8,Individualised Budget,P11,Adult Social Care & Health,REDACTED,03/10/2016,798
Bath & North East Somerset Council,80631373,LL8,Individualised Budget,P11,Adult Social Care & Health,REDACTED,03/10/2016,850.2
Bath & North East Somerset Council,80631658,LL4,Direct Payments,P12,Children's Services,REDACTED,03/10/2016,552.02
Bath & North East Somerset Council,80631760,LL8,Individualised Budget,P11,Adult Social Care & Health,REDACTED,03/10/2016,949.48
Bath & North East Somerset Council,80631805,LL8,Individualised Budget,P11,Adult Social Care & Health,REDACTED,03/10/2016,707
Bath & North East Somerset Council,80631848,LL8,Individualised Budget,P11,Adult Social Care & Health,REDACTED,03/10/2016,521.16
Bath & North East Somerset Council,80631711,LL8,Individualised Budget,P11,Adult Social Care & Health,REDACTED,03/10/2016,684.08
Bath & North East Somerset Council,80631799,LL8,Individualised Budget,P11,Adult Social Care & Health,REDACTED,03/10/2016,3923.34
Bath & North East Somerset Council,80631709,LL8,Individualised Budget,P11,Adult Social Care & Health,REDACTED,03/10/2016,742.48
Bath & North East Somerset Council,80631684,LL8,Individualised Budget,P11,Adult Social Care & Health,REDACTED,03/10/2016,1626.56
Bath & North East Somerset Council,80631604,LL8,Individualised Budget,P11,Adult Social Care & Health,REDACTED,03/10/2016,1750.06
Bath & North East Somerset Council,80631698,LL8,Individualised Budget,P11,Adult Social Care & Health,REDACTED,03/10/2016,3834.74
Bath & North East Somerset Council,80631772,LL8,Individualised Budget,P11,Adult Social Care & Health,REDACTED,03/10/2016,4007.74
Bath & North East Somerset Council,80631815,LL8,Individualised Budget,P11,Adult Social Care & Health,REDACTED,03/10/2016,661.76
Bath & North East Somerset Council,80631676,LL8,Individualised Budget,P11,Adult Social Care & Health,REDACTED,03/10/2016,1753.86
Bath & North East Somerset Council,80631704,LL8,Individualised Budget,P11,Adult Social Care & Health,REDACTED,03/10/2016,4717.78
Bath & North East Somerset Council,80631768,LL8,Individualised Budget,P11,Adult Social Care & Health,REDACTED,03/10/2016,1436.42
Bath & North East Somerset Council,80631854,LL8,Individualised Budget,P11,Adult Social Care & Health,REDACTED,03/10/2016,1416.74
Bath & North East Somerset Council,80631708,LL8,Individualised Budget,P11,Adult Social Care & Health,REDACTED,03/10/2016,3584.14
Bath & North East Somerset Council,80631719,LL4,Direct Payments,P12,Children's Services,REDACTED,03/10/2016,619.5
Bath & North East Somerset Council,80631670,LL8,Individualised Budget,P11,Adult Social Care & Health,REDACTED,03/10/2016,567.62
Bath & North East Somerset Council,80631703,LL8,Individualised Budget,P11,Adult Social Care & Health,REDACTED,03/10/2016,1681.66
Bath & North East Somerset Council,10823471,LK1,Fees,P14,Community Services,BRANDON HIRE PLC,03/10/2016,1650
Bath & North East Somerset Council,80631558,LM3,Residential Care,P11,Adult Social Care & Health,N BRADBURY HOUSE ORGANISATION,03/10/2016,4452
Bath & North East Somerset Council,80631558,LM3,Residential Care,P11,Adult Social Care & Health,N BRADBURY HOUSE ORGANISATION,03/10/2016,8970
Bath & North East Somerset Council,80631539,LM3,Residential Care,P11,Adult Social Care & Health,NEWBRIDGE TOWERS RESIDENTIAL CARE HOME,03/10/2016,904
Bath & North East Somerset Council,80631539,LM3,Residential Care,P11,Adult Social Care & Health,NEWBRIDGE TOWERS RESIDENTIAL CARE HOME,03/10/2016,904
Bath & North East Somerset Council,80631539,LM3,Residential Care,P11,Adult Social Care & Health,NEWBRIDGE TOWERS RESIDENTIAL CARE HOME,03/10/2016,904
Bath & North East Somerset Council,80631488,LM9,Day Care,P11,Adult Social Care & Health,S.W.A.L.L.O.W. LTD,03/10/2016,1667.6
Bath & North East Somerset Council,80631539,LM3,Residential Care,P11,Adult Social Care & Health,NEWBRIDGE TOWERS RESIDENTIAL CARE HOME,03/10/2016,992
Bath & North East Somerset Council,80631539,LM3,Residential Care,P11,Adult Social Care & Health,NEWBRIDGE TOWERS RESIDENTIAL CARE HOME,03/10/2016,992
Bath & North East Somerset Council,80631539,LM3,Residential Care,P11,Adult Social Care & Health,NEWBRIDGE TOWERS RESIDENTIAL CARE HOME,03/10/2016,1020
Bath & North East Somerset Council,80631539,LM3,Residential Care,P11,Adult Social Care & Health,NEWBRIDGE TOWERS RESIDENTIAL CARE HOME,03/10/2016,1072
Bath & North East Somerset Council,80631539,LM3,Residential Care,P11,Adult Social Care & Health,NEWBRIDGE TOWERS RESIDENTIAL CARE HOME,03/10/2016,1314
Bath & North East Somerset Council,80631539,LM3,Residential Care,P11,Adult Social Care & Health,NEWBRIDGE TOWERS RESIDENTIAL CARE HOME,03/10/2016,1314
Bath & North East Somerset Council,80631539,LM3,Residential Care,P11,Adult Social Care & Health,NEWBRIDGE TOWERS RESIDENTIAL CARE HOME,03/10/2016,1314
Bath & North East Somerset Council,80631539,LM3,Residential Care,P11,Adult Social Care & Health,NEWBRIDGE TOWERS RESIDENTIAL CARE HOME,03/10/2016,1414
Bath & North East Somerset Council,80631581,LM3,Residential Care,P11,Adult Social Care & Health,NUTLEY LODGE,03/10/2016,904
Bath & North East Somerset Council,80631548,LM3,Residential Care,P11,Adult Social Care & Health,OAK BANK RESIDENTIAL HOME LTD,03/10/2016,2014
Bath & North East Somerset Council,80631359,LM6,Nursing Care,P11,Adult Social Care & Health,REDACTED,03/10/2016,312.5
Bath & North East Somerset Council,80631359,LM6,Nursing Care,P11,Adult Social Care & Health,REDACTED,03/10/2016,312.5
Bath & North East Somerset Council,80631359,LM6,Nursing Care,P11,Adult Social Care & Health,REDACTED,03/10/2016,312.5
Bath & North East Somerset Council,80631359,LM6,Nursing Care,P11,Adult Social Care & Health,REDACTED,03/10/2016,312.5
Bath & North East Somerset Council,80631359,LM6,Nursing Care,P11,Adult Social Care & Health,REDACTED,03/10/2016,312.5
Bath & North East Somerset Council,80631359,LM6,Nursing Care,P11,Adult Social Care & Health,REDACTED,03/10/2016,312.5
Bath & North East Somerset Council,80631359,LM6,Nursing Care,P11,Adult Social Care & Health,REDACTED,03/10/2016,312.5
Bath & North East Somerset Council,80631456,LM6,Nursing Care,P11,Adult Social Care & Health,REDACTED,03/10/2016,1152
Bath & North East Somerset Council,80631456,LM6,Nursing Care,P11,Adult Social Care & Health,REDACTED,03/10/2016,1456
Bath & North East Somerset Council,80631456,LM6,Nursing Care,P11,Adult Social Care & Health,REDACTED,03/10/2016,1742
Bath & North East Somerset Council,80631456,LM6,Nursing Care,P11,Adult Social Care & Health,REDACTED,03/10/2016,1778
Bath & North East Somerset Council,80631456,LM6,Nursing Care,P11,Adult Social Care & Health,REDACTED,03/10/2016,1778
Bath & North East Somerset Council,80631395,LM6,Nursing Care,P11,Adult Social Care & Health,REDACTED,03/10/2016,1800
Bath & North East Somerset Council,80631395,LM6,Nursing Care,P11,Adult Social Care & Health,REDACTED,03/10/2016,1900
Bath & North East Somerset Council,80631456,LM6,Nursing Care,P11,Adult Social Care & Health,REDACTED,03/10/2016,1900
Bath & North East Somerset Council,80631456,LM6,Nursing Care,P11,Adult Social Care & Health,REDACTED,03/10/2016,1900
Bath & North East Somerset Council,80631456,LM6,Nursing Care,P11,Adult Social Care & Health,REDACTED,03/10/2016,2400
Bath & North East Somerset Council,80631429,LM6,Nursing Care,P11,Adult Social Care & Health,OCEAN COMMUNITY SERVICES,03/10/2016,4952.08
Bath & North East Somerset Council,80631526,LM9,Day Care,P11,Adult Social Care & Health,OPTIONS FOR LIVING LTD,03/10/2016,79.8
Bath & North East Somerset Council,80631526,LM9,Day Care,P11,Adult Social Care & Health,OPTIONS FOR LIVING LTD,03/10/2016,79.8
Bath & North East Somerset Council,80631526,LM9,Day Care,P11,Adult Social Care & Health,OPTIONS FOR LIVING LTD,03/10/2016,119.7
Bath & North East Somerset Council,80631526,LM9,Day Care,P11,Adult Social Care & Health,OPTIONS FOR LIVING LTD,03/10/2016,119.7
Bath & North East Somerset Council,80631526,LM8,Home Care,P11,Adult Social Care & Health,OPTIONS FOR LIVING LTD,03/10/2016,119.7
Bath & North East Somerset Council,80631526,LM9,Day Care,P11,Adult Social Care & Health,OPTIONS FOR LIVING LTD,03/10/2016,159.6
Bath & North East Somerset Council,80631526,LM8,Home Care,P11,Adult Social Care & Health,OPTIONS FOR LIVING LTD,03/10/2016,159.6
Bath & North East Somerset Council,80631526,LM8,Home Care,P11,Adult Social Care & Health,OPTIONS FOR LIVING LTD,03/10/2016,159.6
Bath & North East Somerset Council,80631526,LM8,Home Care,P11,Adult Social Care & Health,OPTIONS FOR LIVING LTD,03/10/2016,159.6
Bath & North East Somerset Council,80631526,LM8,Home Care,P11,Adult Social Care & Health,OPTIONS FOR LIVING LTD,03/10/2016,159.6
Bath & North East Somerset Council,80631526,LM8,Home Care,P11,Adult Social Care & Health,OPTIONS FOR LIVING LTD,03/10/2016,159.6
Bath & North East Somerset Council,80631526,LM9,Day Care,P11,Adult Social Care & Health,OPTIONS FOR LIVING LTD,03/10/2016,159.6
Bath & North East Somerset Council,80631526,LM9,Day Care,P11,Adult Social Care & Health,OPTIONS FOR LIVING LTD,03/10/2016,197.5
Bath & North East Somerset Council,80631526,LM9,Day Care,P11,Adult Social Care & Health,OPTIONS FOR LIVING LTD,03/10/2016,199.5
Bath & North East Somerset Council,80631526,LM8,Home Care,P11,Adult Social Care & Health,OPTIONS FOR LIVING LTD,03/10/2016,199.5
Bath & North East Somerset Council,80631526,LM9,Day Care,P11,Adult Social Care & Health,OPTIONS FOR LIVING LTD,03/10/2016,199.5
Bath & North East Somerset Council,80631526,LM8,Home Care,P11,Adult Social Care & Health,OPTIONS FOR LIVING LTD,03/10/2016,234.64
Bath & North East Somerset Council,80631526,LM8,Home Care,P11,Adult Social Care & Health,OPTIONS FOR LIVING LTD,03/10/2016,234.64
Bath & North East Somerset Council,80631526,LM9,Day Care,P11,Adult Social Care & Health,OPTIONS FOR LIVING LTD,03/10/2016,239.4
Bath & North East Somerset Council,80631526,LM9,Day Care,P11,Adult Social Care & Health,OPTIONS FOR LIVING LTD,03/10/2016,239.4
Bath & North East Somerset Council,80631526,LM9,Day Care,P11,Adult Social Care & Health,OPTIONS FOR LIVING LTD,03/10/2016,239.4
Bath & North East Somerset Council,80631526,LM9,Day Care,P11,Adult Social Care & Health,OPTIONS FOR LIVING LTD,03/10/2016,239.4
Bath & North East Somerset Council,80631526,LM9,Day Care,P11,Adult Social Care & Health,OPTIONS FOR LIVING LTD,03/10/2016,239.4
Bath & North East Somerset Council,80631526,LM8,Home Care,P11,Adult Social Care & Health,OPTIONS FOR LIVING LTD,03/10/2016,239.4
Bath & North East Somerset Council,80631526,LM8,Home Care,P11,Adult Social Care & Health,OPTIONS FOR LIVING LTD,03/10/2016,239.4
Bath & North East Somerset Council,80631526,LM8,Home Care,P11,Adult Social Care & Health,OPTIONS FOR LIVING LTD,03/10/2016,239.4
Bath & North East Somerset Council,80631488,LM9,Day Care,P11,Adult Social Care & Health,S.W.A.L.L.O.W. LTD,03/10/2016,1744.58
Bath & North East Somerset Council,80631526,LM9,Day Care,P11,Adult Social Care & Health,OPTIONS FOR LIVING LTD,03/10/2016,279.3
Bath & North East Somerset Council,80631526,LM9,Day Care,P11,Adult Social Care & Health,OPTIONS FOR LIVING LTD,03/10/2016,287.1
Bath & North East Somerset Council,80631526,LM9,Day Care,P11,Adult Social Care & Health,OPTIONS FOR LIVING LTD,03/10/2016,312.86
Bath & North East Somerset Council,80631526,LM9,Day Care,P11,Adult Social Care & Health,OPTIONS FOR LIVING LTD,03/10/2016,315.98
Bath & North East Somerset Council,80631526,LM9,Day Care,P11,Adult Social Care & Health,OPTIONS FOR LIVING LTD,03/10/2016,315.98
Bath & North East Somerset Council,80631526,LM8,Home Care,P11,Adult Social Care & Health,OPTIONS FOR LIVING LTD,03/10/2016,319.2
Bath & North East Somerset Council,80631526,LM9,Day Care,P11,Adult Social Care & Health,OPTIONS FOR LIVING LTD,03/10/2016,319.2
Bath & North East Somerset Council,80631526,LM8,Home Care,P11,Adult Social Care & Health,OPTIONS FOR LIVING LTD,03/10/2016,351.96
Bath & North East Somerset Council,80631526,LM9,Day Care,P11,Adult Social Care & Health,OPTIONS FOR LIVING LTD,03/10/2016,359.1
Bath & North East Somerset Council,80631526,LM9,Day Care,P11,Adult Social Care & Health,OPTIONS FOR LIVING LTD,03/10/2016,359.1
Bath & North East Somerset Council,80631526,LM9,Day Care,P11,Adult Social Care & Health,OPTIONS FOR LIVING LTD,03/10/2016,359.1
Bath & North East Somerset Council,80631526,LM8,Home Care,P11,Adult Social Care & Health,OPTIONS FOR LIVING LTD,03/10/2016,359.1
Bath & North East Somerset Council,80631526,LM8,Home Care,P11,Adult Social Care & Health,OPTIONS FOR LIVING LTD,03/10/2016,359.1
Bath & North East Somerset Council,80631526,LM8,Home Care,P11,Adult Social Care & Health,OPTIONS FOR LIVING LTD,03/10/2016,359.1
Bath & North East Somerset Council,80631526,LM8,Home Care,P11,Adult Social Care & Health,OPTIONS FOR LIVING LTD,03/10/2016,359.1
Bath & North East Somerset Council,80631526,LM8,Home Care,P11,Adult Social Care & Health,OPTIONS FOR LIVING LTD,03/10/2016,359.1
Bath & North East Somerset Council,80631526,LM8,Home Care,P11,Adult Social Care & Health,OPTIONS FOR LIVING LTD,03/10/2016,359.1
Bath & North East Somerset Council,80631526,LM9,Day Care,P11,Adult Social Care & Health,OPTIONS FOR LIVING LTD,03/10/2016,359.1
Bath & North East Somerset Council,10823527,HA2,Servicing,P13,Economic Development,HORDERS,03/10/2016,1791.96
Bath & North East Somerset Council,80631526,LM9,Day Care,P11,Adult Social Care & Health,OPTIONS FOR LIVING LTD,03/10/2016,399
Bath & North East Somerset Council,80631526,LM9,Day Care,P11,Adult Social Care & Health,OPTIONS FOR LIVING LTD,03/10/2016,478.8
Bath & North East Somerset Council,80631526,LM9,Day Care,P11,Adult Social Care & Health,OPTIONS FOR LIVING LTD,03/10/2016,478.8
Bath & North East Somerset Council,80631526,LL3,Supported Living,P11,Adult Social Care & Health,OPTIONS FOR LIVING LTD,03/10/2016,592.46
Bath & North East Somerset Council,80631526,LM8,Home Care,P11,Adult Social Care & Health,OPTIONS FOR LIVING LTD,03/10/2016,598.5
Bath & North East Somerset Council,80631526,LM8,Home Care,P11,Adult Social Care & Health,OPTIONS FOR LIVING LTD,03/10/2016,911.82
Bath & North East Somerset Council,80631526,LM8,Home Care,P11,Adult Social Care & Health,OPTIONS FOR LIVING LTD,03/10/2016,977.68
Bath & North East Somerset Council,80631526,LM8,Home Care,P11,Adult Social Care & Health,OPTIONS FOR LIVING LTD,03/10/2016,1078.9
Bath & North East Somerset Council,80631526,LM8,Home Care,P11,Adult Social Care & Health,OPTIONS FOR LIVING LTD,03/10/2016,1089.58
Bath & North East Somerset Council,80631526,LM8,Home Care,P11,Adult Social Care & Health,OPTIONS FOR LIVING LTD,03/10/2016,1089.58
Bath & North East Somerset Council,10823489,3F7,PCB External Fees,P13,Economic Development,CLARKSON & WOODS,03/10/2016,1820
Bath & North East Somerset Council,80631526,LM9,Day Care,P11,Adult Social Care & Health,OPTIONS FOR LIVING LTD,03/10/2016,2606.9
Bath & North East Somerset Council,80631491,LM3,Residential Care,P11,Adult Social Care & Health,ORCHARD END LTD,03/10/2016,4292
Bath & North East Somerset Council,80631491,LM3,Residential Care,P11,Adult Social Care & Health,ORCHARD END LTD,03/10/2016,4494
Bath & North East Somerset Council,80631472,LM3,Residential Care,P11,Adult Social Care & Health,ORCHARD VALE TRUST,03/10/2016,1562
Bath & North East Somerset Council,80631472,LM3,Residential Care,P11,Adult Social Care & Health,ORCHARD VALE TRUST,03/10/2016,1800
Bath & North East Somerset Council,80631488,LM9,Day Care,P11,Adult Social Care & Health,S.W.A.L.L.O.W. LTD,03/10/2016,1846.8
Bath & North East Somerset Council,80631560,LM3,Residential Care,P11,Adult Social Care & Health,ORCHARD VALE TRUST LTD,03/10/2016,3422
Bath & North East Somerset Council,80631615,LL8,Individualised Budget,P11,Adult Social Care & Health,REDACTED,03/10/2016,663.58
Bath & North East Somerset Council,80631418,LM6,Nursing Care,P11,Adult Social Care & Health,REDACTED,03/10/2016,1574
Bath & North East Somerset Council,80631418,LM6,Nursing Care,P11,Adult Social Care & Health,REDACTED,03/10/2016,2413.9
Bath & North East Somerset Council,80631433,LM3,Residential Care,P11,Adult Social Care & Health,PARADISE HOUSE ASSOCIATION LTD,03/10/2016,1888
Bath & North East Somerset Council,10823450,LK1,Fees,P12,Children's Services,TAMSCOT LTD,03/10/2016,1950
Bath & North East Somerset Council,80631374,LL8,Individualised Budget,P11,Adult Social Care & Health,PHOENIX (SW) LTD,03/10/2016,1950
Bath & North East Somerset Council,80631374,LL8,Individualised Budget,P11,Adult Social Care & Health,PHOENIX (SW) LTD,03/10/2016,3904.88
Bath & North East Somerset Council,80631374,LL8,Individualised Budget,P11,Adult Social Care & Health,PHOENIX (SW) LTD,03/10/2016,5210.98
Bath & North East Somerset Council,10823453,LJ1,Consultants Fees,P10,Finance & Efficiency,GVA GRIMLEY LTD,03/10/2016,2000
Bath & North East Somerset Council,10823514,LF1,Printing/Design,P10,Finance & Efficiency,TOPLINK ENVELOPES LTD,03/10/2016,2003.39
Bath & North East Somerset Council,80631464,LM3,Residential Care,P11,Adult Social Care & Health,PONDSMEAD (SHEPTON MALLET) LIMITED,03/10/2016,904
Bath & North East Somerset Council,80631464,LM3,Residential Care,P11,Adult Social Care & Health,PONDSMEAD (SHEPTON MALLET) LIMITED,03/10/2016,904
Bath & North East Somerset Council,80631464,LM3,Residential Care,P11,Adult Social Care & Health,PONDSMEAD (SHEPTON MALLET) LIMITED,03/10/2016,1050
Bath & North East Somerset Council,80631464,LM6,Nursing Care,P11,Adult Social Care & Health,PONDSMEAD (SHEPTON MALLET) LIMITED,03/10/2016,1152
Bath & North East Somerset Council,80631464,LM6,Nursing Care,P11,Adult Social Care & Health,PONDSMEAD (SHEPTON MALLET) LIMITED,03/10/2016,1152
Bath & North East Somerset Council,80631464,LM6,Nursing Care,P11,Adult Social Care & Health,PONDSMEAD (SHEPTON MALLET) LIMITED,03/10/2016,1152
Bath & North East Somerset Council,80631464,LM6,Nursing Care,P11,Adult Social Care & Health,PONDSMEAD (SHEPTON MALLET) LIMITED,03/10/2016,1152
Bath & North East Somerset Council,80631464,LM6,Nursing Care,P11,Adult Social Care & Health,PONDSMEAD (SHEPTON MALLET) LIMITED,03/10/2016,1152
Bath & North East Somerset Council,80631464,LM6,Nursing Care,P11,Adult Social Care & Health,PONDSMEAD (SHEPTON MALLET) LIMITED,03/10/2016,1152
Bath & North East Somerset Council,80631464,LM6,Nursing Care,P11,Adult Social Care & Health,PONDSMEAD (SHEPTON MALLET) LIMITED,03/10/2016,1196
Bath & North East Somerset Council,80631464,LM6,Nursing Care,P11,Adult Social Care & Health,PONDSMEAD (SHEPTON MALLET) LIMITED,03/10/2016,1300
Bath & North East Somerset Council,80631464,LM6,Nursing Care,P11,Adult Social Care & Health,PONDSMEAD (SHEPTON MALLET) LIMITED,03/10/2016,1300
Bath & North East Somerset Council,80631464,LM3,Residential Care,P11,Adult Social Care & Health,PONDSMEAD (SHEPTON MALLET) LIMITED,03/10/2016,2042.86
Bath & North East Somerset Council,80631463,LM6,Nursing Care,P11,Adult Social Care & Health,PROKARE LTD,03/10/2016,3032
Bath & North East Somerset Council,80631668,LL8,Individualised Budget,P11,Adult Social Care & Health,REDACTED,03/10/2016,821.54
Bath & North East Somerset Council,80631668,LL8,Individualised Budget,P11,Adult Social Care & Health,REDACTED,03/10/2016,951.4
Bath & North East Somerset Council,80631590,LM3,Residential Care,P11,Adult Social Care & Health,R & R CARE HOMES LTD,03/10/2016,1322
Bath & North East Somerset Council,80631650,LL8,Individualised Budget,P11,Adult Social Care & Health,REDACTED,03/10/2016,3220.2
Bath & North East Somerset Council,80631691,LL8,Individualised Budget,P11,Adult Social Care & Health,REDACTED,03/10/2016,1782.2
Bath & North East Somerset Council,80631591,LM3,Residential Care,P11,Adult Social Care & Health,REGENCY CARE LTD T/A THE RISE,03/10/2016,1000
Bath & North East Somerset Council,80631361,LM6,Nursing Care,P11,Adult Social Care & Health,RNID  (REDACTED),03/10/2016,312.5
Bath & North East Somerset Council,80631361,LM6,Nursing Care,P11,Adult Social Care & Health,RNID  (REDACTED),03/10/2016,312.5
Bath & North East Somerset Council,80631361,LM6,Nursing Care,P11,Adult Social Care & Health,RNID  (REDACTED),03/10/2016,312.5
Bath & North East Somerset Council,80631361,LM6,Nursing Care,P11,Adult Social Care & Health,RNID  (REDACTED),03/10/2016,312.5
Bath & North East Somerset Council,80631361,LM6,Nursing Care,P11,Adult Social Care & Health,RNID  (REDACTED),03/10/2016,312.5
Bath & North East Somerset Council,80631471,LM6,Nursing Care,P11,Adult Social Care & Health,RNID  (REDACTED),03/10/2016,2514
Bath & North East Somerset Council,80631398,LM6,Nursing Care,P11,Adult Social Care & Health,RNID  (REDACTED),03/10/2016,2529.2
Bath & North East Somerset Council,80631471,LM3,Residential Care,P11,Adult Social Care & Health,RNID  (REDACTED),03/10/2016,2604
Bath & North East Somerset Council,80631398,LM6,Nursing Care,P11,Adult Social Care & Health,RNID  (REDACTED),03/10/2016,2787.68
Bath & North East Somerset Council,80631471,LM3,Residential Care,P11,Adult Social Care & Health,RNID  (REDACTED),03/10/2016,3162
Bath & North East Somerset Council,80631408,LM6,Nursing Care,P11,Adult Social Care & Health,ROSEVILLE CARE HOMES MELKSHAM,03/10/2016,1620
Bath & North East Somerset Council,10823499,LH1,Liability Insurance,P13,Economic Development,C'ART,03/10/2016,2415
Bath & North East Somerset Council,80631751,LL8,Individualised Budget,P11,Adult Social Care & Health,REDACTED,03/10/2016,962.58
Bath & North East Somerset Council,10821222,HP6,Water Charges,P10,Finance & Efficiency,BWBSL,03/10/2016,2427.76
Bath & North East Somerset Council,80631588,LM3,Residential Care,P11,Adult Social Care & Health,SAFEQUARTER LTD T/A CAPEL GRANGE,03/10/2016,1112
Bath & North East Somerset Council,80631503,LM3,Residential Care,P11,Adult Social Care & Health,SALVATION ARMY,03/10/2016,904
Bath & North East Somerset Council,80631503,LM3,Residential Care,P11,Adult Social Care & Health,SALVATION ARMY,03/10/2016,904
Bath & North East Somerset Council,80631503,LM3,Residential Care,P11,Adult Social Care & Health,SALVATION ARMY,03/10/2016,992
Bath & North East Somerset Council,80631503,LM3,Residential Care,P11,Adult Social Care & Health,SALVATION ARMY,03/10/2016,1000
Bath & North East Somerset Council,80631503,LM3,Residential Care,P11,Adult Social Care & Health,SALVATION ARMY,03/10/2016,1120
Bath & North East Somerset Council,80631503,LM3,Residential Care,P11,Adult Social Care & Health,SALVATION ARMY,03/10/2016,1120
Bath & North East Somerset Council,80631503,LM3,Residential Care,P11,Adult Social Care & Health,SALVATION ARMY,03/10/2016,1132
Bath & North East Somerset Council,80631503,LM3,Residential Care,P11,Adult Social Care & Health,SALVATION ARMY,03/10/2016,1140
Bath & North East Somerset Council,80631503,LM3,Residential Care,P11,Adult Social Care & Health,SALVATION ARMY,03/10/2016,1180
Bath & North East Somerset Council,80631503,LM3,Residential Care,P11,Adult Social Care & Health,SALVATION ARMY,03/10/2016,1260
Bath & North East Somerset Council,80631503,LM6,Nursing Care,P11,Adult Social Care & Health,SALVATION ARMY,03/10/2016,1372
Bath & North East Somerset Council,80631583,LM3,Residential Care,P11,Adult Social Care & Health,SANCTUARY CARE PROPERTY 1,03/10/2016,1010
Bath & North East Somerset Council,80631614,LL8,Individualised Budget,P11,Adult Social Care & Health,REDACTED,03/10/2016,549.44
Bath & North East Somerset Council,80631485,LM3,Residential Care,P11,Adult Social Care & Health,SENSE CHILDREN AND ADULT SERVICES,03/10/2016,4578
Bath & North East Somerset Council,80631569,LM3,Residential Care,P11,Adult Social Care & Health,SERENITA CARE HOME,03/10/2016,1556
Bath & North East Somerset Council,80631496,LM3,Residential Care,P11,Adult Social Care & Health,SHAW HEALTHCARE (SPECIALIST SERVICES) LTD,03/10/2016,4662
Bath & North East Somerset Council,80631362,LM6,Nursing Care,P11,Adult Social Care & Health,SHAW HOMES HOUSING ASSOC LTD,03/10/2016,312.5
Bath & North East Somerset Council,80631362,LM6,Nursing Care,P11,Adult Social Care & Health,SHAW HOMES HOUSING ASSOC LTD,03/10/2016,312.5
Bath & North East Somerset Council,80631362,LM6,Nursing Care,P11,Adult Social Care & Health,SHAW HOMES HOUSING ASSOC LTD,03/10/2016,312.5
Bath & North East Somerset Council,80631475,LM6,Nursing Care,P11,Adult Social Care & Health,SHAW HOMES HOUSING ASSOC LTD,03/10/2016,1724
Bath & North East Somerset Council,80631475,LM6,Nursing Care,P11,Adult Social Care & Health,SHAW HOMES HOUSING ASSOC LTD,03/10/2016,1802
Bath & North East Somerset Council,80631852,LL8,Individualised Budget,P11,Adult Social Care & Health,REDACTED,03/10/2016,2197.54
Bath & North East Somerset Council,80631388,LM6,Nursing Care,P11,Adult Social Care & Health,SHERWOOD LODGE,03/10/2016,2723.52
Bath & North East Somerset Council,80631388,LM6,Nursing Care,P11,Adult Social Care & Health,SHERWOOD LODGE,03/10/2016,2770
Bath & North East Somerset Council,80631388,LM6,Nursing Care,P11,Adult Social Care & Health,SHERWOOD LODGE,03/10/2016,2770
Bath & North East Somerset Council,80631388,LM6,Nursing Care,P11,Adult Social Care & Health,SHERWOOD LODGE,03/10/2016,3390
Bath & North East Somerset Council,80631478,LM3,Residential Care,P11,Adult Social Care & Health,SOMERSET CARE LTD,03/10/2016,1112
Bath & North East Somerset Council,80631434,LM3,Residential Care,P11,Adult Social Care & Health,SOMERSET COUNTY COUNCIL,03/10/2016,2476
Bath & North East Somerset Council,80631434,LM3,Residential Care,P11,Adult Social Care & Health,SOMERSET COUNTY COUNCIL,03/10/2016,2914
Bath & North East Somerset Council,80631435,LM3,Residential Care,P11,Adult Social Care & Health,SOUTH GLOUCESTERSHIRE COUNCIL,03/10/2016,1343.12
Bath & North East Somerset Council,80631435,LM3,Residential Care,P11,Adult Social Care & Health,SOUTH GLOUCESTERSHIRE COUNCIL,03/10/2016,1543.42
Bath & North East Somerset Council,80631536,LM3,Residential Care,P11,Adult Social Care & Health,SPRINGFIELD BATH LTD,03/10/2016,992
Bath & North East Somerset Council,80631536,LM3,Residential Care,P11,Adult Social Care & Health,SPRINGFIELD BATH LTD,03/10/2016,1306
Bath & North East Somerset Council,80631536,LM3,Residential Care,P11,Adult Social Care & Health,SPRINGFIELD BATH LTD,03/10/2016,1314
Bath & North East Somerset Council,80631536,LM3,Residential Care,P11,Adult Social Care & Health,SPRINGFIELD BATH LTD,03/10/2016,1314
Bath & North East Somerset Council,80631536,LM3,Residential Care,P11,Adult Social Care & Health,SPRINGFIELD BATH LTD,03/10/2016,1324
Bath & North East Somerset Council,80631536,LM3,Residential Care,P11,Adult Social Care & Health,SPRINGFIELD BATH LTD,03/10/2016,1350
Bath & North East Somerset Council,80631536,LM3,Residential Care,P11,Adult Social Care & Health,SPRINGFIELD BATH LTD,03/10/2016,1350
Bath & North East Somerset Council,80631536,LM3,Residential Care,P11,Adult Social Care & Health,SPRINGFIELD BATH LTD,03/10/2016,1350
Bath & North East Somerset Council,80631536,LM3,Residential Care,P11,Adult Social Care & Health,SPRINGFIELD BATH LTD,03/10/2016,1400
Bath & North East Somerset Council,80631536,LM3,Residential Care,P11,Adult Social Care & Health,SPRINGFIELD BATH LTD,03/10/2016,1430
Bath & North East Somerset Council,80631536,LM3,Residential Care,P11,Adult Social Care & Health,SPRINGFIELD BATH LTD,03/10/2016,1500
Bath & North East Somerset Council,80631446,LM3,Residential Care,P11,Adult Social Care & Health,SS PHILP & JAMES RETIREMENT HOME LTD,03/10/2016,904
Bath & North East Somerset Council,80631446,LM3,Residential Care,P11,Adult Social Care & Health,SS PHILP & JAMES RETIREMENT HOME LTD,03/10/2016,1160
Bath & North East Somerset Council,80631446,LM3,Residential Care,P11,Adult Social Care & Health,SS PHILP & JAMES RETIREMENT HOME LTD,03/10/2016,1168
Bath & North East Somerset Council,80631430,LM6,Nursing Care,P11,Adult Social Care & Health,ST ANDREW'S HEALTHCARE,03/10/2016,5514.32
Bath & North East Somerset Council,80631354,LM6,Nursing Care,P11,Adult Social Care & Health,STANTON COURT,03/10/2016,312.5
Bath & North East Somerset Council,80631354,LM6,Nursing Care,P11,Adult Social Care & Health,STANTON COURT,03/10/2016,312.5
Bath & North East Somerset Council,80631354,LM6,Nursing Care,P11,Adult Social Care & Health,STANTON COURT,03/10/2016,312.5
Bath & North East Somerset Council,80631354,LM6,Nursing Care,P11,Adult Social Care & Health,STANTON COURT,03/10/2016,312.5
Bath & North East Somerset Council,80631354,LM6,Nursing Care,P11,Adult Social Care & Health,STANTON COURT,03/10/2016,312.5
Bath & North East Somerset Council,80631354,LM6,Nursing Care,P11,Adult Social Care & Health,STANTON COURT,03/10/2016,312.5
Bath & North East Somerset Council,80631354,LM6,Nursing Care,P11,Adult Social Care & Health,STANTON COURT,03/10/2016,312.5
Bath & North East Somerset Council,80631354,LM6,Nursing Care,P11,Adult Social Care & Health,STANTON COURT,03/10/2016,312.5
Bath & North East Somerset Council,80631354,LM6,Nursing Care,P11,Adult Social Care & Health,STANTON COURT,03/10/2016,312.5
Bath & North East Somerset Council,80631354,LM6,Nursing Care,P11,Adult Social Care & Health,STANTON COURT,03/10/2016,312.5
Bath & North East Somerset Council,80631354,LM6,Nursing Care,P11,Adult Social Care & Health,STANTON COURT,03/10/2016,312.5
Bath & North East Somerset Council,80631354,LM6,Nursing Care,P11,Adult Social Care & Health,STANTON COURT,03/10/2016,312.5
Bath & North East Somerset Council,80631354,LM6,Nursing Care,P11,Adult Social Care & Health,STANTON COURT,03/10/2016,312.5
Bath & North East Somerset Council,80631354,LM6,Nursing Care,P11,Adult Social Care & Health,STANTON COURT,03/10/2016,312.5
Bath & North East Somerset Council,80631354,LM6,Nursing Care,P11,Adult Social Care & Health,STANTON COURT,03/10/2016,312.5
Bath & North East Somerset Council,80631354,LM6,Nursing Care,P11,Adult Social Care & Health,STANTON COURT,03/10/2016,312.5
Bath & North East Somerset Council,80631354,LM6,Nursing Care,P11,Adult Social Care & Health,STANTON COURT,03/10/2016,312.5
Bath & North East Somerset Council,80631354,LM6,Nursing Care,P11,Adult Social Care & Health,STANTON COURT,03/10/2016,312.5
Bath & North East Somerset Council,10822562,LJ4,Contracts,P01,Transport,BRISTOL CITY COUNCIL,03/10/2016,3282.84
Bath & North East Somerset Council,80631445,LM6,Nursing Care,P11,Adult Social Care & Health,STANTON COURT,03/10/2016,1548
Bath & North East Somerset Council,80631445,LM6,Nursing Care,P11,Adult Social Care & Health,STANTON COURT,03/10/2016,1850
Bath & North East Somerset Council,80631445,LM6,Nursing Care,P11,Adult Social Care & Health,STANTON COURT,03/10/2016,1854
Bath & North East Somerset Council,80631390,LM6,Nursing Care,P11,Adult Social Care & Health,STANTON COURT,03/10/2016,1906
Bath & North East Somerset Council,80631445,LM6,Nursing Care,P11,Adult Social Care & Health,STANTON COURT,03/10/2016,2158
Bath & North East Somerset Council,80631458,LM3,Residential Care,P11,Adult Social Care & Health,STROUD COURT,03/10/2016,2754
Bath & North East Somerset Council,80631458,LM3,Residential Care,P11,Adult Social Care & Health,STROUD COURT,03/10/2016,3098
Bath & North East Somerset Council,80631419,LM6,Nursing Care,P11,Adult Social Care & Health,SUMMER LANE CARE HOME,03/10/2016,1700
Bath & North East Somerset Council,80631364,LM6,Nursing Care,P11,Adult Social Care & Health,SUNNYMEDE LTD,03/10/2016,312.5
Bath & North East Somerset Council,80631364,LM6,Nursing Care,P11,Adult Social Care & Health,SUNNYMEDE LTD,03/10/2016,312.5
Bath & North East Somerset Council,80631364,LM6,Nursing Care,P11,Adult Social Care & Health,SUNNYMEDE LTD,03/10/2016,312.5
Bath & North East Somerset Council,80631364,LM6,Nursing Care,P11,Adult Social Care & Health,SUNNYMEDE LTD,03/10/2016,312.5
Bath & North East Somerset Council,80631364,LM6,Nursing Care,P11,Adult Social Care & Health,SUNNYMEDE LTD,03/10/2016,312.5
Bath & North East Somerset Council,80631364,LM6,Nursing Care,P11,Adult Social Care & Health,SUNNYMEDE LTD,03/10/2016,312.5
Bath & North East Somerset Council,80631364,LM6,Nursing Care,P11,Adult Social Care & Health,SUNNYMEDE LTD,03/10/2016,312.5
Bath & North East Somerset Council,80631364,LM6,Nursing Care,P11,Adult Social Care & Health,SUNNYMEDE LTD,03/10/2016,312.5
Bath & North East Somerset Council,80631364,LM6,Nursing Care,P11,Adult Social Care & Health,SUNNYMEDE LTD,03/10/2016,312.5
Bath & North East Somerset Council,80631364,LM6,Nursing Care,P11,Adult Social Care & Health,SUNNYMEDE LTD,03/10/2016,312.5
Bath & North East Somerset Council,80631364,LM6,Nursing Care,P11,Adult Social Care & Health,SUNNYMEDE LTD,03/10/2016,312.5
Bath & North East Somerset Council,80631502,LM3,Residential Care,P11,Adult Social Care & Health,SUNNYMEDE LTD,03/10/2016,904
Bath & North East Somerset Council,80631502,LM6,Nursing Care,P11,Adult Social Care & Health,SUNNYMEDE LTD,03/10/2016,1152
Bath & North East Somerset Council,80631502,LM6,Nursing Care,P11,Adult Social Care & Health,SUNNYMEDE LTD,03/10/2016,1152
Bath & North East Somerset Council,80631502,LM6,Nursing Care,P11,Adult Social Care & Health,SUNNYMEDE LTD,03/10/2016,1152
Bath & North East Somerset Council,80631502,LM6,Nursing Care,P11,Adult Social Care & Health,SUNNYMEDE LTD,03/10/2016,1152
Bath & North East Somerset Council,80631502,LM6,Nursing Care,P11,Adult Social Care & Health,SUNNYMEDE LTD,03/10/2016,1152
Bath & North East Somerset Council,80631502,LM6,Nursing Care,P11,Adult Social Care & Health,SUNNYMEDE LTD,03/10/2016,1152
Bath & North East Somerset Council,80631502,LM6,Nursing Care,P11,Adult Social Care & Health,SUNNYMEDE LTD,03/10/2016,1152
Bath & North East Somerset Council,80631502,LM6,Nursing Care,P11,Adult Social Care & Health,SUNNYMEDE LTD,03/10/2016,1152
Bath & North East Somerset Council,80631502,LM6,Nursing Care,P11,Adult Social Care & Health,SUNNYMEDE LTD,03/10/2016,1152
Bath & North East Somerset Council,80631502,LM6,Nursing Care,P11,Adult Social Care & Health,SUNNYMEDE LTD,03/10/2016,1152
Bath & North East Somerset Council,80631502,LM6,Nursing Care,P11,Adult Social Care & Health,SUNNYMEDE LTD,03/10/2016,1188
Bath & North East Somerset Council,80631502,LM6,Nursing Care,P11,Adult Social Care & Health,SUNNYMEDE LTD,03/10/2016,1208
Bath & North East Somerset Council,80631502,LM6,Nursing Care,P11,Adult Social Care & Health,SUNNYMEDE LTD,03/10/2016,1500
Bath & North East Somerset Council,80631502,LM6,Nursing Care,P11,Adult Social Care & Health,SUNNYMEDE LTD,03/10/2016,1516
Bath & North East Somerset Council,80631366,LM6,Nursing Care,P11,Adult Social Care & Health,T C CAREHOME LTD,03/10/2016,245.53
Bath & North East Somerset Council,10823457,3F7,PCB External Fees,P10,Finance & Efficiency,KEY TRANSPORT CONSULTANTS LTD,03/10/2016,4100
Bath & North East Somerset Council,80631366,LM6,Nursing Care,P11,Adult Social Care & Health,T C CAREHOME LTD,03/10/2016,625
Bath & North East Somerset Council,80631366,LM6,Nursing Care,P11,Adult Social Care & Health,T C CAREHOME LTD,03/10/2016,625
Bath & North East Somerset Council,80631366,LM6,Nursing Care,P11,Adult Social Care & Health,T C CAREHOME LTD,03/10/2016,625
Bath & North East Somerset Council,80631366,LM6,Nursing Care,P11,Adult Social Care & Health,T C CAREHOME LTD,03/10/2016,625
Bath & North East Somerset Council,80631366,LM6,Nursing Care,P11,Adult Social Care & Health,T C CAREHOME LTD,03/10/2016,625
Bath & North East Somerset Council,80631366,LM6,Nursing Care,P11,Adult Social Care & Health,T C CAREHOME LTD,03/10/2016,625
Bath & North East Somerset Council,80631366,LM6,Nursing Care,P11,Adult Social Care & Health,T C CAREHOME LTD,03/10/2016,625
Bath & North East Somerset Council,80631366,LM6,Nursing Care,P11,Adult Social Care & Health,T C CAREHOME LTD,03/10/2016,625
Bath & North East Somerset Council,80631366,LM6,Nursing Care,P11,Adult Social Care & Health,T C CAREHOME LTD,03/10/2016,625
Bath & North East Somerset Council,80631366,LM6,Nursing Care,P11,Adult Social Care & Health,T C CAREHOME LTD,03/10/2016,625
Bath & North East Somerset Council,80631366,LM6,Nursing Care,P11,Adult Social Care & Health,T C CAREHOME LTD,03/10/2016,625
Bath & North East Somerset Council,80631366,LM6,Nursing Care,P11,Adult Social Care & Health,T C CAREHOME LTD,03/10/2016,625
Bath & North East Somerset Council,80631366,LM6,Nursing Care,P11,Adult Social Care & Health,T C CAREHOME LTD,03/10/2016,625
Bath & North East Somerset Council,80631518,LM6,Nursing Care,P11,Adult Social Care & Health,T C CAREHOME LTD,03/10/2016,1152
Bath & North East Somerset Council,80631518,LM6,Nursing Care,P11,Adult Social Care & Health,T C CAREHOME LTD,03/10/2016,1152
Bath & North East Somerset Council,80631518,LM6,Nursing Care,P11,Adult Social Care & Health,T C CAREHOME LTD,03/10/2016,1152
Bath & North East Somerset Council,80631518,LM6,Nursing Care,P11,Adult Social Care & Health,T C CAREHOME LTD,03/10/2016,1152
Bath & North East Somerset Council,80631518,LM6,Nursing Care,P11,Adult Social Care & Health,T C CAREHOME LTD,03/10/2016,1152
Bath & North East Somerset Council,80631518,LM6,Nursing Care,P11,Adult Social Care & Health,T C CAREHOME LTD,03/10/2016,1152
Bath & North East Somerset Council,80631413,LM6,Nursing Care,P11,Adult Social Care & Health,T C CAREHOME LTD,03/10/2016,1300
Bath & North East Somerset Council,80631413,LM6,Nursing Care,P11,Adult Social Care & Health,T C CAREHOME LTD,03/10/2016,1300
Bath & North East Somerset Council,80631413,LM6,Nursing Care,P11,Adult Social Care & Health,T C CAREHOME LTD,03/10/2016,1330
Bath & North East Somerset Council,80631366,LM6,Nursing Care,P11,Adult Social Care & Health,T C CAREHOME LTD,03/10/2016,1361.61
Bath & North East Somerset Council,80631413,LM6,Nursing Care,P11,Adult Social Care & Health,T C CAREHOME LTD,03/10/2016,1400
Bath & North East Somerset Council,80631366,LM6,Nursing Care,P11,Adult Social Care & Health,T C CAREHOME LTD,03/10/2016,1495.53
Bath & North East Somerset Council,80631366,LM6,Nursing Care,P11,Adult Social Care & Health,T C CAREHOME LTD,03/10/2016,1495.54
Bath & North East Somerset Council,80631413,LM6,Nursing Care,P11,Adult Social Care & Health,T C CAREHOME LTD,03/10/2016,1500
Bath & North East Somerset Council,80631413,LM6,Nursing Care,P11,Adult Social Care & Health,T C CAREHOME LTD,03/10/2016,1500
Bath & North East Somerset Council,80631518,LM6,Nursing Care,P11,Adult Social Care & Health,T C CAREHOME LTD,03/10/2016,1500
Bath & North East Somerset Council,80631436,LM8,Home Care,P11,Adult Social Care & Health,THE BRANDON TRUST,03/10/2016,953.1
Bath & North East Somerset Council,80631436,LM8,Home Care,P11,Adult Social Care & Health,THE BRANDON TRUST,03/10/2016,1112.2
Bath & North East Somerset Council,80631436,LM8,Home Care,P11,Adult Social Care & Health,THE BRANDON TRUST,03/10/2016,1144.52
Bath & North East Somerset Council,80631436,LM8,Home Care,P11,Adult Social Care & Health,THE BRANDON TRUST,03/10/2016,1559.16
Bath & North East Somerset Council,80631436,LM3,Residential Care,P11,Adult Social Care & Health,THE BRANDON TRUST,03/10/2016,1794
Bath & North East Somerset Council,80631436,LM3,Residential Care,P11,Adult Social Care & Health,THE BRANDON TRUST,03/10/2016,2978
Bath & North East Somerset Council,80631436,LM3,Residential Care,P11,Adult Social Care & Health,THE BRANDON TRUST,03/10/2016,4464
Bath & North East Somerset Council,80631580,LM3,Residential Care,P11,Adult Social Care & Health,THE CEDARS [WESTON SUPERCARE] LTD,03/10/2016,902
Bath & North East Somerset Council,80631424,LM6,Nursing Care,P11,Adult Social Care & Health,THE CINEMA & TELEVISION BENEVOLENT FUND,03/10/2016,2209.78
Bath & North East Somerset Council,80631506,LM3,Residential Care,P11,Adult Social Care & Health,THE DISABILITIES TRUST,03/10/2016,2382
Bath & North East Somerset Council,80631500,LM3,Residential Care,P11,Adult Social Care & Health,THELMA TURNER HOMES LIMITED,03/10/2016,1766
Bath & North East Somerset Council,80631500,LM3,Residential Care,P11,Adult Social Care & Health,THELMA TURNER HOMES LIMITED,03/10/2016,2006
Bath & North East Somerset Council,80631500,LM3,Residential Care,P11,Adult Social Care & Health,THELMA TURNER HOMES LIMITED,03/10/2016,2024
Bath & North East Somerset Council,80631500,LM3,Residential Care,P11,Adult Social Care & Health,THELMA TURNER HOMES LIMITED,03/10/2016,2024
Bath & North East Somerset Council,80631500,LM6,Nursing Care,P11,Adult Social Care & Health,THELMA TURNER HOMES LIMITED,03/10/2016,2294
Bath & North East Somerset Council,80631500,LM3,Residential Care,P11,Adult Social Care & Health,THELMA TURNER HOMES LIMITED,03/10/2016,2928
Bath & North East Somerset Council,80631500,LM3,Residential Care,P11,Adult Social Care & Health,THELMA TURNER HOMES LIMITED,03/10/2016,2986
Bath & North East Somerset Council,80631500,LM3,Residential Care,P11,Adult Social Care & Health,THELMA TURNER HOMES LIMITED,03/10/2016,2996
Bath & North East Somerset Council,80631500,LM3,Residential Care,P11,Adult Social Care & Health,THELMA TURNER HOMES LIMITED,03/10/2016,3030
Bath & North East Somerset Council,80631500,LM3,Residential Care,P11,Adult Social Care & Health,THELMA TURNER HOMES LIMITED,03/10/2016,3050
Bath & North East Somerset Council,80631500,LM3,Residential Care,P11,Adult Social Care & Health,THELMA TURNER HOMES LIMITED,03/10/2016,3104
Bath & North East Somerset Council,80631500,LM3,Residential Care,P11,Adult Social Care & Health,THELMA TURNER HOMES LIMITED,03/10/2016,3130
Bath & North East Somerset Council,80631500,LM3,Residential Care,P11,Adult Social Care & Health,THELMA TURNER HOMES LIMITED,03/10/2016,3166
Bath & North East Somerset Council,80631500,LM3,Residential Care,P11,Adult Social Care & Health,THELMA TURNER HOMES LIMITED,03/10/2016,3204
Bath & North East Somerset Council,80631500,LM3,Residential Care,P11,Adult Social Care & Health,THELMA TURNER HOMES LIMITED,03/10/2016,3322
Bath & North East Somerset Council,80631500,LM3,Residential Care,P11,Adult Social Care & Health,THELMA TURNER HOMES LIMITED,03/10/2016,3496
Bath & North East Somerset Council,80631500,LM3,Residential Care,P11,Adult Social Care & Health,THELMA TURNER HOMES LIMITED,03/10/2016,3648
Bath & North East Somerset Council,80631500,LM3,Residential Care,P11,Adult Social Care & Health,THELMA TURNER HOMES LIMITED,03/10/2016,3748
Bath & North East Somerset Council,80631404,LM6,Nursing Care,P11,Adult Social Care & Health,THELMA TURNER HOMES LIMITED,03/10/2016,5078.7
Bath & North East Somerset Council,80631678,LL8,Individualised Budget,P11,Adult Social Care & Health,REDACTED,03/10/2016,568.9
Bath & North East Somerset Council,10823476,LK1,Fees,P01,Transport,CYCLING INSTRUCTOR LTD,03/10/2016,6291
Bath & North East Somerset Council,80631479,LM3,Residential Care,P11,Adult Social Care & Health,TRACS LTD,03/10/2016,2938
Bath & North East Somerset Council,80631479,LM3,Residential Care,P11,Adult Social Care & Health,TRACS LTD,03/10/2016,2944
Bath & North East Somerset Council,80631633,LL8,Individualised Budget,P11,Adult Social Care & Health,TRUSTEES OF REDACTED,03/10/2016,1173.62
Bath & North East Somerset Council,80631573,LM6,Nursing Care,P11,Adult Social Care & Health,TUNBRIDGE WELLS CC LTD ACCOUNT,03/10/2016,2550
Bath & North East Somerset Council,80631508,LM9,Day Care,P11,Adult Social Care & Health,UNITED RESPONSE,03/10/2016,5693.1
Bath & North East Somerset Council,80631508,LM9,Day Care,P11,Adult Social Care & Health,UNITED RESPONSE,03/10/2016,6152.3
Bath & North East Somerset Council,80631523,LM3,Residential Care,P11,Adult Social Care & Health,VILLAGE HOMES (SOMERSET) LTD,03/10/2016,1602
Bath & North East Somerset Council,80631432,LM3,Residential Care,P11,Adult Social Care & Health,VISIONS (BRISTOL) LTD,03/10/2016,3091.24
Bath & North East Somerset Council,80631592,LM3,Residential Care,P11,Adult Social Care & Health,VOYAGE 1 LTD,03/10/2016,3604.64
Bath & North East Somerset Council,10823506,LJ9,PCB Consultants Fees,P10,Finance & Efficiency,COLLIERS INTERNATIONAL PROPERTY CONSULT,03/10/2016,8750
Bath & North East Somerset Council,80631862,LL4,Direct Payments,P12,Children's Services,WECIL LTD,03/10/2016,46.2
Bath & North East Somerset Council,80631862,LL4,Direct Payments,P12,Children's Services,WECIL LTD,03/10/2016,138.6
Bath & North East Somerset Council,80631862,LL4,Direct Payments,P12,Children's Services,WECIL LTD,03/10/2016,205.8
Bath & North East Somerset Council,80631862,LL4,Direct Payments,P12,Children's Services,WECIL LTD,03/10/2016,1162.14
Bath & North East Somerset Council,80631461,LM6,Nursing Care,P11,Adult Social Care & Health,WELLS NURSING HOME,03/10/2016,1152
Bath & North East Somerset Council,80631437,LM3,Residential Care,P11,Adult Social Care & Health,WESC FOUNDATION,03/10/2016,4670
Bath & North East Somerset Council,10823197,LK1,Fees,P01,Transport,NORTH SOMERSET COUNCIL,03/10/2016,12931.35
Bath & North East Somerset Council,80631437,LM3,Residential Care,P11,Adult Social Care & Health,WESC FOUNDATION,03/10/2016,6608
Bath & North East Somerset Council,80631486,LM3,Residential Care,P11,Adult Social Care & Health,WESSEX AUTISTIC SOCIETY,03/10/2016,2786
Bath & North East Somerset Council,80631415,LM6,Nursing Care,P11,Adult Social Care & Health,WESTMINSTER HEALTHCARE LTD,03/10/2016,1932.3
Bath & North East Somerset Council,80631483,LM3,Residential Care,P11,Adult Social Care & Health,REDACTED,03/10/2016,3479.9
Bath & North East Somerset Council,80631483,LM3,Residential Care,P11,Adult Social Care & Health,REDACTED,03/10/2016,4912.86
Bath & North East Somerset Council,80631459,LL3,Supported Living,P11,Adult Social Care & Health,WILLOWBANK CARE,03/10/2016,4325.72
Bath & North East Somerset Council,10823461,LE1,Education Payment (independent school),P12,Children's Services,MARK COLLEGE PRIORY,03/10/2016,21666.66
Bath & North East Somerset Council,80631593,LM3,Residential Care,P11,Adult Social Care & Health,WINASH LTD,03/10/2016,1010.94
Bath & North East Somerset Council,80631664,LL8,Individualised Budget,P11,Adult Social Care & Health,REDACTED,03/10/2016,686.1
Bath & North East Somerset Council,80631438,LM3,Residential Care,P11,Adult Social Care & Health,WINSLOW COURT,03/10/2016,3712
Bath & North East Somerset Council,80631571,LM3,Residential Care,P11,Adult Social Care & Health,WITLA COURT CARE HOME,03/10/2016,6024
Bath & North East Somerset Council,80631519,LM3,Residential Care,P11,Adult Social Care & Health,WOODLANDS & HILL BROW LTD,03/10/2016,1388
Bath & North East Somerset Council,10823439,LK1,Fees,P14,Community Services,BEVAN BRITTAN,03/10/2016,49496
Bath & North East Somerset Council,80631766,LL8,Individualised Budget,P11,Adult Social Care & Health,REDACTED,03/10/2016,3426.78
Bath & North East Somerset Council,10823467,LV1,Grants to Voluntary Bodies,P11,Adult Social Care & Health,YOUR SAY ADVOCACY,03/10/2016,9900
Bath & North East Somerset Council,80631739,LL8,Individualised Budget,P11,Adult Social Care & Health,REDACTED,03/10/2016,524.36
Bath & North East Somerset Council,10823495,LV3,Commissioned Services,P13,Economic Development,BATH TOURISM PLUS,04/10/2016,144.34
Bath & North East Somerset Council,10823348,HE1,General Maintenance,P14,Community Services,TOM LEDBURY,04/10/2016,150
Bath & North East Somerset Council,10823348,HE1,General Maintenance,P14,Community Services,TOM LEDBURY,04/10/2016,360.92
Bath & North East Somerset Council,10823596,LH2,Advertising,P01,Transport,TMP (UK) LTD,04/10/2016,417.62
Bath & North East Somerset Council,10823606,LH2,Advertising,P01,Transport,TMP (UK) LTD,04/10/2016,417.62
Bath & North East Somerset Council,10823701,3F7,PCB External Fees,P01,Transport,SOUTHERN ELECTRIC POWER DISTRIBUTION PL,04/10/2016,437.08
Bath & North East Somerset Council,10823559,LF1,Printing/Design,P13,Economic Development,NINEPOINT DESIGN LTD,04/10/2016,438
Bath & North East Somerset Council,10823653,HK1,Highway Maintenance,P01,Transport,SAKNEL HIGHWAYS STRUCTURES CONTRACTOR,04/10/2016,440
Bath & North East Somerset Council,10823300,LA4,Equipment Hire/Rent,P14,Community Services,RENTEQ TM (SOUTH WEST) LTD,04/10/2016,450
Bath & North East Somerset Council,10823483,PB4,Payments to Private Contractors,P14,Community Services,M J CHURCH PLANT LTD,04/10/2016,461.86
Bath & North East Somerset Council,10823557,HA3,Planned Maintenance,P13,Economic Development,ORONA LTD,04/10/2016,463.03
Bath & North East Somerset Council,10823495,LV3,Commissioned Services,P13,Economic Development,BATH TOURISM PLUS,04/10/2016,505.33
Bath & North East Somerset Council,10823283,LA4,Equipment Hire/Rent,P14,Community Services,RENTEQ TM (SOUTH WEST) LTD,04/10/2016,510
Bath & North East Somerset Council,10823599,LK1,Fees,P14,Community Services,SNOW-CAMP,04/10/2016,510
Bath & North East Somerset Council,10823705,3C4,Building Works,P14,Community Services,MR SP ROBERTS T/A FOOTPRINT,04/10/2016,550
Bath & North East Somerset Council,10823573,LX4,Parish Sweepers,P14,Community Services,BATHEASTON PARISH COUNCIL,04/10/2016,572.39
Bath & North East Somerset Council,10823673,3F7,PCB External Fees,P01,Transport,MACE LIMITED,04/10/2016,610
Bath & North East Somerset Council,10823592,EA1,Training,P13,Economic Development,SEARCY TANSLEY & CO LTD,04/10/2016,635.09
Bath & North East Somerset Council,10823620,LK1,Fees,P13,Economic Development,RS SECURITY LTD,04/10/2016,648.75
Bath & North East Somerset Council,10823487,LA1,Equipment Purchase,P10,Finance & Efficiency,JACKSONS FINE FENCING,04/10/2016,660
Bath & North East Somerset Council,10823555,LF1,Printing/Design,P09,Homes & Planning,MAIL BOX ETC,04/10/2016,671.8
Bath & North East Somerset Council,10823657,3F7,PCB External Fees,P12,Children's Services,STRIDE TREGLOWN TEKTUS,04/10/2016,700
Bath & North East Somerset Council,10823587,LX4,Parish Sweepers,P14,Community Services,PAULTON PARISH COUNCIL,04/10/2016,700.18
Bath & North East Somerset Council,10823648,HA1,Responsive Maintenance,P13,Economic Development,N K S CONTRACTS LTD,04/10/2016,765
Bath & North East Somerset Council,10823601,LN5,Data Lines,P10,Finance & Efficiency,ACCESS INFRASTRUCTURE,04/10/2016,802.08
Bath & North East Somerset Council,10823653,HK1,Highway Maintenance,P01,Transport,SAKNEL HIGHWAYS STRUCTURES CONTRACTOR,04/10/2016,847.96
Bath & North East Somerset Council,10823673,3F7,PCB External Fees,P01,Transport,MACE LIMITED,04/10/2016,886
Bath & North East Somerset Council,10823700,LK2,Licences,P10,Finance & Efficiency,INFORM CPI LTD,04/10/2016,900
Bath & North East Somerset Council,10823639,LH5,Marketing,P13,Economic Development,SEARCY TANSLEY & CO LTD,04/10/2016,905.8
Bath & North East Somerset Council,10823663,3F7,PCB External Fees,P12,Children's Services,EDMOND SHIPWAY LLP,04/10/2016,950
Bath & North East Somerset Council,10823413,LK1,Fees,P14,Community Services,BATH TOURISM PLUS,04/10/2016,1041.2
Bath & North East Somerset Council,10823562,HA3,Planned Maintenance,P13,Economic Development,HORDERS,04/10/2016,1063.21
Bath & North East Somerset Council,10823649,LW9,Other Expenses,P10,Finance & Efficiency,TUSKER DIRECT LTD,04/10/2016,1236.69
Bath & North East Somerset Council,10822814,LJ3,Other Services to the Council,P04,Leader,SEARCY TANSLEY & CO LTD,04/10/2016,1258.95
Bath & North East Somerset Council,10823706,3N7,PCB Misc. Costs,P14,Community Services,INSPIRE 2 LIMITED,04/10/2016,1418.77
Bath & North East Somerset Council,10823364,LK1,Fees,P14,Community Services,HITCHED LIMITED,04/10/2016,1498
Bath & North East Somerset Council,10823650,HA1,Responsive Maintenance,P13,Economic Development,N K S CONTRACTS LTD,04/10/2016,1552.52
Bath & North East Somerset Council,10822498,4F3,Hardware Purchase,,,EXQUIP NETWORK SERVICES LTD,04/10/2016,1599.96
Bath & North East Somerset Council,10823598,LA3,Equipment Maintenance,P01,Transport,SYSTEMS ENGINEERING & ASSESSMENT LTD,04/10/2016,1640
Bath & North East Somerset Council,10823532,LN9,IT Security,P10,Finance & Efficiency,SEC-1 LTD,04/10/2016,1684.62
Bath & North East Somerset Council,10823669,LJ8,PCB External Fees,P13,Economic Development,CLARKSON & WOODS,04/10/2016,1720
Bath & North East Somerset Council,10823531,LJ4,Contracts,P01,Transport,BBFI LTD,04/10/2016,1760
Bath & North East Somerset Council,80631864,LL8,Individualised Budget,P11,Adult Social Care & Health,PHOENIX (SW) LTD,04/10/2016,85.4
Bath & North East Somerset Council,80631864,LL8,Individualised Budget,P11,Adult Social Care & Health,PHOENIX (SW) LTD,04/10/2016,86.06
Bath & North East Somerset Council,80631864,LL8,Individualised Budget,P11,Adult Social Care & Health,PHOENIX (SW) LTD,04/10/2016,136.24
Bath & North East Somerset Council,80631864,LL8,Individualised Budget,P11,Adult Social Care & Health,PHOENIX (SW) LTD,04/10/2016,139.78
Bath & North East Somerset Council,80631864,LL8,Individualised Budget,P11,Adult Social Care & Health,PHOENIX (SW) LTD,04/10/2016,144
Bath & North East Somerset Council,80631864,LL8,Individualised Budget,P11,Adult Social Care & Health,PHOENIX (SW) LTD,04/10/2016,148.46
Bath & North East Somerset Council,80631864,LL8,Individualised Budget,P11,Adult Social Care & Health,PHOENIX (SW) LTD,04/10/2016,155.44
Bath & North East Somerset Council,80631864,LL8,Individualised Budget,P11,Adult Social Care & Health,PHOENIX (SW) LTD,04/10/2016,155.44
Bath & North East Somerset Council,80631864,LL8,Individualised Budget,P11,Adult Social Care & Health,PHOENIX (SW) LTD,04/10/2016,155.44
Bath & North East Somerset Council,80631864,LL8,Individualised Budget,P11,Adult Social Care & Health,PHOENIX (SW) LTD,04/10/2016,157.32
Bath & North East Somerset Council,80631864,LL8,Individualised Budget,P11,Adult Social Care & Health,PHOENIX (SW) LTD,04/10/2016,160.2
Bath & North East Somerset Council,80631864,LL8,Individualised Budget,P11,Adult Social Care & Health,PHOENIX (SW) LTD,04/10/2016,162.4
Bath & North East Somerset Council,80631864,LL8,Individualised Budget,P11,Adult Social Care & Health,PHOENIX (SW) LTD,04/10/2016,165.64
Bath & North East Somerset Council,80631864,LL8,Individualised Budget,P11,Adult Social Care & Health,PHOENIX (SW) LTD,04/10/2016,168.46
Bath & North East Somerset Council,80631864,LL8,Individualised Budget,P11,Adult Social Care & Health,PHOENIX (SW) LTD,04/10/2016,169.56
Bath & North East Somerset Council,80631864,LL8,Individualised Budget,P11,Adult Social Care & Health,PHOENIX (SW) LTD,04/10/2016,175.56
Bath & North East Somerset Council,80631864,LL8,Individualised Budget,P11,Adult Social Care & Health,PHOENIX (SW) LTD,04/10/2016,175.74
Bath & North East Somerset Council,80631864,LL8,Individualised Budget,P11,Adult Social Care & Health,PHOENIX (SW) LTD,04/10/2016,206
Bath & North East Somerset Council,80631864,LL8,Individualised Budget,P11,Adult Social Care & Health,PHOENIX (SW) LTD,04/10/2016,212
Bath & North East Somerset Council,80631864,LL8,Individualised Budget,P11,Adult Social Care & Health,PHOENIX (SW) LTD,04/10/2016,212.2
Bath & North East Somerset Council,80631864,LL8,Individualised Budget,P11,Adult Social Care & Health,PHOENIX (SW) LTD,04/10/2016,214
Bath & North East Somerset Council,80631864,LL8,Individualised Budget,P11,Adult Social Care & Health,PHOENIX (SW) LTD,04/10/2016,243
Bath & North East Somerset Council,80631864,LL8,Individualised Budget,P11,Adult Social Care & Health,PHOENIX (SW) LTD,04/10/2016,246
Bath & North East Somerset Council,80631864,LL8,Individualised Budget,P11,Adult Social Care & Health,PHOENIX (SW) LTD,04/10/2016,252
Bath & North East Somerset Council,80631864,LL8,Individualised Budget,P11,Adult Social Care & Health,PHOENIX (SW) LTD,04/10/2016,260
Bath & North East Somerset Council,80631864,LL8,Individualised Budget,P11,Adult Social Care & Health,PHOENIX (SW) LTD,04/10/2016,273.42
Bath & North East Somerset Council,80631864,LL8,Individualised Budget,P11,Adult Social Care & Health,PHOENIX (SW) LTD,04/10/2016,290
Bath & North East Somerset Council,80631864,LL8,Individualised Budget,P11,Adult Social Care & Health,PHOENIX (SW) LTD,04/10/2016,298
Bath & North East Somerset Council,80631864,LL8,Individualised Budget,P11,Adult Social Care & Health,PHOENIX (SW) LTD,04/10/2016,326
Bath & North East Somerset Council,80631864,LL8,Individualised Budget,P11,Adult Social Care & Health,PHOENIX (SW) LTD,04/10/2016,328
Bath & North East Somerset Council,80631864,LL8,Individualised Budget,P11,Adult Social Care & Health,PHOENIX (SW) LTD,04/10/2016,341.4
Bath & North East Somerset Council,80631864,LL8,Individualised Budget,P11,Adult Social Care & Health,PHOENIX (SW) LTD,04/10/2016,356
Bath & North East Somerset Council,80631864,LL8,Individualised Budget,P11,Adult Social Care & Health,PHOENIX (SW) LTD,04/10/2016,356
Bath & North East Somerset Council,80631864,LL8,Individualised Budget,P11,Adult Social Care & Health,PHOENIX (SW) LTD,04/10/2016,358
Bath & North East Somerset Council,80631864,LL8,Individualised Budget,P11,Adult Social Care & Health,PHOENIX (SW) LTD,04/10/2016,392
Bath & North East Somerset Council,80631864,LL8,Individualised Budget,P11,Adult Social Care & Health,PHOENIX (SW) LTD,04/10/2016,402
Bath & North East Somerset Council,80631864,LL8,Individualised Budget,P11,Adult Social Care & Health,PHOENIX (SW) LTD,04/10/2016,404
Bath & North East Somerset Council,80631864,LL8,Individualised Budget,P11,Adult Social Care & Health,PHOENIX (SW) LTD,04/10/2016,420
Bath & North East Somerset Council,80631864,LL8,Individualised Budget,P11,Adult Social Care & Health,PHOENIX (SW) LTD,04/10/2016,432
Bath & North East Somerset Council,80631864,LL8,Individualised Budget,P11,Adult Social Care & Health,PHOENIX (SW) LTD,04/10/2016,474
Bath & North East Somerset Council,80631864,LL8,Individualised Budget,P11,Adult Social Care & Health,PHOENIX (SW) LTD,04/10/2016,476
Bath & North East Somerset Council,10823672,3F7,PCB External Fees,P14,Community Services,MACE LIMITED,04/10/2016,1870
Bath & North East Somerset Council,80631864,LL8,Individualised Budget,P11,Adult Social Care & Health,PHOENIX (SW) LTD,04/10/2016,486
Bath & North East Somerset Council,80631864,LL8,Individualised Budget,P11,Adult Social Care & Health,PHOENIX (SW) LTD,04/10/2016,526
Bath & North East Somerset Council,80631864,LL8,Individualised Budget,P11,Adult Social Care & Health,PHOENIX (SW) LTD,04/10/2016,534
Bath & North East Somerset Council,80631864,LL8,Individualised Budget,P11,Adult Social Care & Health,PHOENIX (SW) LTD,04/10/2016,546
Bath & North East Somerset Council,80631864,LL8,Individualised Budget,P11,Adult Social Care & Health,PHOENIX (SW) LTD,04/10/2016,548
Bath & North East Somerset Council,80631864,LL8,Individualised Budget,P11,Adult Social Care & Health,PHOENIX (SW) LTD,04/10/2016,550
Bath & North East Somerset Council,80631864,LL8,Individualised Budget,P11,Adult Social Care & Health,PHOENIX (SW) LTD,04/10/2016,560
Bath & North East Somerset Council,80631864,LL8,Individualised Budget,P11,Adult Social Care & Health,PHOENIX (SW) LTD,04/10/2016,562
Bath & North East Somerset Council,80631864,LL8,Individualised Budget,P11,Adult Social Care & Health,PHOENIX (SW) LTD,04/10/2016,570
Bath & North East Somerset Council,80631864,LL8,Individualised Budget,P11,Adult Social Care & Health,PHOENIX (SW) LTD,04/10/2016,570
